Workbook

Sheet MINIMES FILLES
D1: LISTING NATIONAL | G1: MINIMES FILLES | Q1: DATE : | S1: 2015-03-08
L2: 2° TRIMESTRE
A4: SEXE | B4: ZONE | C4: REG. | D4: Place | E4: LICENCE | F4: NOMS | G4: Prénoms | H4: AN | I4: POIDS | J4: CLUB | K4: NAT | L4: 1 | M4: 2 | N4: 3 | O4: ARR | P4: 1 | Q4: 2 | R4: 3 | S4: EP-J | T4: TOTAL | U4: IWF | V4: Points | X4: Catég | Z4: DEP + | AA4: REG + | AB4: IRG + | AC4: FED + | AD4: NAT + | AE4: INTB + | AF4: INTA + | AG4: OLY + | AH4: NCL
Z5: =T5-HLOOKUP(X5,#REF!,2,FALSE) ->  | AA5: =T5-HLOOKUP(X5,#REF!,3,FALSE) ->  | AB5: =T5-HLOOKUP(X5,#REF!,4,FALSE) ->  | AC5: =T5-HLOOKUP(X5,#REF!,5,FALSE) ->  | AD5: =T5-HLOOKUP(X5,#REF!,6,FALSE) ->  | AE5: =T5-HLOOKUP(X5,#REF!,7,FALSE) ->  | AF5: =T5-HLOOKUP(X5,#REF!,8,FALSE) ->  | AG5: =T5-HLOOKUP(X5,#REF!,9,FALSE) ->  | AO5: =IF(AG5>=0,$AG$4,IF(AF5>=0,$AF$4,IF(AE5>=0,$AE$4,IF(AD5>=0,$AD$4,IF(AC5>=0,$AC$4,IF(AB5>=0,$AB$4,IF(AA5>=0,$AA$4,IF(Z5>=0,$Z$4,$AH$4)))))))) -> 
A6: F | B6: NORD | C6: PIC | D6: 1 | E6: 386173 | F6: POTARD | G6: Cindy | H6: 2002 | I6: 31.04 | J6: Péronne AAEEP | K6: F | L6: 14 | M6: 16 | N6: -18 | O6: =IF(MAXA(L6+M6,M6+N6,L6+N6,L6,M6,N6)<=0,0,MAXA(L6+M6,M6+N6,L6+N6,L6,M6,N6)) -> 30 | P6: 20 | Q6: 22 | R6: 24 | S6: =IF(MAXA(P6+Q6,Q6+R6,P6+R6,P6,Q6,R6)<=0,0,MAXA(P6+Q6,Q6+R6,P6+R6,P6,Q6,R6)) -> 46 | T6: =IF(H6="","",IF(OR(O6=0,S6=0),0,O6+S6)) -> 76 | U6: =IF(I6="","",IF(A6="H",10^(0.794358141*LOG(I6/174.393)^2)*T6,IF(A6="F",10^(0.89726074 * LOG(I6/148.026)^2)*T6,""))) -> 196.6874497 | V6: =SUM(T6-I6) -> 44.96 | X6: =IF(A6="F",(IF(OR(H6>2001,H6<2004),VLOOKUP(I6,Feuil1!$G$11:$H$25,2))),IF(A6="H",(IF(OR(H6>2001,H6<2004),VLOOKUP(I6,Feuil1!$A$11:$F$29,2))))) -> FM36 | Z6: =T6-HLOOKUP(X6,#REF!,2,FALSE) ->  | AA6: =T6-HLOOKUP(X6,#REF!,3,FALSE) ->  | AB6: =T6-HLOOKUP(X6,#REF!,4,FALSE) ->  | AC6: =T6-HLOOKUP(X6,#REF!,5,FALSE) ->  | AD6: =T6-HLOOKUP(X6,#REF!,6,FALSE) ->  | AE6: =T6-HLOOKUP(X6,#REF!,7,FALSE) ->  | AF6: =T6-HLOOKUP(X6,#REF!,8,FALSE) ->  | AG6: =T6-HLOOKUP(X6,#REF!,9,FALSE) -> 
A7: F | B7: SEST | C7: RAL | D7: 2 | E7: 352111 | F7: PICOT | G7: Zianne | H7: 2003 | I7: 34.54 | J7: CH Saint Baldoph | K7: F | L7: 10 | M7: 12 | N7: 14 | O7: =IF(MAXA(L7+M7,M7+N7,L7+N7,L7,M7,N7)<=0,0,MAXA(L7+M7,M7+N7,L7+N7,L7,M7,N7)) -> 26 | P7: 16 | Q7: 18 | R7: -20 | S7: =IF(MAXA(P7+Q7,Q7+R7,P7+R7,P7,Q7,R7)<=0,0,MAXA(P7+Q7,Q7+R7,P7+R7,P7,Q7,R7)) -> 34 | T7: =IF(H7="","",IF(OR(O7=0,S7=0),0,O7+S7)) -> 60 | U7: =IF(I7="","",IF(A7="H",10^(0.794358141*LOG(I7/174.393)^2)*T7,IF(A7="F",10^(0.89726074 * LOG(I7/148.026)^2)*T7,""))) -> 136.9482531 | V7: =SUM(T7-I7) -> 25.46 | X7: =IF(A7="F",(IF(OR(H7>2001,H7<2004),VLOOKUP(I7,Feuil1!$G$11:$H$25,2))),IF(A7="H",(IF(OR(H7>2001,H7<2004),VLOOKUP(I7,Feuil1!$A$11:$F$29,2))))) -> FM36 | Z7: =T7-HLOOKUP(X7,#REF!,2,FALSE) ->  | AA7: =T7-HLOOKUP(X7,#REF!,3,FALSE) ->  | AB7: =T7-HLOOKUP(X7,#REF!,4,FALSE) ->  | AC7: =T7-HLOOKUP(X7,#REF!,5,FALSE) ->  | AD7: =T7-HLOOKUP(X7,#REF!,6,FALSE) ->  | AE7: =T7-HLOOKUP(X7,#REF!,7,FALSE) ->  | AF7: =T7-HLOOKUP(X7,#REF!,8,FALSE) ->  | AG7: =T7-HLOOKUP(X7,#REF!,9,FALSE) -> 
A8: F | B8: NORD | C8: PIC | D8: 3 | E8: 377089 | F8: THIERRY | G8: Charlotte | H8: 2003 | I8: 23.2 | J8: La Ferté Milon CMHM | K8: F | L8: 10 | M8: 12 | N8: -14 | O8: =IF(MAXA(L8+M8,M8+N8,L8+N8,L8,M8,N8)<=0,0,MAXA(L8+M8,M8+N8,L8+N8,L8,M8,N8)) -> 22 | P8: 15 | Q8: 16 | R8: 17 | S8: =IF(MAXA(P8+Q8,Q8+R8,P8+R8,P8,Q8,R8)<=0,0,MAXA(P8+Q8,Q8+R8,P8+R8,P8,Q8,R8)) -> 33 | T8: =IF(H8="","",IF(OR(O8=0,S8=0),0,O8+S8)) -> 55 | U8: =IF(I8="","",IF(A8="H",10^(0.794358141*LOG(I8/174.393)^2)*T8,IF(A8="F",10^(0.89726074 * LOG(I8/148.026)^2)*T8,""))) -> 209.6975901 | V8: =SUM(T8-I8) -> 31.8 | X8: =IF(A8="F",(IF(OR(H8>2001,H8<2004),VLOOKUP(I8,Feuil1!$G$11:$H$25,2))),IF(A8="H",(IF(OR(H8>2001,H8<2004),VLOOKUP(I8,Feuil1!$A$11:$F$29,2))))) -> FM36 | Z8: =T8-HLOOKUP(X8,#REF!,2,FALSE) ->  | AA8: =T8-HLOOKUP(X8,#REF!,3,FALSE) ->  | AB8: =T8-HLOOKUP(X8,#REF!,4,FALSE) ->  | AC8: =T8-HLOOKUP(X8,#REF!,5,FALSE) ->  | AD8: =T8-HLOOKUP(X8,#REF!,6,FALSE) ->  | AE8: =T8-HLOOKUP(X8,#REF!,7,FALSE) ->  | AF8: =T8-HLOOKUP(X8,#REF!,8,FALSE) ->  | AG8: =T8-HLOOKUP(X8,#REF!,9,FALSE) ->  | AO8: =IF(AG8>=0,$AG$4,IF(AF8>=0,$AF$4,IF(AE8>=0,$AE$4,IF(AD8>=0,$AD$4,IF(AC8>=0,$AC$4,IF(AB8>=0,$AB$4,IF(AA8>=0,$AA$4,IF(Z8>=0,$Z$4,$AH$4)))))))) -> 
Z9: =T9-HLOOKUP(X9,#REF!,2,FALSE) ->  | AA9: =T9-HLOOKUP(X9,#REF!,3,FALSE) ->  | AB9: =T9-HLOOKUP(X9,#REF!,4,FALSE) ->  | AC9: =T9-HLOOKUP(X9,#REF!,5,FALSE) ->  | AD9: =T9-HLOOKUP(X9,#REF!,6,FALSE) ->  | AE9: =T9-HLOOKUP(X9,#REF!,7,FALSE) ->  | AF9: =T9-HLOOKUP(X9,#REF!,8,FALSE) ->  | AG9: =T9-HLOOKUP(X9,#REF!,9,FALSE) -> 
A10: F | B10: NE | C10: ALS | D10: 1 | E10: 354663 | F10: SCHULTZ | G10: LEANE | H10: 2003 | I10: 38.35 | J10: US Wittenheim | K10: F | L10: 17 | M10: 19 | N10: 21 | O10: =IF(MAXA(L10+M10,M10+N10,L10+N10,L10,M10,N10)<=0,0,MAXA(L10+M10,M10+N10,L10+N10,L10,M10,N10)) -> 40 | P10: 25 | Q10: 27 | R10: 29 | S10: =IF(MAXA(P10+Q10,Q10+R10,P10+R10,P10,Q10,R10)<=0,0,MAXA(P10+Q10,Q10+R10,P10+R10,P10,Q10,R10)) -> 56 | T10: =IF(H10="","",IF(OR(O10=0,S10=0),0,O10+S10)) -> 96 | U10: =IF(I10="","",IF(A10="H",10^(0.794358141*LOG(I10/174.393)^2)*T10,IF(A10="F",10^(0.89726074 * LOG(I10/148.026)^2)*T10,""))) -> 195.4291998 | V10: =SUM(T10-I10) -> 57.65 | X10: =IF(A10="F",(IF(OR(H10>2001,H10<2004),VLOOKUP(I10,Feuil1!$G$11:$H$25,2))),IF(A10="H",(IF(OR(H10>2001,H10<2004),VLOOKUP(I10,Feuil1!$A$11:$F$29,2))))) -> FM40 | Z10: =T10-HLOOKUP(X10,#REF!,2,FALSE) ->  | AA10: =T10-HLOOKUP(X10,#REF!,3,FALSE) ->  | AB10: =T10-HLOOKUP(X10,#REF!,4,FALSE) ->  | AC10: =T10-HLOOKUP(X10,#REF!,5,FALSE) ->  | AD10: =T10-HLOOKUP(X10,#REF!,6,FALSE) ->  | AE10: =T10-HLOOKUP(X10,#REF!,7,FALSE) ->  | AF10: =T10-HLOOKUP(X10,#REF!,8,FALSE) ->  | AG10: =T10-HLOOKUP(X10,#REF!,9,FALSE) ->  | AO10: =IF(AG10>=0,$AG$4,IF(AF10>=0,$AF$4,IF(AE10>=0,$AE$4,IF(AD10>=0,$AD$4,IF(AC10>=0,$AC$4,IF(AB10>=0,$AB$4,IF(AA10>=0,$AA$4,IF(Z10>=0,$Z$4,$AH$4)))))))) -> 
A11: F | B11: SEST | C11: RAL | D11: 2 | E11: 352111 | F11: PICOT | G11: Zianne | H11: 2003 | I11: 37.4 | J11: CH Saint Baldoph | K11: F | L11: 18 | M11: 19 | N11: 20 | O11: 39 | P11: 23 | Q11: 25 | R11: 27 | S11: 52 | T11: 91 | U11: 190.2536775 | V11: 53.6 | X11: =IF(A11="F",(IF(OR(H11>2001,H11<2004),VLOOKUP(I11,Feuil1!$G$11:$H$25,2))),IF(A11="H",(IF(OR(H11>2001,H11<2004),VLOOKUP(I11,Feuil1!$A$11:$F$29,2))))) -> FM40 | Z11: =T11-HLOOKUP(X11,#REF!,2,FALSE) ->  | AA11: =T11-HLOOKUP(X11,#REF!,3,FALSE) ->  | AB11: =T11-HLOOKUP(X11,#REF!,4,FALSE) ->  | AC11: =T11-HLOOKUP(X11,#REF!,5,FALSE) ->  | AD11: =T11-HLOOKUP(X11,#REF!,6,FALSE) ->  | AE11: =T11-HLOOKUP(X11,#REF!,7,FALSE) ->  | AF11: =T11-HLOOKUP(X11,#REF!,8,FALSE) ->  | AG11: =T11-HLOOKUP(X11,#REF!,9,FALSE) -> 
A12: F | B12: CO | C12: PDL | D12: 3 | E12: 386516 | F12: ABRAHAM | G12: Ines-Sarah | H12: 2002 | I12: 38.1 | J12: CJF LAVAL - VOUTRÉ | K12: F | L12: 15 | M12: 17 | N12: 19 | O12: 36 | P12: 17 | Q12: 19 | R12: 21 | S12: 40 | T12: 76 | U12: 155.7861692 | V12: 37.9 | X12: =IF(A12="F",(IF(OR(H12>2001,H12<2004),VLOOKUP(I12,Feuil1!$G$11:$H$25,2))),IF(A12="H",(IF(OR(H12>2001,H12<2004),VLOOKUP(I12,Feuil1!$A$11:$F$29,2))))) -> FM40 | Z12: =T12-HLOOKUP(X12,#REF!,2,FALSE) ->  | AA12: =T12-HLOOKUP(X12,#REF!,3,FALSE) ->  | AB12: =T12-HLOOKUP(X12,#REF!,4,FALSE) ->  | AC12: =T12-HLOOKUP(X12,#REF!,5,FALSE) ->  | AD12: =T12-HLOOKUP(X12,#REF!,6,FALSE) ->  | AE12: =T12-HLOOKUP(X12,#REF!,7,FALSE) ->  | AF12: =T12-HLOOKUP(X12,#REF!,8,FALSE) ->  | AG12: =T12-HLOOKUP(X12,#REF!,9,FALSE) -> 
A13: F | B13: N-E | C13: LOR | D13: 4 | E13: 282113 | F13: LEYSER | G13: Aline | H13: 2003 | I13: 39.3 | J13: H.VALLEROY-AUBOUÉ | K13: F | L13: -13 | M13: 13 | N13: 14 | O13: 27 | P13: 16 | Q13: 17 | R13: 18 | S13: 35 | T13: 62 | U13: 123.033928 | V13: 22.7 | X13: =IF(A13="F",(IF(OR(H13>2001,H13<2004),VLOOKUP(I13,Feuil1!$G$11:$H$25,2))),IF(A13="H",(IF(OR(H13>2001,H13<2004),VLOOKUP(I13,Feuil1!$A$11:$F$29,2))))) -> FM40 | Z13: =T13-HLOOKUP(X13,#REF!,2,FALSE) ->  | AA13: =T13-HLOOKUP(X13,#REF!,3,FALSE) ->  | AB13: =T13-HLOOKUP(X13,#REF!,4,FALSE) ->  | AC13: =T13-HLOOKUP(X13,#REF!,5,FALSE) ->  | AD13: =T13-HLOOKUP(X13,#REF!,6,FALSE) ->  | AE13: =T13-HLOOKUP(X13,#REF!,7,FALSE) ->  | AF13: =T13-HLOOKUP(X13,#REF!,8,FALSE) ->  | AG13: =T13-HLOOKUP(X13,#REF!,9,FALSE) -> 
A14: F | B14: CO | C14: PDL | D14: 5 | E14: 388363 | F14: RENOIR | G14: Anaïs | H14: 2003 | I14: 39.6 | J14: CJF LAVAL - VOUTRÉ | K14: F | L14: 12 | M14: -14 | N14: 14 | O14: 26 | P14: 13 | Q14: 14 | R14: -15 | S14: 27 | T14: 53 | U14: 104.3531178 | V14: 13.4 | X14: =IF(A14="F",(IF(OR(H14>2001,H14<2004),VLOOKUP(I14,Feuil1!$G$11:$H$25,2))),IF(A14="H",(IF(OR(H14>2001,H14<2004),VLOOKUP(I14,Feuil1!$A$11:$F$29,2))))) -> FM40 | Z14: =T14-HLOOKUP(X14,#REF!,2,FALSE) ->  | AA14: =T14-HLOOKUP(X14,#REF!,3,FALSE) ->  | AB14: =T14-HLOOKUP(X14,#REF!,4,FALSE) ->  | AC14: =T14-HLOOKUP(X14,#REF!,5,FALSE) ->  | AD14: =T14-HLOOKUP(X14,#REF!,6,FALSE) ->  | AE14: =T14-HLOOKUP(X14,#REF!,7,FALSE) ->  | AF14: =T14-HLOOKUP(X14,#REF!,8,FALSE) ->  | AG14: =T14-HLOOKUP(X14,#REF!,9,FALSE) -> 
A15: F | B15: NORD | C15: PIC | D15: 6 | E15: 390613 | F15: QUIN-PLOYARD | G15: Ludivine | H15: 2002 | I15: 38.9 | J15: Saleux CHM | K15: F | L15: 9 | M15: 11 | N15: 13 | O15: 24 | P15: 13 | Q15: 14 | R15: -15 | S15: 27 | T15: 51 | U15: 102.2852668 | V15: 12.1 | X15: =IF(A15="F",(IF(OR(H15>2001,H15<2004),VLOOKUP(I15,Feuil1!$G$11:$H$25,2))),IF(A15="H",(IF(OR(H15>2001,H15<2004),VLOOKUP(I15,Feuil1!$A$11:$F$29,2))))) -> FM40 | Z15: =T15-HLOOKUP(X15,#REF!,2,FALSE) ->  | AA15: =T15-HLOOKUP(X15,#REF!,3,FALSE) ->  | AB15: =T15-HLOOKUP(X15,#REF!,4,FALSE) ->  | AC15: =T15-HLOOKUP(X15,#REF!,5,FALSE) ->  | AD15: =T15-HLOOKUP(X15,#REF!,6,FALSE) ->  | AE15: =T15-HLOOKUP(X15,#REF!,7,FALSE) ->  | AF15: =T15-HLOOKUP(X15,#REF!,8,FALSE) ->  | AG15: =T15-HLOOKUP(X15,#REF!,9,FALSE) -> 
Z16: =T16-HLOOKUP(X16,#REF!,2,FALSE) ->  | AA16: =T16-HLOOKUP(X16,#REF!,3,FALSE) ->  | AB16: =T16-HLOOKUP(X16,#REF!,4,FALSE) ->  | AC16: =T16-HLOOKUP(X16,#REF!,5,FALSE) ->  | AD16: =T16-HLOOKUP(X16,#REF!,6,FALSE) ->  | AE16: =T16-HLOOKUP(X16,#REF!,7,FALSE) ->  | AF16: =T16-HLOOKUP(X16,#REF!,8,FALSE) ->  | AG16: =T16-HLOOKUP(X16,#REF!,9,FALSE) -> 
A17: F | B17: SEST | C17: CAZ | D17: 1 | E17: 384345 | F17: LEBORGNE DEKOUEL | G17: Marie | H17: 2002 | I17: 43.5 | J17: ES VILLENEUVE LOUBET | K17: F | L17: 22 | M17: 24 | N17: 26 | O17: =IF(MAXA(L17+M17,M17+N17,L17+N17,L17,M17,N17)<=0,0,MAXA(L17+M17,M17+N17,L17+N17,L17,M17,N17)) -> 50 | P17: 33 | Q17: 35 | R17: -37 | S17: =IF(MAXA(P17+Q17,Q17+R17,P17+R17,P17,Q17,R17)<=0,0,MAXA(P17+Q17,Q17+R17,P17+R17,P17,Q17,R17)) -> 68 | T17: =IF(H17="","",IF(OR(O17=0,S17=0),0,O17+S17)) -> 118 | U17: =IF(I17="","",IF(A17="H",10^(0.794358141*LOG(I17/174.393)^2)*T17,IF(A17="F",10^(0.89726074 * LOG(I17/148.026)^2)*T17,""))) -> 211.6820108 | V17: =SUM(T17-I17) -> 74.5 | X17: =IF(A17="F",(IF(OR(H17>2001,H17<2004),VLOOKUP(I17,Feuil1!$G$11:$H$25,2))),IF(A17="H",(IF(OR(H17>2001,H17<2004),VLOOKUP(I17,Feuil1!$A$11:$F$29,2))))) -> FM44 | Z17: =T17-HLOOKUP(X17,#REF!,2,FALSE) ->  | AA17: =T17-HLOOKUP(X17,#REF!,3,FALSE) ->  | AB17: =T17-HLOOKUP(X17,#REF!,4,FALSE) ->  | AC17: =T17-HLOOKUP(X17,#REF!,5,FALSE) ->  | AD17: =T17-HLOOKUP(X17,#REF!,6,FALSE) ->  | AE17: =T17-HLOOKUP(X17,#REF!,7,FALSE) ->  | AF17: =T17-HLOOKUP(X17,#REF!,8,FALSE) ->  | AG17: =T17-HLOOKUP(X17,#REF!,9,FALSE) ->  | AO17: =IF(AG17>=0,$AG$4,IF(AF17>=0,$AF$4,IF(AE17>=0,$AE$4,IF(AD17>=0,$AD$4,IF(AC17>=0,$AC$4,IF(AB17>=0,$AB$4,IF(AA17>=0,$AA$4,IF(Z17>=0,$Z$4,$AH$4)))))))) -> 
A18: F | B18: NE | C18: ALS | D18: 2 | E18: 354663 | F18: SCHULTZ | G18: LEANE | H18: 2003 | I18: 41 | J18: US Wittenheim | K18: F | L18: 16 | M18: 18 | N18: 20 | O18: =IF(MAXA(L18+M18,M18+N18,L18+N18,L18,M18,N18)<=0,0,MAXA(L18+M18,M18+N18,L18+N18,L18,M18,N18)) -> 38 | P18: 26 | Q18: 28 | R18: 30 | S18: =IF(MAXA(P18+Q18,Q18+R18,P18+R18,P18,Q18,R18)<=0,0,MAXA(P18+Q18,Q18+R18,P18+R18,P18,Q18,R18)) -> 58 | T18: =IF(H18="","",IF(OR(O18=0,S18=0),0,O18+S18)) -> 96 | U18: =IF(I18="","",IF(A18="H",10^(0.794358141*LOG(I18/174.393)^2)*T18,IF(A18="F",10^(0.89726074 * LOG(I18/148.026)^2)*T18,""))) -> 182.4734371 | V18: =SUM(T18-I18) -> 55 | X18: =IF(A18="F",(IF(OR(H18>2001,H18<2004),VLOOKUP(I18,Feuil1!$G$11:$H$25,2))),IF(A18="H",(IF(OR(H18>2001,H18<2004),VLOOKUP(I18,Feuil1!$A$11:$F$29,2))))) -> FM44 | Z18: =T18-HLOOKUP(X18,#REF!,2,FALSE) ->  | AA18: =T18-HLOOKUP(X18,#REF!,3,FALSE) ->  | AB18: =T18-HLOOKUP(X18,#REF!,4,FALSE) ->  | AC18: =T18-HLOOKUP(X18,#REF!,5,FALSE) ->  | AD18: =T18-HLOOKUP(X18,#REF!,6,FALSE) ->  | AE18: =T18-HLOOKUP(X18,#REF!,7,FALSE) ->  | AF18: =T18-HLOOKUP(X18,#REF!,8,FALSE) ->  | AG18: =T18-HLOOKUP(X18,#REF!,9,FALSE) ->  | AO18: =IF(AG18>=0,$AG$4,IF(AF18>=0,$AF$4,IF(AE18>=0,$AE$4,IF(AD18>=0,$AD$4,IF(AC18>=0,$AC$4,IF(AB18>=0,$AB$4,IF(AA18>=0,$AA$4,IF(Z18>=0,$Z$4,$AH$4)))))))) -> 
A19: F | B19: NORD | C19: NPC | D19: 3 | E19: 349247 | F19: RIQUIER | G19: Cassandra | H19: 2003 | I19: 42 | J19: CHCD COMINES | K19: F | L19: 16 | M19: 18 | N19: -20 | O19: =IF(MAXA(L19+M19,M19+N19,L19+N19,L19,M19,N19)<=0,0,MAXA(L19+M19,M19+N19,L19+N19,L19,M19,N19)) -> 34 | P19: 22 | Q19: 24 | R19: 26 | S19: =IF(MAXA(P19+Q19,Q19+R19,P19+R19,P19,Q19,R19)<=0,0,MAXA(P19+Q19,Q19+R19,P19+R19,P19,Q19,R19)) -> 50 | T19: =IF(H19="","",IF(OR(O19=0,S19=0),0,O19+S19)) -> 84 | U19: =IF(I19="","",IF(A19="H",10^(0.794358141*LOG(I19/174.393)^2)*T19,IF(A19="F",10^(0.89726074 * LOG(I19/148.026)^2)*T19,""))) -> 155.8959609 | V19: =SUM(T19-I19) -> 42 | X19: =IF(A19="F",(IF(OR(H19>2001,H19<2004),VLOOKUP(I19,Feuil1!$G$11:$H$25,2))),IF(A19="H",(IF(OR(H19>2001,H19<2004),VLOOKUP(I19,Feuil1!$A$11:$F$29,2))))) -> FM44 | Z19: =T19-HLOOKUP(X19,#REF!,2,FALSE) ->  | AA19: =T19-HLOOKUP(X19,#REF!,3,FALSE) ->  | AB19: =T19-HLOOKUP(X19,#REF!,4,FALSE) ->  | AC19: =T19-HLOOKUP(X19,#REF!,5,FALSE) ->  | AD19: =T19-HLOOKUP(X19,#REF!,6,FALSE) ->  | AE19: =T19-HLOOKUP(X19,#REF!,7,FALSE) ->  | AF19: =T19-HLOOKUP(X19,#REF!,8,FALSE) ->  | AG19: =T19-HLOOKUP(X19,#REF!,9,FALSE) ->  | AO19: =IF(AG19>=0,$AG$4,IF(AF19>=0,$AF$4,IF(AE19>=0,$AE$4,IF(AD19>=0,$AD$4,IF(AC19>=0,$AC$4,IF(AB19>=0,$AB$4,IF(AA19>=0,$AA$4,IF(Z19>=0,$Z$4,$AH$4)))))))) -> 
A20: F | B20: SEST | C20: CAZ | D20: 4 | E20: 360579 | F20: GEFFROY | G20: Lisa | H20: 2003 | I20: 40.9 | J20: ASPTT DRAGUIGNAN | K20: F | L20: 15 | M20: 16 | N20: 18 | O20: =IF(MAXA(L20+M20,M20+N20,L20+N20,L20,M20,N20)<=0,0,MAXA(L20+M20,M20+N20,L20+N20,L20,M20,N20)) -> 34 | P20: 22 | Q20: 23 | R20: 25 | S20: =IF(MAXA(P20+Q20,Q20+R20,P20+R20,P20,Q20,R20)<=0,0,MAXA(P20+Q20,Q20+R20,P20+R20,P20,Q20,R20)) -> 48 | T20: =IF(H20="","",IF(OR(O20=0,S20=0),0,O20+S20)) -> 82 | U20: =IF(I20="","",IF(A20="H",10^(0.794358141*LOG(I20/174.393)^2)*T20,IF(A20="F",10^(0.89726074 * LOG(I20/148.026)^2)*T20,""))) -> 156.2443802 | V20: =SUM(T20-I20) -> 41.1 | X20: =IF(A20="F",(IF(OR(H20>2001,H20<2004),VLOOKUP(I20,Feuil1!$G$11:$H$25,2))),IF(A20="H",(IF(OR(H20>2001,H20<2004),VLOOKUP(I20,Feuil1!$A$11:$F$29,2))))) -> FM44 | Z20: =T20-HLOOKUP(X20,#REF!,2,FALSE) ->  | AA20: =T20-HLOOKUP(X20,#REF!,3,FALSE) ->  | AB20: =T20-HLOOKUP(X20,#REF!,4,FALSE) ->  | AC20: =T20-HLOOKUP(X20,#REF!,5,FALSE) ->  | AD20: =T20-HLOOKUP(X20,#REF!,6,FALSE) ->  | AE20: =T20-HLOOKUP(X20,#REF!,7,FALSE) ->  | AF20: =T20-HLOOKUP(X20,#REF!,8,FALSE) ->  | AG20: =T20-HLOOKUP(X20,#REF!,9,FALSE) ->  | AO20: =IF(AG20>=0,$AG$4,IF(AF20>=0,$AF$4,IF(AE20>=0,$AE$4,IF(AD20>=0,$AD$4,IF(AC20>=0,$AC$4,IF(AB20>=0,$AB$4,IF(AA20>=0,$AA$4,IF(Z20>=0,$Z$4,$AH$4)))))))) -> 
A21: F | B21: NE | C21: ALS | D21: 5 | E21: 373892 | F21: MANNY | G21: ELODIE | H21: 2003 | I21: 43.6 | J21: MJC Ungersheim | K21: F | L21: 12 | M21: 14 | N21: 16 | O21: =IF(MAXA(L21+M21,M21+N21,L21+N21,L21,M21,N21)<=0,0,MAXA(L21+M21,M21+N21,L21+N21,L21,M21,N21)) -> 30 | P21: 18 | Q21: 20 | R21: 22 | S21: =IF(MAXA(P21+Q21,Q21+R21,P21+R21,P21,Q21,R21)<=0,0,MAXA(P21+Q21,Q21+R21,P21+R21,P21,Q21,R21)) -> 42 | T21: =IF(H21="","",IF(OR(O21=0,S21=0),0,O21+S21)) -> 72 | U21: =IF(I21="","",IF(A21="H",10^(0.794358141*LOG(I21/174.393)^2)*T21,IF(A21="F",10^(0.89726074 * LOG(I21/148.026)^2)*T21,""))) -> 128.8794165 | V21: =SUM(T21-I21) -> 28.4 | X21: =IF(A21="F",(IF(OR(H21>2001,H21<2004),VLOOKUP(I21,Feuil1!$G$11:$H$25,2))),IF(A21="H",(IF(OR(H21>2001,H21<2004),VLOOKUP(I21,Feuil1!$A$11:$F$29,2))))) -> FM44 | Z21: =T21-HLOOKUP(X21,#REF!,2,FALSE) ->  | AA21: =T21-HLOOKUP(X21,#REF!,3,FALSE) ->  | AB21: =T21-HLOOKUP(X21,#REF!,4,FALSE) ->  | AC21: =T21-HLOOKUP(X21,#REF!,5,FALSE) ->  | AD21: =T21-HLOOKUP(X21,#REF!,6,FALSE) ->  | AE21: =T21-HLOOKUP(X21,#REF!,7,FALSE) ->  | AF21: =T21-HLOOKUP(X21,#REF!,8,FALSE) ->  | AG21: =T21-HLOOKUP(X21,#REF!,9,FALSE) ->  | AO21: =IF(AG21>=0,$AG$4,IF(AF21>=0,$AF$4,IF(AE21>=0,$AE$4,IF(AD21>=0,$AD$4,IF(AC21>=0,$AC$4,IF(AB21>=0,$AB$4,IF(AA21>=0,$AA$4,IF(Z21>=0,$Z$4,$AH$4)))))))) -> 
Z22: =T22-HLOOKUP(X22,#REF!,2,FALSE) ->  | AA22: =T22-HLOOKUP(X22,#REF!,3,FALSE) ->  | AB22: =T22-HLOOKUP(X22,#REF!,4,FALSE) ->  | AC22: =T22-HLOOKUP(X22,#REF!,5,FALSE) ->  | AD22: =T22-HLOOKUP(X22,#REF!,6,FALSE) ->  | AE22: =T22-HLOOKUP(X22,#REF!,7,FALSE) ->  | AF22: =T22-HLOOKUP(X22,#REF!,8,FALSE) ->  | AG22: =T22-HLOOKUP(X22,#REF!,9,FALSE) -> 
A23: F | B23: NORD | C23: NPC | D23: 1 | E23: 340969 | F23: DESMAREST | G23: Lucie | H23: 2002 | I23: 45.9 | J23: CHCD COMINES | K23: F | L23: 22 | M23: 24 | N23: -26 | O23: =IF(MAXA(L23+M23,M23+N23,L23+N23,L23,M23,N23)<=0,0,MAXA(L23+M23,M23+N23,L23+N23,L23,M23,N23)) -> 46 | P23: 36 | Q23: 38 | R23: 40 | S23: =IF(MAXA(P23+Q23,Q23+R23,P23+R23,P23,Q23,R23)<=0,0,MAXA(P23+Q23,Q23+R23,P23+R23,P23,Q23,R23)) -> 78 | T23: =IF(H23="","",IF(OR(O23=0,S23=0),0,O23+S23)) -> 124 | U23: =IF(I23="","",IF(A23="H",10^(0.794358141*LOG(I23/174.393)^2)*T23,IF(A23="F",10^(0.89726074 * LOG(I23/148.026)^2)*T23,""))) -> 211.5687486 | V23: =SUM(T23-I23) -> 78.1 | X23: =IF(A23="F",(IF(OR(H23>2001,H23<2004),VLOOKUP(I23,Feuil1!$G$11:$H$25,2))),IF(A23="H",(IF(OR(H23>2001,H23<2004),VLOOKUP(I23,Feuil1!$A$11:$F$29,2))))) -> FM48 | Z23: =T23-HLOOKUP(X23,#REF!,2,FALSE) ->  | AA23: =T23-HLOOKUP(X23,#REF!,3,FALSE) ->  | AB23: =T23-HLOOKUP(X23,#REF!,4,FALSE) ->  | AC23: =T23-HLOOKUP(X23,#REF!,5,FALSE) ->  | AD23: =T23-HLOOKUP(X23,#REF!,6,FALSE) ->  | AE23: =T23-HLOOKUP(X23,#REF!,7,FALSE) ->  | AF23: =T23-HLOOKUP(X23,#REF!,8,FALSE) ->  | AG23: =T23-HLOOKUP(X23,#REF!,9,FALSE) ->  | AO23: =IF(AG23>=0,$AG$4,IF(AF23>=0,$AF$4,IF(AE23>=0,$AE$4,IF(AD23>=0,$AD$4,IF(AC23>=0,$AC$4,IF(AB23>=0,$AB$4,IF(AA23>=0,$AA$4,IF(Z23>=0,$Z$4,$AH$4)))))))) -> 
A24: F | B24: NE | C24: ALS | D24: 2 | E24: 350199 | F24: BAJARD | G24: PERINE | H24: 2003 | I24: 46.5 | J24: Dorlisheim FH | K24: F | L24: 22 | M24: 24 | N24: 26 | O24: 50 | P24: 30 | Q24: 32 | R24: -34 | S24: 62 | T24: 112 | U24: 188.8553615 | V24: 65.5 | X24: =IF(A24="F",(IF(OR(H24>2001,H24<2004),VLOOKUP(I24,Feuil1!$G$11:$H$25,2))),IF(A24="H",(IF(OR(H24>2001,H24<2004),VLOOKUP(I24,Feuil1!$A$11:$F$29,2))))) -> FM48 | Z24: =T24-HLOOKUP(X24,#REF!,2,FALSE) ->  | AA24: =T24-HLOOKUP(X24,#REF!,3,FALSE) ->  | AB24: =T24-HLOOKUP(X24,#REF!,4,FALSE) ->  | AC24: =T24-HLOOKUP(X24,#REF!,5,FALSE) ->  | AD24: =T24-HLOOKUP(X24,#REF!,6,FALSE) ->  | AE24: =T24-HLOOKUP(X24,#REF!,7,FALSE) ->  | AF24: =T24-HLOOKUP(X24,#REF!,8,FALSE) ->  | AG24: =T24-HLOOKUP(X24,#REF!,9,FALSE) -> 
A25: F | B25: NORD | C25: PIC | D25: 3 | E25: 378352 | F25: BÉDOT | G25: Manon | H25: 2002 | I25: 46.8 | J25: Villers-Bretonneux KC | K25: F | L25: 18 | M25: 20 | N25: -22 | O25: 38 | P25: 23 | Q25: 25 | R25: -27 | S25: 48 | T25: 86 | U25: 144.1771137 | V25: 39.2 | X25: =IF(A25="F",(IF(OR(H25>2001,H25<2004),VLOOKUP(I25,Feuil1!$G$11:$H$25,2))),IF(A25="H",(IF(OR(H25>2001,H25<2004),VLOOKUP(I25,Feuil1!$A$11:$F$29,2))))) -> FM48 | Z25: =T25-HLOOKUP(X25,#REF!,2,FALSE) ->  | AA25: =T25-HLOOKUP(X25,#REF!,3,FALSE) ->  | AB25: =T25-HLOOKUP(X25,#REF!,4,FALSE) ->  | AC25: =T25-HLOOKUP(X25,#REF!,5,FALSE) ->  | AD25: =T25-HLOOKUP(X25,#REF!,6,FALSE) ->  | AE25: =T25-HLOOKUP(X25,#REF!,7,FALSE) ->  | AF25: =T25-HLOOKUP(X25,#REF!,8,FALSE) ->  | AG25: =T25-HLOOKUP(X25,#REF!,9,FALSE) -> 
A26: F | B26: NE | C26: ALS | D26: 4 | E26: 373892 | F26: MANNY | G26: ELODIE | H26: 2003 | I26: 44.05 | J26: MJC Ungersheim | K26: F | L26: 15 | M26: 17 | N26: 19 | O26: 36 | P26: 22 | Q26: 24 | R26: -26 | S26: 46 | T26: 82 | U26: 145.3565494 | V26: 37.95 | X26: =IF(A26="F",(IF(OR(H26>2001,H26<2004),VLOOKUP(I26,Feuil1!$G$11:$H$25,2))),IF(A26="H",(IF(OR(H26>2001,H26<2004),VLOOKUP(I26,Feuil1!$A$11:$F$29,2))))) -> FM48 | Z26: =T26-HLOOKUP(X26,#REF!,2,FALSE) ->  | AA26: =T26-HLOOKUP(X26,#REF!,3,FALSE) ->  | AB26: =T26-HLOOKUP(X26,#REF!,4,FALSE) ->  | AC26: =T26-HLOOKUP(X26,#REF!,5,FALSE) ->  | AD26: =T26-HLOOKUP(X26,#REF!,6,FALSE) ->  | AE26: =T26-HLOOKUP(X26,#REF!,7,FALSE) ->  | AF26: =T26-HLOOKUP(X26,#REF!,8,FALSE) ->  | AG26: =T26-HLOOKUP(X26,#REF!,9,FALSE) -> 
A27: F | B27: NORD | C27: PIC | D27: 5 | E27: 386138 | F27: ETÉVÉ | G27: Solène | H27: 2003 | I27: 47.7 | J27: Péronne AAEEP | K27: F | L27: 12 | M27: 14 | N27: 16 | O27: 30 | P27: 16 | Q27: 18 | R27: 20 | S27: 38 | T27: 68 | U27: 112.0841523 | V27: 20.3 | X27: =IF(A27="F",(IF(OR(H27>2001,H27<2004),VLOOKUP(I27,Feuil1!$G$11:$H$25,2))),IF(A27="H",(IF(OR(H27>2001,H27<2004),VLOOKUP(I27,Feuil1!$A$11:$F$29,2))))) -> FM48 | Z27: =T27-HLOOKUP(X27,#REF!,2,FALSE) ->  | AA27: =T27-HLOOKUP(X27,#REF!,3,FALSE) ->  | AB27: =T27-HLOOKUP(X27,#REF!,4,FALSE) ->  | AC27: =T27-HLOOKUP(X27,#REF!,5,FALSE) ->  | AD27: =T27-HLOOKUP(X27,#REF!,6,FALSE) ->  | AE27: =T27-HLOOKUP(X27,#REF!,7,FALSE) ->  | AF27: =T27-HLOOKUP(X27,#REF!,8,FALSE) ->  | AG27: =T27-HLOOKUP(X27,#REF!,9,FALSE) -> 
A28: F | B28: NORD | C28: PIC | D28: 6 | E28: 386143 | F28: ETÉVÉ | G28: Axelle | H28: 2003 | I28: 47.1 | J28: Péronne AAEEP | K28: F | L28: 12 | M28: 14 | N28: 15 | O28: 29 | P28: 16 | Q28: 18 | R28: 19 | S28: 37 | T28: 66 | U28: 110.0166243 | V28: 18.9 | X28: =IF(A28="F",(IF(OR(H28>2001,H28<2004),VLOOKUP(I28,Feuil1!$G$11:$H$25,2))),IF(A28="H",(IF(OR(H28>2001,H28<2004),VLOOKUP(I28,Feuil1!$A$11:$F$29,2))))) -> FM48 | Z28: =T28-HLOOKUP(X28,#REF!,2,FALSE) ->  | AA28: =T28-HLOOKUP(X28,#REF!,3,FALSE) ->  | AB28: =T28-HLOOKUP(X28,#REF!,4,FALSE) ->  | AC28: =T28-HLOOKUP(X28,#REF!,5,FALSE) ->  | AD28: =T28-HLOOKUP(X28,#REF!,6,FALSE) ->  | AE28: =T28-HLOOKUP(X28,#REF!,7,FALSE) ->  | AF28: =T28-HLOOKUP(X28,#REF!,8,FALSE) ->  | AG28: =T28-HLOOKUP(X28,#REF!,9,FALSE) -> 
Z29: =T29-HLOOKUP(X29,#REF!,2,FALSE) ->  | AA29: =T29-HLOOKUP(X29,#REF!,3,FALSE) ->  | AB29: =T29-HLOOKUP(X29,#REF!,4,FALSE) ->  | AC29: =T29-HLOOKUP(X29,#REF!,5,FALSE) ->  | AD29: =T29-HLOOKUP(X29,#REF!,6,FALSE) ->  | AE29: =T29-HLOOKUP(X29,#REF!,7,FALSE) ->  | AF29: =T29-HLOOKUP(X29,#REF!,8,FALSE) ->  | AG29: =T29-HLOOKUP(X29,#REF!,9,FALSE) -> 
A30: F | B30: NE | C30: BOU | D30: 1 | E30: 344068 | F30: COMTE | G30: Coralie | H30: 2002 | I30: 51.45 | J30: HC Avallon | K30: F | L30: 36 | M30: 38 | N30: -40 | O30: =IF(MAXA(L30+M30,M30+N30,L30+N30,L30,M30,N30)<=0,0,MAXA(L30+M30,M30+N30,L30+N30,L30,M30,N30)) -> 74 | P30: 44 | Q30: 46 | R30: 48 | S30: =IF(MAXA(P30+Q30,Q30+R30,P30+R30,P30,Q30,R30)<=0,0,MAXA(P30+Q30,Q30+R30,P30+R30,P30,Q30,R30)) -> 94 | T30: =IF(H30="","",IF(OR(O30=0,S30=0),0,O30+S30)) -> 168 | U30: =IF(I30="","",IF(A30="H",10^(0.794358141*LOG(I30/174.393)^2)*T30,IF(A30="F",10^(0.89726074 * LOG(I30/148.026)^2)*T30,""))) -> 259.6008148 | V30: =SUM(T30-I30) -> 116.55 | X30: =IF(A30="F",(IF(OR(H30>2001,H30<2004),VLOOKUP(I30,Feuil1!$G$11:$H$25,2))),IF(A30="H",(IF(OR(H30>2001,H30<2004),VLOOKUP(I30,Feuil1!$A$11:$F$29,2))))) -> FM53 | Z30: =T30-HLOOKUP(X30,#REF!,2,FALSE) ->  | AA30: =T30-HLOOKUP(X30,#REF!,3,FALSE) ->  | AB30: =T30-HLOOKUP(X30,#REF!,4,FALSE) ->  | AC30: =T30-HLOOKUP(X30,#REF!,5,FALSE) ->  | AD30: =T30-HLOOKUP(X30,#REF!,6,FALSE) ->  | AE30: =T30-HLOOKUP(X30,#REF!,7,FALSE) ->  | AF30: =T30-HLOOKUP(X30,#REF!,8,FALSE) ->  | AG30: =T30-HLOOKUP(X30,#REF!,9,FALSE) ->  | AO30: =IF(AG30>=0,$AG$4,IF(AF30>=0,$AF$4,IF(AE30>=0,$AE$4,IF(AD30>=0,$AD$4,IF(AC30>=0,$AC$4,IF(AB30>=0,$AB$4,IF(AA30>=0,$AA$4,IF(Z30>=0,$Z$4,$AH$4)))))))) -> 
A31: F | B31: SEST | C31: RAL | D31: 2 | E31: 352110 | F31: PICOT | G31: Zéline | H31: 2003 | I31: 49.8 | J31: CH Saint Baldoph | K31: F | L31: 30 | M31: 31 | N31: 32 | O31: =IF(MAXA(L31+M31,M31+N31,L31+N31,L31,M31,N31)<=0,0,MAXA(L31+M31,M31+N31,L31+N31,L31,M31,N31)) -> 63 | P31: 40 | Q31: 42 | R31: 44 | S31: =IF(MAXA(P31+Q31,Q31+R31,P31+R31,P31,Q31,R31)<=0,0,MAXA(P31+Q31,Q31+R31,P31+R31,P31,Q31,R31)) -> 86 | T31: =IF(H31="","",IF(OR(O31=0,S31=0),0,O31+S31)) -> 149 | U31: =IF(I31="","",IF(A31="H",10^(0.794358141*LOG(I31/174.393)^2)*T31,IF(A31="F",10^(0.89726074 * LOG(I31/148.026)^2)*T31,""))) -> 236.603824 | V31: =SUM(T31-I31) -> 99.2 | X31: =IF(A31="F",(IF(OR(H31>2001,H31<2004),VLOOKUP(I31,Feuil1!$G$11:$H$25,2))),IF(A31="H",(IF(OR(H31>2001,H31<2004),VLOOKUP(I31,Feuil1!$A$11:$F$29,2))))) -> FM53 | Z31: =T31-HLOOKUP(X31,#REF!,2,FALSE) ->  | AA31: =T31-HLOOKUP(X31,#REF!,3,FALSE) ->  | AB31: =T31-HLOOKUP(X31,#REF!,4,FALSE) ->  | AC31: =T31-HLOOKUP(X31,#REF!,5,FALSE) ->  | AD31: =T31-HLOOKUP(X31,#REF!,6,FALSE) ->  | AE31: =T31-HLOOKUP(X31,#REF!,7,FALSE) ->  | AF31: =T31-HLOOKUP(X31,#REF!,8,FALSE) ->  | AG31: =T31-HLOOKUP(X31,#REF!,9,FALSE) ->  | AO31: =IF(AG31>=0,$AG$4,IF(AF31>=0,$AF$4,IF(AE31>=0,$AE$4,IF(AD31>=0,$AD$4,IF(AC31>=0,$AC$4,IF(AB31>=0,$AB$4,IF(AA31>=0,$AA$4,IF(Z31>=0,$Z$4,$AH$4)))))))) -> 
A32: F | B32: NE | C32: ALS | D32: 3 | E32: 350199 | F32: BAJARD | G32: PERINE | H32: 2003 | I32: 49.7 | J32: Dorlisheim FH | K32: F | L32: 26 | M32: 28 | N32: 30 | O32: =IF(MAXA(L32+M32,M32+N32,L32+N32,L32,M32,N32)<=0,0,MAXA(L32+M32,M32+N32,L32+N32,L32,M32,N32)) -> 58 | P32: 35 | Q32: 37 | R32: -39 | S32: =IF(MAXA(P32+Q32,Q32+R32,P32+R32,P32,Q32,R32)<=0,0,MAXA(P32+Q32,Q32+R32,P32+R32,P32,Q32,R32)) -> 72 | T32: =IF(H32="","",IF(OR(O32=0,S32=0),0,O32+S32)) -> 130 | U32: =IF(I32="","",IF(A32="H",10^(0.794358141*LOG(I32/174.393)^2)*T32,IF(A32="F",10^(0.89726074 * LOG(I32/148.026)^2)*T32,""))) -> 206.785779 | V32: =SUM(T32-I32) -> 80.3 | X32: =IF(A32="F",(IF(OR(H32>2001,H32<2004),VLOOKUP(I32,Feuil1!$G$11:$H$25,2))),IF(A32="H",(IF(OR(H32>2001,H32<2004),VLOOKUP(I32,Feuil1!$A$11:$F$29,2))))) -> FM53 | Z32: =T32-HLOOKUP(X32,#REF!,2,FALSE) ->  | AA32: =T32-HLOOKUP(X32,#REF!,3,FALSE) ->  | AB32: =T32-HLOOKUP(X32,#REF!,4,FALSE) ->  | AC32: =T32-HLOOKUP(X32,#REF!,5,FALSE) ->  | AD32: =T32-HLOOKUP(X32,#REF!,6,FALSE) ->  | AE32: =T32-HLOOKUP(X32,#REF!,7,FALSE) ->  | AF32: =T32-HLOOKUP(X32,#REF!,8,FALSE) ->  | AG32: =T32-HLOOKUP(X32,#REF!,9,FALSE) ->  | AO32: =IF(AG32>=0,$AG$4,IF(AF32>=0,$AF$4,IF(AE32>=0,$AE$4,IF(AD32>=0,$AD$4,IF(AC32>=0,$AC$4,IF(AB32>=0,$AB$4,IF(AA32>=0,$AA$4,IF(Z32>=0,$Z$4,$AH$4)))))))) -> 
A33: F | B33: NORD | C33: PIC | D33: 4 | E33: 380663 | F33: VAN MALLEGHEM | G33: Charlotte | H33: 2002 | I33: 50.76 | J33: Roisel CHFM | K33: F | L33: 10 | M33: 12 | N33: 14 | O33: =IF(MAXA(L33+M33,M33+N33,L33+N33,L33,M33,N33)<=0,0,MAXA(L33+M33,M33+N33,L33+N33,L33,M33,N33)) -> 26 | P33: 15 | Q33: 17 | R33: 19 | S33: =IF(MAXA(P33+Q33,Q33+R33,P33+R33,P33,Q33,R33)<=0,0,MAXA(P33+Q33,Q33+R33,P33+R33,P33,Q33,R33)) -> 36 | T33: =IF(H33="","",IF(OR(O33=0,S33=0),0,O33+S33)) -> 62 | U33: =IF(I33="","",IF(A33="H",10^(0.794358141*LOG(I33/174.393)^2)*T33,IF(A33="F",10^(0.89726074 * LOG(I33/148.026)^2)*T33,""))) -> 96.88325237 | V33: =SUM(T33-I33) -> 11.24 | X33: =IF(A33="F",(IF(OR(H33>2001,H33<2004),VLOOKUP(I33,Feuil1!$G$11:$H$25,2))),IF(A33="H",(IF(OR(H33>2001,H33<2004),VLOOKUP(I33,Feuil1!$A$11:$F$29,2))))) -> FM53 | Z33: =T33-HLOOKUP(X33,#REF!,2,FALSE) ->  | AA33: =T33-HLOOKUP(X33,#REF!,3,FALSE) ->  | AB33: =T33-HLOOKUP(X33,#REF!,4,FALSE) ->  | AC33: =T33-HLOOKUP(X33,#REF!,5,FALSE) ->  | AD33: =T33-HLOOKUP(X33,#REF!,6,FALSE) ->  | AE33: =T33-HLOOKUP(X33,#REF!,7,FALSE) ->  | AF33: =T33-HLOOKUP(X33,#REF!,8,FALSE) ->  | AG33: =T33-HLOOKUP(X33,#REF!,9,FALSE) ->  | AO33: =IF(AG33>=0,$AG$4,IF(AF33>=0,$AF$4,IF(AE33>=0,$AE$4,IF(AD33>=0,$AD$4,IF(AC33>=0,$AC$4,IF(AB33>=0,$AB$4,IF(AA33>=0,$AA$4,IF(Z33>=0,$Z$4,$AH$4)))))))) -> 
A34: F | B34: SO | C34: MPY | D34: 5 | E34: 378621 | F34: HOUZE | G34: Mandy | H34: 2002 | I34: 51.7 | J34: FIGEAC HC | K34: F | L34: 7 | M34: 8 | N34: 9 | O34: =IF(MAXA(L34+M34,M34+N34,L34+N34,L34,M34,N34)<=0,0,MAXA(L34+M34,M34+N34,L34+N34,L34,M34,N34)) -> 17 | P34: 12 | Q34: 14 | R34: 16 | S34: =IF(MAXA(P34+Q34,Q34+R34,P34+R34,P34,Q34,R34)<=0,0,MAXA(P34+Q34,Q34+R34,P34+R34,P34,Q34,R34)) -> 30 | T34: =IF(H34="","",IF(OR(O34=0,S34=0),0,O34+S34)) -> 47 | U34: =IF(I34="","",IF(A34="H",10^(0.794358141*LOG(I34/174.393)^2)*T34,IF(A34="F",10^(0.89726074 * LOG(I34/148.026)^2)*T34,""))) -> 72.33771565 | V34: =SUM(T34-I34) -> -4.7 | X34: =IF(A34="F",(IF(OR(H34>2001,H34<2004),VLOOKUP(I34,Feuil1!$G$11:$H$25,2))),IF(A34="H",(IF(OR(H34>2001,H34<2004),VLOOKUP(I34,Feuil1!$A$11:$F$29,2))))) -> FM53 | Z34: =T34-HLOOKUP(X34,#REF!,2,FALSE) ->  | AA34: =T34-HLOOKUP(X34,#REF!,3,FALSE) ->  | AB34: =T34-HLOOKUP(X34,#REF!,4,FALSE) ->  | AC34: =T34-HLOOKUP(X34,#REF!,5,FALSE) ->  | AD34: =T34-HLOOKUP(X34,#REF!,6,FALSE) ->  | AE34: =T34-HLOOKUP(X34,#REF!,7,FALSE) ->  | AF34: =T34-HLOOKUP(X34,#REF!,8,FALSE) ->  | AG34: =T34-HLOOKUP(X34,#REF!,9,FALSE) ->  | AO34: =IF(AG34>=0,$AG$4,IF(AF34>=0,$AF$4,IF(AE34>=0,$AE$4,IF(AD34>=0,$AD$4,IF(AC34>=0,$AC$4,IF(AB34>=0,$AB$4,IF(AA34>=0,$AA$4,IF(Z34>=0,$Z$4,$AH$4)))))))) -> 
Z35: =T35-HLOOKUP(X35,#REF!,2,FALSE) ->  | AA35: =T35-HLOOKUP(X35,#REF!,3,FALSE) ->  | AB35: =T35-HLOOKUP(X35,#REF!,4,FALSE) ->  | AC35: =T35-HLOOKUP(X35,#REF!,5,FALSE) ->  | AD35: =T35-HLOOKUP(X35,#REF!,6,FALSE) ->  | AE35: =T35-HLOOKUP(X35,#REF!,7,FALSE) ->  | AF35: =T35-HLOOKUP(X35,#REF!,8,FALSE) ->  | AG35: =T35-HLOOKUP(X35,#REF!,9,FALSE) -> 
A36: F | B36: CO | C36: BRE | D36: 1 | E36: 357283 | F36: BEGHAIN | G36: Mayliss | H36: 2002 | I36: 55.15 | J36: AL QUIMPER | K36: F | L36: 29 | M36: 31 | N36: -32 | O36: =IF(MAXA(L36+M36,M36+N36,L36+N36,L36,M36,N36)<=0,0,MAXA(L36+M36,M36+N36,L36+N36,L36,M36,N36)) -> 60 | P36: 37 | Q36: 39 | R36: -40 | S36: =IF(MAXA(P36+Q36,Q36+R36,P36+R36,P36,Q36,R36)<=0,0,MAXA(P36+Q36,Q36+R36,P36+R36,P36,Q36,R36)) -> 76 | T36: =IF(H36="","",IF(OR(O36=0,S36=0),0,O36+S36)) -> 136 | U36: =IF(I36="","",IF(A36="H",10^(0.794358141*LOG(I36/174.393)^2)*T36,IF(A36="F",10^(0.89726074 * LOG(I36/148.026)^2)*T36,""))) -> 198.8437555 | V36: =SUM(T36-I36) -> 80.85 | X36: =IF(A36="F",(IF(OR(H36>2001,H36<2004),VLOOKUP(I36,Feuil1!$G$11:$H$25,2))),IF(A36="H",(IF(OR(H36>2001,H36<2004),VLOOKUP(I36,Feuil1!$A$11:$F$29,2))))) -> FM58 | Z36: =T36-HLOOKUP(X36,#REF!,2,FALSE) ->  | AA36: =T36-HLOOKUP(X36,#REF!,3,FALSE) ->  | AB36: =T36-HLOOKUP(X36,#REF!,4,FALSE) ->  | AC36: =T36-HLOOKUP(X36,#REF!,5,FALSE) ->  | AD36: =T36-HLOOKUP(X36,#REF!,6,FALSE) ->  | AE36: =T36-HLOOKUP(X36,#REF!,7,FALSE) ->  | AF36: =T36-HLOOKUP(X36,#REF!,8,FALSE) ->  | AG36: =T36-HLOOKUP(X36,#REF!,9,FALSE) ->  | AO36: =IF(AG36>=0,$AG$4,IF(AF36>=0,$AF$4,IF(AE36>=0,$AE$4,IF(AD36>=0,$AD$4,IF(AC36>=0,$AC$4,IF(AB36>=0,$AB$4,IF(AA36>=0,$AA$4,IF(Z36>=0,$Z$4,$AH$4)))))))) -> 
A37: F | B37: NORD | C37: NPC | D37: 2 | E37: 390782 | F37: BAUQUEL | G37: Aurélia | H37: 2003 | I37: 55.8 | J37: C.A.ROSENDAEL | K37: F | L37: 17 | M37: 19 | N37: 21 | O37: =IF(MAXA(L37+M37,M37+N37,L37+N37,L37,M37,N37)<=0,0,MAXA(L37+M37,M37+N37,L37+N37,L37,M37,N37)) -> 40 | P37: 27 | Q37: 29 | R37: 31 | S37: =IF(MAXA(P37+Q37,Q37+R37,P37+R37,P37,Q37,R37)<=0,0,MAXA(P37+Q37,Q37+R37,P37+R37,P37,Q37,R37)) -> 60 | T37: =IF(H37="","",IF(OR(O37=0,S37=0),0,O37+S37)) -> 100 | U37: =IF(I37="","",IF(A37="H",10^(0.794358141*LOG(I37/174.393)^2)*T37,IF(A37="F",10^(0.89726074 * LOG(I37/148.026)^2)*T37,""))) -> 144.9040945 | V37: =SUM(T37-I37) -> 44.2 | X37: =IF(A37="F",(IF(OR(H37>2001,H37<2004),VLOOKUP(I37,Feuil1!$G$11:$H$25,2))),IF(A37="H",(IF(OR(H37>2001,H37<2004),VLOOKUP(I37,Feuil1!$A$11:$F$29,2))))) -> FM58 | Z37: =T37-HLOOKUP(X37,#REF!,2,FALSE) ->  | AA37: =T37-HLOOKUP(X37,#REF!,3,FALSE) ->  | AB37: =T37-HLOOKUP(X37,#REF!,4,FALSE) ->  | AC37: =T37-HLOOKUP(X37,#REF!,5,FALSE) ->  | AD37: =T37-HLOOKUP(X37,#REF!,6,FALSE) ->  | AE37: =T37-HLOOKUP(X37,#REF!,7,FALSE) ->  | AF37: =T37-HLOOKUP(X37,#REF!,8,FALSE) ->  | AG37: =T37-HLOOKUP(X37,#REF!,9,FALSE) ->  | AO37: =IF(AG37>=0,$AG$4,IF(AF37>=0,$AF$4,IF(AE37>=0,$AE$4,IF(AD37>=0,$AD$4,IF(AC37>=0,$AC$4,IF(AB37>=0,$AB$4,IF(AA37>=0,$AA$4,IF(Z37>=0,$Z$4,$AH$4)))))))) -> 
A38: F | B38: SE | C38: LAN | D38: 3 | E38: 375101 | F38: TORRAYSI | G38: Souhaid | H38: 2003 | I38: 55.2 | J38: Narbonne Haltéro | K38: F | L38: 14 | M38: 16 | N38: -18 | O38: =IF(MAXA(L38+M38,M38+N38,L38+N38,L38,M38,N38)<=0,0,MAXA(L38+M38,M38+N38,L38+N38,L38,M38,N38)) -> 30 | P38: 24 | Q38: 26 | R38: 28 | S38: =IF(MAXA(P38+Q38,Q38+R38,P38+R38,P38,Q38,R38)<=0,0,MAXA(P38+Q38,Q38+R38,P38+R38,P38,Q38,R38)) -> 54 | T38: =IF(H38="","",IF(OR(O38=0,S38=0),0,O38+S38)) -> 84 | U38: =IF(I38="","",IF(A38="H",10^(0.794358141*LOG(I38/174.393)^2)*T38,IF(A38="F",10^(0.89726074 * LOG(I38/148.026)^2)*T38,""))) -> 122.72969 | V38: =SUM(T38-I38) -> 28.8 | X38: =IF(A38="F",(IF(OR(H38>2001,H38<2004),VLOOKUP(I38,Feuil1!$G$11:$H$25,2))),IF(A38="H",(IF(OR(H38>2001,H38<2004),VLOOKUP(I38,Feuil1!$A$11:$F$29,2))))) -> FM58 | Z38: =T38-HLOOKUP(X38,#REF!,2,FALSE) ->  | AA38: =T38-HLOOKUP(X38,#REF!,3,FALSE) ->  | AB38: =T38-HLOOKUP(X38,#REF!,4,FALSE) ->  | AC38: =T38-HLOOKUP(X38,#REF!,5,FALSE) ->  | AD38: =T38-HLOOKUP(X38,#REF!,6,FALSE) ->  | AE38: =T38-HLOOKUP(X38,#REF!,7,FALSE) ->  | AF38: =T38-HLOOKUP(X38,#REF!,8,FALSE) ->  | AG38: =T38-HLOOKUP(X38,#REF!,9,FALSE) ->  | AO38: =IF(AG38>=0,$AG$4,IF(AF38>=0,$AF$4,IF(AE38>=0,$AE$4,IF(AD38>=0,$AD$4,IF(AC38>=0,$AC$4,IF(AB38>=0,$AB$4,IF(AA38>=0,$AA$4,IF(Z38>=0,$Z$4,$AH$4)))))))) -> 
Z39: =T39-HLOOKUP(X39,#REF!,2,FALSE) ->  | AA39: =T39-HLOOKUP(X39,#REF!,3,FALSE) ->  | AB39: =T39-HLOOKUP(X39,#REF!,4,FALSE) ->  | AC39: =T39-HLOOKUP(X39,#REF!,5,FALSE) ->  | AD39: =T39-HLOOKUP(X39,#REF!,6,FALSE) ->  | AE39: =T39-HLOOKUP(X39,#REF!,7,FALSE) ->  | AF39: =T39-HLOOKUP(X39,#REF!,8,FALSE) ->  | AG39: =T39-HLOOKUP(X39,#REF!,9,FALSE) -> 
A40: F | B40: N | C40: IDF | D40: 1 | E40: 378747 | F40: REZZAK | G40: AMELLE | H40: 2002 | I40: 61.9 | J40: FRANCONVILLE | K40: F | L40: 19 | M40: 21 | N40: 23 | O40: =IF(MAXA(L40+M40,M40+N40,L40+N40,L40,M40,N40)<=0,0,MAXA(L40+M40,M40+N40,L40+N40,L40,M40,N40)) -> 44 | P40: 28 | Q40: 30 | R40: 32 | S40: =IF(MAXA(P40+Q40,Q40+R40,P40+R40,P40,Q40,R40)<=0,0,MAXA(P40+Q40,Q40+R40,P40+R40,P40,Q40,R40)) -> 62 | T40: =IF(H40="","",IF(OR(O40=0,S40=0),0,O40+S40)) -> 106 | U40: =IF(I40="","",IF(A40="H",10^(0.794358141*LOG(I40/174.393)^2)*T40,IF(A40="F",10^(0.89726074 * LOG(I40/148.026)^2)*T40,""))) -> 142.5442044 | V40: =SUM(T40-I40) -> 44.1 | X40: =IF(A40="F",(IF(OR(H40>2001,H40<2004),VLOOKUP(I40,Feuil1!$G$11:$H$25,2))),IF(A40="H",(IF(OR(H40>2001,H40<2004),VLOOKUP(I40,Feuil1!$A$11:$F$29,2))))) -> FM+58 | Z40: =T40-HLOOKUP(X40,#REF!,2,FALSE) ->  | AA40: =T40-HLOOKUP(X40,#REF!,3,FALSE) ->  | AB40: =T40-HLOOKUP(X40,#REF!,4,FALSE) ->  | AC40: =T40-HLOOKUP(X40,#REF!,5,FALSE) ->  | AD40: =T40-HLOOKUP(X40,#REF!,6,FALSE) ->  | AE40: =T40-HLOOKUP(X40,#REF!,7,FALSE) ->  | AF40: =T40-HLOOKUP(X40,#REF!,8,FALSE) ->  | AG40: =T40-HLOOKUP(X40,#REF!,9,FALSE) ->  | AO40: =IF(AG40>=0,$AG$4,IF(AF40>=0,$AF$4,IF(AE40>=0,$AE$4,IF(AD40>=0,$AD$4,IF(AC40>=0,$AC$4,IF(AB40>=0,$AB$4,IF(AA40>=0,$AA$4,IF(Z40>=0,$Z$4,$AH$4)))))))) -> 
A41: F | B41: SE | C41: PRO | D41: 2 | E41: 361672 | F41: BOURGEOIS | G41: Clara | H41: 2002 | I41: 60.3 | J41: ISTRES SPORTS | K41: F | L41: 18 | M41: 20 | N41: 22 | O41: =IF(MAXA(L41+M41,M41+N41,L41+N41,L41,M41,N41)<=0,0,MAXA(L41+M41,M41+N41,L41+N41,L41,M41,N41)) -> 42 | P41: 27 | Q41: 29 | R41: 31 | S41: =IF(MAXA(P41+Q41,Q41+R41,P41+R41,P41,Q41,R41)<=0,0,MAXA(P41+Q41,Q41+R41,P41+R41,P41,Q41,R41)) -> 60 | T41: =IF(H41="","",IF(OR(O41=0,S41=0),0,O41+S41)) -> 102 | U41: =IF(I41="","",IF(A41="H",10^(0.794358141*LOG(I41/174.393)^2)*T41,IF(A41="F",10^(0.89726074 * LOG(I41/148.026)^2)*T41,""))) -> 139.6651371 | V41: =SUM(T41-I41) -> 41.7 | X41: =IF(A41="F",(IF(OR(H41>2001,H41<2004),VLOOKUP(I41,Feuil1!$G$11:$H$25,2))),IF(A41="H",(IF(OR(H41>2001,H41<2004),VLOOKUP(I41,Feuil1!$A$11:$F$29,2))))) -> FM+58 | Z41: =T41-HLOOKUP(X41,#REF!,2,FALSE) ->  | AA41: =T41-HLOOKUP(X41,#REF!,3,FALSE) ->  | AB41: =T41-HLOOKUP(X41,#REF!,4,FALSE) ->  | AC41: =T41-HLOOKUP(X41,#REF!,5,FALSE) ->  | AD41: =T41-HLOOKUP(X41,#REF!,6,FALSE) ->  | AE41: =T41-HLOOKUP(X41,#REF!,7,FALSE) ->  | AF41: =T41-HLOOKUP(X41,#REF!,8,FALSE) ->  | AG41: =T41-HLOOKUP(X41,#REF!,9,FALSE) ->  | AO41: =IF(AG41>=0,$AG$4,IF(AF41>=0,$AF$4,IF(AE41>=0,$AE$4,IF(AD41>=0,$AD$4,IF(AC41>=0,$AC$4,IF(AB41>=0,$AB$4,IF(AA41>=0,$AA$4,IF(Z41>=0,$Z$4,$AH$4)))))))) -> 
A42: F | B42: CO | C42: BRE | D42: 3 | E42: 387354 | F42: ABREUVEUX | G42: Méline | H42: 2002 | I42: 58.3 | J42: ES Saint-Avé | K42: F | L42: 17 | M42: -18 | N42: 18 | O42: =IF(MAXA(L42+M42,M42+N42,L42+N42,L42,M42,N42)<=0,0,MAXA(L42+M42,M42+N42,L42+N42,L42,M42,N42)) -> 35 | P42: 24 | Q42: 25 | R42: 27 | S42: =IF(MAXA(P42+Q42,Q42+R42,P42+R42,P42,Q42,R42)<=0,0,MAXA(P42+Q42,Q42+R42,P42+R42,P42,Q42,R42)) -> 52 | T42: =IF(H42="","",IF(OR(O42=0,S42=0),0,O42+S42)) -> 87 | U42: =IF(I42="","",IF(A42="H",10^(0.794358141*LOG(I42/174.393)^2)*T42,IF(A42="F",10^(0.89726074 * LOG(I42/148.026)^2)*T42,""))) -> 122.0259803 | V42: =SUM(T42-I42) -> 28.7 | X42: =IF(A42="F",(IF(OR(H42>2001,H42<2004),VLOOKUP(I42,Feuil1!$G$11:$H$25,2))),IF(A42="H",(IF(OR(H42>2001,H42<2004),VLOOKUP(I42,Feuil1!$A$11:$F$29,2))))) -> FM+58 | Z42: =T42-HLOOKUP(X42,#REF!,2,FALSE) ->  | AA42: =T42-HLOOKUP(X42,#REF!,3,FALSE) ->  | AB42: =T42-HLOOKUP(X42,#REF!,4,FALSE) ->  | AC42: =T42-HLOOKUP(X42,#REF!,5,FALSE) ->  | AD42: =T42-HLOOKUP(X42,#REF!,6,FALSE) ->  | AE42: =T42-HLOOKUP(X42,#REF!,7,FALSE) ->  | AF42: =T42-HLOOKUP(X42,#REF!,8,FALSE) ->  | AG42: =T42-HLOOKUP(X42,#REF!,9,FALSE) ->  | AO42: =IF(AG42>=0,$AG$4,IF(AF42>=0,$AF$4,IF(AE42>=0,$AE$4,IF(AD42>=0,$AD$4,IF(AC42>=0,$AC$4,IF(AB42>=0,$AB$4,IF(AA42>=0,$AA$4,IF(Z42>=0,$Z$4,$AH$4)))))))) -> 
A43: F | B43: CO | C43: HNO | D43: 4 | E43: 361094 | F43: GALHAUT | G43: Lucie | H43: 2003 | I43: 69.5 | J43: CHM Le Trait | K43: F | L43: 8 | M43: 10 | N43: 12 | O43: =IF(MAXA(L43+M43,M43+N43,L43+N43,L43,M43,N43)<=0,0,MAXA(L43+M43,M43+N43,L43+N43,L43,M43,N43)) -> 22 | P43: 15 | Q43: 17 | R43: 19 | S43: =IF(MAXA(P43+Q43,Q43+R43,P43+R43,P43,Q43,R43)<=0,0,MAXA(P43+Q43,Q43+R43,P43+R43,P43,Q43,R43)) -> 36 | T43: =IF(H43="","",IF(OR(O43=0,S43=0),0,O43+S43)) -> 58 | U43: =IF(I43="","",IF(A43="H",10^(0.794358141*LOG(I43/174.393)^2)*T43,IF(A43="F",10^(0.89726074 * LOG(I43/148.026)^2)*T43,""))) -> 72.47144137 | V43: =SUM(T43-I43) -> -11.5 | X43: =IF(A43="F",(IF(OR(H43>2001,H43<2004),VLOOKUP(I43,Feuil1!$G$11:$H$25,2))),IF(A43="H",(IF(OR(H43>2001,H43<2004),VLOOKUP(I43,Feuil1!$A$11:$F$29,2))))) -> FM+58 | Z43: =T43-HLOOKUP(X43,#REF!,2,FALSE) ->  | AA43: =T43-HLOOKUP(X43,#REF!,3,FALSE) ->  | AB43: =T43-HLOOKUP(X43,#REF!,4,FALSE) ->  | AC43: =T43-HLOOKUP(X43,#REF!,5,FALSE) ->  | AD43: =T43-HLOOKUP(X43,#REF!,6,FALSE) ->  | AE43: =T43-HLOOKUP(X43,#REF!,7,FALSE) ->  | AF43: =T43-HLOOKUP(X43,#REF!,8,FALSE) ->  | AG43: =T43-HLOOKUP(X43,#REF!,9,FALSE) ->  | AO43: =IF(AG43>=0,$AG$4,IF(AF43>=0,$AF$4,IF(AE43>=0,$AE$4,IF(AD43>=0,$AD$4,IF(AC43>=0,$AC$4,IF(AB43>=0,$AB$4,IF(AA43>=0,$AA$4,IF(Z43>=0,$Z$4,$AH$4)))))))) -> 
Z44: =T44-HLOOKUP(X44,#REF!,2,FALSE) ->  | AA44: =T44-HLOOKUP(X44,#REF!,3,FALSE) ->  | AB44: =T44-HLOOKUP(X44,#REF!,4,FALSE) ->  | AC44: =T44-HLOOKUP(X44,#REF!,5,FALSE) ->  | AD44: =T44-HLOOKUP(X44,#REF!,6,FALSE) ->  | AE44: =T44-HLOOKUP(X44,#REF!,7,FALSE) ->  | AF44: =T44-HLOOKUP(X44,#REF!,8,FALSE) ->  | AG44: =T44-HLOOKUP(X44,#REF!,9,FALSE) -> 
Y544: J69 | Z544: J77 | AA544: J85 | AB544: J94 | AC544: J105 | AD544: J+105 | AF544: J56 | AG544: J62 | AH544: J69 | AI544: J77 | AJ544: J85 | AK544: J94 | AL544: J105 | AM544: J+105 | AO544: S56 | AP544: S62 | AQ544: S69 | AR544: S77 | AS544: S85 | AT544: S94 | AU544: S105 | AV544: S+105
Y545: 130 | Z545: 145 | AA545: 160 | AB545: 170 | AC545: 180 | AD545: 190 | AF545: 100 | AG545: 115 | AH545: 130 | AI545: 145 | AJ545: 160 | AK545: 170 | AL545: 180 | AM545: 190 | AO545: 115 | AP545: 135 | AQ545: 150 | AR545: 165 | AS545: 180 | AT545: 190 | AU545: 200 | AV545: 210
Y546: 150 | Z546: 165 | AA546: 180 | AB546: 190 | AC546: 200 | AD546: 210 | AF546: 115 | AG546: 135 | AH546: 150 | AI546: 165 | AJ546: 180 | AK546: 190 | AL546: 200 | AM546: 210 | AO546: 130 | AP546: 150 | AQ546: 165 | AR546: 185 | AS546: 200 | AT546: 210 | AU546: 220 | AV546: 230
Y547: 165 | Z547: 185 | AA547: 200 | AB547: 210 | AC547: 220 | AD547: 230 | AF547: 130 | AG547: 150 | AH547: 165 | AI547: 185 | AJ547: 200 | AK547: 210 | AL547: 220 | AM547: 230 | AO547: 145 | AP547: 165 | AQ547: 180 | AR547: 200 | AS547: 220 | AT547: 230 | AU547: 240 | AV547: 250
Y548: 180 | Z548: 200 | AA548: 220 | AB548: 230 | AC548: 240 | AD548: 250 | AF548: 145 | AG548: 165 | AH548: 180 | AI548: 200 | AJ548: 220 | AK548: 230 | AL548: 240 | AM548: 250 | AO548: 175 | AP548: 195 | AQ548: 215 | AR548: 235 | AS548: 250 | AT548: 260 | AU548: 275 | AV548: 280
Y549: 215 | Z549: 235 | AA549: 250 | AB549: 260 | AC549: 275 | AD549: 280 | AF549: 175 | AG549: 195 | AH549: 215 | AI549: 235 | AJ549: 250 | AK549: 260 | AL549: 275 | AM549: 280 | AO549: 210 | AP549: 230 | AQ549: 250 | AR549: 270 | AS549: 290 | AT549: 300 | AU549: 310 | AV549: 325
Y550: 250 | Z550: 270 | AA550: 290 | AB550: 300 | AC550: 310 | AD550: 325 | AF550: 210 | AG550: 230 | AH550: 250 | AI550: 270 | AJ550: 290 | AK550: 300 | AL550: 310 | AM550: 325 | AO550: 230 | AP550: 255 | AQ550: 275 | AR550: 300 | AS550: 315 | AT550: 335 | AU550: 345 | AV550: 355
Y551: 295 | Z551: 320 | AA551: 335 | AB551: 355 | AC551: 370 | AD551: 380 | AF551: 245 | AG551: 270 | AH551: 295 | AI551: 320 | AJ551: 335 | AK551: 355 | AL551: 370 | AM551: 380 | AO551: 245 | AP551: 270 | AQ551: 295 | AR551: 320 | AS551: 335 | AT551: 355 | AU551: 370 | AV551: 380

Sheet MINIMES GARCONS
D1: LISTING NATIONAL | G1: MINIMES GARCONS | Q1: DATE : | S1: 2015-03-08
L2: 2° TRIMESTRE
A4: SEXE | B4: ZONE | C4: REG. | D4: Place | E4: LICENCE | F4: NOMS | G4: Prénoms | H4: AN | I4: POIDS | J4: CLUB | K4: NAT | L4: 1 | M4: 2 | N4: 3 | O4: ARR | P4: 1 | Q4: 2 | R4: 3 | S4: EP-J | T4: TOTAL | U4: IWF | V4: Points | X4: Catég | Z4: DEP + | AA4: REG + | AB4: IRG + | AC4: FED + | AD4: NAT + | AE4: INTB + | AF4: INTA + | AG4: OLY + | AH4: NCL
Z5: =T5-HLOOKUP(X5,#REF!,2,FALSE) ->  | AA5: =T5-HLOOKUP(X5,#REF!,3,FALSE) ->  | AB5: =T5-HLOOKUP(X5,#REF!,4,FALSE) ->  | AC5: =T5-HLOOKUP(X5,#REF!,5,FALSE) ->  | AD5: =T5-HLOOKUP(X5,#REF!,6,FALSE) ->  | AE5: =T5-HLOOKUP(X5,#REF!,7,FALSE) ->  | AF5: =T5-HLOOKUP(X5,#REF!,8,FALSE) ->  | AG5: =T5-HLOOKUP(X5,#REF!,9,FALSE) ->  | AO5: =IF(AG5>=0,$AG$4,IF(AF5>=0,$AF$4,IF(AE5>=0,$AE$4,IF(AD5>=0,$AD$4,IF(AC5>=0,$AC$4,IF(AB5>=0,$AB$4,IF(AA5>=0,$AA$4,IF(Z5>=0,$Z$4,$AH$4)))))))) -> 
A6: H | B6: CO | C6: PDL | D6: 1 | E6: 355921 | F6: COGNON | G6: Théo | H6: 2002 | I6: 40 | J6: CJF LAVAL - VOUTRÉ | K6: F | L6: 36 | M6: 38 | N6: 40 | O6: =IF(MAXA(L6+M6,M6+N6,L6+N6,L6,M6,N6)<=0,0,MAXA(L6+M6,M6+N6,L6+N6,L6,M6,N6)) -> 78 | P6: 46 | Q6: 48 | R6: 50 | S6: =IF(MAXA(P6+Q6,Q6+R6,P6+R6,P6,Q6,R6)<=0,0,MAXA(P6+Q6,Q6+R6,P6+R6,P6,Q6,R6)) -> 98 | T6: =IF(H6="","",IF(OR(O6=0,S6=0),0,O6+S6)) -> 176 | U6: =IF(I6="","",IF(A6="H",10^(0.794358141*LOG(I6/174.393)^2)*T6,IF(A6="F",10^(0.89726074 * LOG(I6/148.026)^2)*T6,""))) -> 371.8280382 | V6: =SUM(T6-I6) -> 136 | X6: =IF(A6="F",(IF(OR(H6>2001,H6<2004),VLOOKUP(I6,Feuil1!$G$11:$H$25,2))),IF(A6="H",(IF(OR(H6>2001,H6<2004),VLOOKUP(I6,Feuil1!$A$11:$F$29,2))))) -> M40 | Z6: =T6-HLOOKUP(X6,#REF!,2,FALSE) ->  | AA6: =T6-HLOOKUP(X6,#REF!,3,FALSE) ->  | AB6: =T6-HLOOKUP(X6,#REF!,4,FALSE) ->  | AC6: =T6-HLOOKUP(X6,#REF!,5,FALSE) ->  | AD6: =T6-HLOOKUP(X6,#REF!,6,FALSE) ->  | AE6: =T6-HLOOKUP(X6,#REF!,7,FALSE) ->  | AF6: =T6-HLOOKUP(X6,#REF!,8,FALSE) ->  | AG6: =T6-HLOOKUP(X6,#REF!,9,FALSE) ->  | AO6: =IF(AG6>=0,$AG$4,IF(AF6>=0,$AF$4,IF(AE6>=0,$AE$4,IF(AD6>=0,$AD$4,IF(AC6>=0,$AC$4,IF(AB6>=0,$AB$4,IF(AA6>=0,$AA$4,IF(Z6>=0,$Z$4,$AH$4)))))))) -> 
A7: H | B7: NORD | C7: NPC | D7: 2 | E7: 248952 | F7: BUYSSCHAERT | G7: Tristan | H7: 2003 | I7: 35.1 | J7: CHCD COMINES | K7: F | L7: 30 | M7: 32 | N7: -34 | O7: 62 | P7: 40 | Q7: 42 | R7: -44 | S7: 82 | T7: 144 | U7: 349.46825 | V7: 108.9 | X7: =IF(A7="F",(IF(OR(H7>2001,H7<2004),VLOOKUP(I7,Feuil1!$G$11:$H$25,2))),IF(A7="H",(IF(OR(H7>2001,H7<2004),VLOOKUP(I7,Feuil1!$A$11:$F$29,2))))) -> M40 | Z7: =T7-HLOOKUP(X7,#REF!,2,FALSE) ->  | AA7: =T7-HLOOKUP(X7,#REF!,3,FALSE) ->  | AB7: =T7-HLOOKUP(X7,#REF!,4,FALSE) ->  | AC7: =T7-HLOOKUP(X7,#REF!,5,FALSE) ->  | AD7: =T7-HLOOKUP(X7,#REF!,6,FALSE) ->  | AE7: =T7-HLOOKUP(X7,#REF!,7,FALSE) ->  | AF7: =T7-HLOOKUP(X7,#REF!,8,FALSE) ->  | AG7: =T7-HLOOKUP(X7,#REF!,9,FALSE) -> 
A8: H | B8: CO | C8: BRE | D8: 3 | E8: 355330 | F8: OLLIVIER | G8: Leny | H8: 2003 | I8: 35.8 | J8: AL QUIMPER | K8: F | L8: -26 | M8: 26 | N8: 28 | O8: 54 | P8: 35 | Q8: 37 | R8: 38 | S8: 75 | T8: 129 | U8: 306.3427163 | V8: 93.2 | X8: =IF(A8="F",(IF(OR(H8>2001,H8<2004),VLOOKUP(I8,Feuil1!$G$11:$H$25,2))),IF(A8="H",(IF(OR(H8>2001,H8<2004),VLOOKUP(I8,Feuil1!$A$11:$F$29,2))))) -> M40 | Z8: =T8-HLOOKUP(X8,#REF!,2,FALSE) ->  | AA8: =T8-HLOOKUP(X8,#REF!,3,FALSE) ->  | AB8: =T8-HLOOKUP(X8,#REF!,4,FALSE) ->  | AC8: =T8-HLOOKUP(X8,#REF!,5,FALSE) ->  | AD8: =T8-HLOOKUP(X8,#REF!,6,FALSE) ->  | AE8: =T8-HLOOKUP(X8,#REF!,7,FALSE) ->  | AF8: =T8-HLOOKUP(X8,#REF!,8,FALSE) ->  | AG8: =T8-HLOOKUP(X8,#REF!,9,FALSE) -> 
A9: H | B9: SEST | C9: RAL | D9: 4 | E9: 359944 | F9: CHABERT | G9: Lucas | H9: 2003 | I9: 38.5 | J9: La Ricamarie | K9: F | L9: 24 | M9: 26 | N9: 28 | O9: 54 | P9: 32 | Q9: -34 | R9: 34 | S9: 66 | T9: 120 | U9: 263.6898158 | V9: 81.5 | X9: =IF(A9="F",(IF(OR(H9>2001,H9<2004),VLOOKUP(I9,Feuil1!$G$11:$H$25,2))),IF(A9="H",(IF(OR(H9>2001,H9<2004),VLOOKUP(I9,Feuil1!$A$11:$F$29,2))))) -> M40 | Z9: =T9-HLOOKUP(X9,#REF!,2,FALSE) ->  | AA9: =T9-HLOOKUP(X9,#REF!,3,FALSE) ->  | AB9: =T9-HLOOKUP(X9,#REF!,4,FALSE) ->  | AC9: =T9-HLOOKUP(X9,#REF!,5,FALSE) ->  | AD9: =T9-HLOOKUP(X9,#REF!,6,FALSE) ->  | AE9: =T9-HLOOKUP(X9,#REF!,7,FALSE) ->  | AF9: =T9-HLOOKUP(X9,#REF!,8,FALSE) ->  | AG9: =T9-HLOOKUP(X9,#REF!,9,FALSE) -> 
A10: H | B10: SO | C10: MPY | D10: 5 | E10: 378627 | F10: VALEAN | G10: Andrei | H10: 2003 | I10: 39.9 | J10: FIGEAC HC | K10: R | L10: 23 | M10: 25 | N10: 27 | O10: 52 | P10: 31 | Q10: 33 | R10: 35 | S10: 68 | T10: 120 | U10: 254.1651903 | V10: 80.1 | X10: =IF(A10="F",(IF(OR(H10>2001,H10<2004),VLOOKUP(I10,Feuil1!$G$11:$H$25,2))),IF(A10="H",(IF(OR(H10>2001,H10<2004),VLOOKUP(I10,Feuil1!$A$11:$F$29,2))))) -> M40 | Z10: =T10-HLOOKUP(X10,#REF!,2,FALSE) ->  | AA10: =T10-HLOOKUP(X10,#REF!,3,FALSE) ->  | AB10: =T10-HLOOKUP(X10,#REF!,4,FALSE) ->  | AC10: =T10-HLOOKUP(X10,#REF!,5,FALSE) ->  | AD10: =T10-HLOOKUP(X10,#REF!,6,FALSE) ->  | AE10: =T10-HLOOKUP(X10,#REF!,7,FALSE) ->  | AF10: =T10-HLOOKUP(X10,#REF!,8,FALSE) ->  | AG10: =T10-HLOOKUP(X10,#REF!,9,FALSE) -> 
A11: H | B11: SEST | C11: CAZ | D11: 6 | E11: 391434 | F11: MERAUX | G11: Tom | H11: 2002 | I11: 38.9 | J11: ES VILLENEUVE LOUBET | K11: F | L11: -20 | M11: 20 | N11: 22 | O11: 42 | P11: 32 | Q11: 34 | R11: -36 | S11: 66 | T11: 108 | U11: 234.7864843 | V11: 69.1 | X11: =IF(A11="F",(IF(OR(H11>2001,H11<2004),VLOOKUP(I11,Feuil1!$G$11:$H$25,2))),IF(A11="H",(IF(OR(H11>2001,H11<2004),VLOOKUP(I11,Feuil1!$A$11:$F$29,2))))) -> M40 | Z11: =T11-HLOOKUP(X11,#REF!,2,FALSE) ->  | AA11: =T11-HLOOKUP(X11,#REF!,3,FALSE) ->  | AB11: =T11-HLOOKUP(X11,#REF!,4,FALSE) ->  | AC11: =T11-HLOOKUP(X11,#REF!,5,FALSE) ->  | AD11: =T11-HLOOKUP(X11,#REF!,6,FALSE) ->  | AE11: =T11-HLOOKUP(X11,#REF!,7,FALSE) ->  | AF11: =T11-HLOOKUP(X11,#REF!,8,FALSE) ->  | AG11: =T11-HLOOKUP(X11,#REF!,9,FALSE) -> 
A12: H | B12: CO | C12: BRE | D12: 7 | E12: 377882 | F12: ENARD | G12: Thibaut | H12: 2002 | I12: 38.6 | J12: AL QUIMPER | K12: F | L12: 20 | M12: 21 | N12: 23 | O12: 44 | P12: 26 | Q12: 27 | R12: 29 | S12: 56 | T12: 100 | U12: 219.1486918 | V12: 61.4 | X12: =IF(A12="F",(IF(OR(H12>2001,H12<2004),VLOOKUP(I12,Feuil1!$G$11:$H$25,2))),IF(A12="H",(IF(OR(H12>2001,H12<2004),VLOOKUP(I12,Feuil1!$A$11:$F$29,2))))) -> M40 | Z12: =T12-HLOOKUP(X12,#REF!,2,FALSE) ->  | AA12: =T12-HLOOKUP(X12,#REF!,3,FALSE) ->  | AB12: =T12-HLOOKUP(X12,#REF!,4,FALSE) ->  | AC12: =T12-HLOOKUP(X12,#REF!,5,FALSE) ->  | AD12: =T12-HLOOKUP(X12,#REF!,6,FALSE) ->  | AE12: =T12-HLOOKUP(X12,#REF!,7,FALSE) ->  | AF12: =T12-HLOOKUP(X12,#REF!,8,FALSE) ->  | AG12: =T12-HLOOKUP(X12,#REF!,9,FALSE) -> 
A13: H | B13: NORD | C13: PIC | D13: 8 | E13: 323797 | F13: MARTIN | G13: Thomas | H13: 2002 | I13: 29.7 | J13: Saleux CHM | K13: F | L13: 18 | M13: 20 | N13: 22 | O13: 42 | P13: 25 | Q13: 27 | R13: 29 | S13: 56 | T13: 98 | U13: 288.8688556 | V13: 68.3 | X13: =IF(A13="F",(IF(OR(H13>2001,H13<2004),VLOOKUP(I13,Feuil1!$G$11:$H$25,2))),IF(A13="H",(IF(OR(H13>2001,H13<2004),VLOOKUP(I13,Feuil1!$A$11:$F$29,2))))) -> M40 | Z13: =T13-HLOOKUP(X13,#REF!,2,FALSE) ->  | AA13: =T13-HLOOKUP(X13,#REF!,3,FALSE) ->  | AB13: =T13-HLOOKUP(X13,#REF!,4,FALSE) ->  | AC13: =T13-HLOOKUP(X13,#REF!,5,FALSE) ->  | AD13: =T13-HLOOKUP(X13,#REF!,6,FALSE) ->  | AE13: =T13-HLOOKUP(X13,#REF!,7,FALSE) ->  | AF13: =T13-HLOOKUP(X13,#REF!,8,FALSE) ->  | AG13: =T13-HLOOKUP(X13,#REF!,9,FALSE) -> 
A14: H | B14: NE | C14: LOR | D14: 9 | E14: 251046 | F14: DUCHAUFFOUR | G14: Lucas | H14: 2003 | I14: 28.1 | J14: H.VALLEROY-AUBOUÉ | K14: F | L14: 20 | M14: -21 | N14: 21 | O14: 41 | P14: -27 | Q14: 27 | R14: 29 | S14: 56 | T14: 97 | U14: 306.2525732 | V14: 68.9 | X14: =IF(A14="F",(IF(OR(H14>2001,H14<2004),VLOOKUP(I14,Feuil1!$G$11:$H$25,2))),IF(A14="H",(IF(OR(H14>2001,H14<2004),VLOOKUP(I14,Feuil1!$A$11:$F$29,2))))) -> M40 | Z14: =T14-HLOOKUP(X14,#REF!,2,FALSE) ->  | AA14: =T14-HLOOKUP(X14,#REF!,3,FALSE) ->  | AB14: =T14-HLOOKUP(X14,#REF!,4,FALSE) ->  | AC14: =T14-HLOOKUP(X14,#REF!,5,FALSE) ->  | AD14: =T14-HLOOKUP(X14,#REF!,6,FALSE) ->  | AE14: =T14-HLOOKUP(X14,#REF!,7,FALSE) ->  | AF14: =T14-HLOOKUP(X14,#REF!,8,FALSE) ->  | AG14: =T14-HLOOKUP(X14,#REF!,9,FALSE) -> 
A15: H | B15: SEST | C15: RAL | D15: 10 | E15: 373869 | F15: MATHUREL | G15: Lucas | H15: 2002 | I15: 36.4 | J15: CH Saint Baldoph | K15: F | L15: 19 | M15: 20 | N15: 21 | O15: 41 | P15: 25 | Q15: 27 | R15: 29 | S15: 56 | T15: 97 | U15: 226.2273468 | V15: 60.6 | X15: =IF(A15="F",(IF(OR(H15>2001,H15<2004),VLOOKUP(I15,Feuil1!$G$11:$H$25,2))),IF(A15="H",(IF(OR(H15>2001,H15<2004),VLOOKUP(I15,Feuil1!$A$11:$F$29,2))))) -> M40 | Z15: =T15-HLOOKUP(X15,#REF!,2,FALSE) ->  | AA15: =T15-HLOOKUP(X15,#REF!,3,FALSE) ->  | AB15: =T15-HLOOKUP(X15,#REF!,4,FALSE) ->  | AC15: =T15-HLOOKUP(X15,#REF!,5,FALSE) ->  | AD15: =T15-HLOOKUP(X15,#REF!,6,FALSE) ->  | AE15: =T15-HLOOKUP(X15,#REF!,7,FALSE) ->  | AF15: =T15-HLOOKUP(X15,#REF!,8,FALSE) ->  | AG15: =T15-HLOOKUP(X15,#REF!,9,FALSE) -> 
A16: H | B16: NE | C16: ALS | D16: 11 | E16: 375712 | F16: VOLTZ | G16: ANTOINE | H16: 2003 | I16: 40 | J16: SHC Haguenau | K16: F | L16: 18 | M16: 20 | N16: 22 | O16: 42 | P16: 23 | Q16: 25 | R16: 27 | S16: 52 | T16: 94 | U16: 198.589975 | V16: 54 | X16: =IF(A16="F",(IF(OR(H16>2001,H16<2004),VLOOKUP(I16,Feuil1!$G$11:$H$25,2))),IF(A16="H",(IF(OR(H16>2001,H16<2004),VLOOKUP(I16,Feuil1!$A$11:$F$29,2))))) -> M40 | Z16: =T16-HLOOKUP(X16,#REF!,2,FALSE) ->  | AA16: =T16-HLOOKUP(X16,#REF!,3,FALSE) ->  | AB16: =T16-HLOOKUP(X16,#REF!,4,FALSE) ->  | AC16: =T16-HLOOKUP(X16,#REF!,5,FALSE) ->  | AD16: =T16-HLOOKUP(X16,#REF!,6,FALSE) ->  | AE16: =T16-HLOOKUP(X16,#REF!,7,FALSE) ->  | AF16: =T16-HLOOKUP(X16,#REF!,8,FALSE) ->  | AG16: =T16-HLOOKUP(X16,#REF!,9,FALSE) -> 
A17: H | B17: NORD | C17: NPC | D17: 12 | E17: 392615 | F17: LECOINTRE | G17: Charles | H17: 2003 | I17: 37.9 | J17: CHCD COMINES | K17: F | L17: 15 | M17: 17 | N17: 19 | O17: 36 | P17: 27 | Q17: 29 | R17: -31 | S17: 56 | T17: 92 | U17: 205.5166517 | V17: 54.1 | X17: =IF(A17="F",(IF(OR(H17>2001,H17<2004),VLOOKUP(I17,Feuil1!$G$11:$H$25,2))),IF(A17="H",(IF(OR(H17>2001,H17<2004),VLOOKUP(I17,Feuil1!$A$11:$F$29,2))))) -> M40 | Z17: =T17-HLOOKUP(X17,#REF!,2,FALSE) ->  | AA17: =T17-HLOOKUP(X17,#REF!,3,FALSE) ->  | AB17: =T17-HLOOKUP(X17,#REF!,4,FALSE) ->  | AC17: =T17-HLOOKUP(X17,#REF!,5,FALSE) ->  | AD17: =T17-HLOOKUP(X17,#REF!,6,FALSE) ->  | AE17: =T17-HLOOKUP(X17,#REF!,7,FALSE) ->  | AF17: =T17-HLOOKUP(X17,#REF!,8,FALSE) ->  | AG17: =T17-HLOOKUP(X17,#REF!,9,FALSE) -> 
A18: H | B18: SE | C18: PRO | D18: 13 | E18: 320573 | F18: POUBLAN | G18: Thomas | H18: 2002 | I18: 29.6 | J18: EEAR MONTEUX | K18: F | L18: 15 | M18: 17 | N18: 19 | O18: 36 | P18: 20 | Q18: 22 | R18: 24 | S18: 46 | T18: 82 | U18: 242.7052534 | V18: 52.4 | X18: =IF(A18="F",(IF(OR(H18>2001,H18<2004),VLOOKUP(I18,Feuil1!$G$11:$H$25,2))),IF(A18="H",(IF(OR(H18>2001,H18<2004),VLOOKUP(I18,Feuil1!$A$11:$F$29,2))))) -> M40 | Z18: =T18-HLOOKUP(X18,#REF!,2,FALSE) ->  | AA18: =T18-HLOOKUP(X18,#REF!,3,FALSE) ->  | AB18: =T18-HLOOKUP(X18,#REF!,4,FALSE) ->  | AC18: =T18-HLOOKUP(X18,#REF!,5,FALSE) ->  | AD18: =T18-HLOOKUP(X18,#REF!,6,FALSE) ->  | AE18: =T18-HLOOKUP(X18,#REF!,7,FALSE) ->  | AF18: =T18-HLOOKUP(X18,#REF!,8,FALSE) ->  | AG18: =T18-HLOOKUP(X18,#REF!,9,FALSE) -> 
A19: H | B19: NORD | C19: NPC | D19: 14 | E19: 386699 | F19: ROEGIERS | G19: Jérôme | H19: 2003 | I19: 34 | J19: CHCD COMINES | K19: F | L19: 15 | M19: 17 | N19: 19 | O19: 36 | P19: 20 | Q19: 22 | R19: 24 | S19: 46 | T19: 82 | U19: 206.2083946 | V19: 48 | X19: =IF(A19="F",(IF(OR(H19>2001,H19<2004),VLOOKUP(I19,Feuil1!$G$11:$H$25,2))),IF(A19="H",(IF(OR(H19>2001,H19<2004),VLOOKUP(I19,Feuil1!$A$11:$F$29,2))))) -> M40 | Z19: =T19-HLOOKUP(X19,#REF!,2,FALSE) ->  | AA19: =T19-HLOOKUP(X19,#REF!,3,FALSE) ->  | AB19: =T19-HLOOKUP(X19,#REF!,4,FALSE) ->  | AC19: =T19-HLOOKUP(X19,#REF!,5,FALSE) ->  | AD19: =T19-HLOOKUP(X19,#REF!,6,FALSE) ->  | AE19: =T19-HLOOKUP(X19,#REF!,7,FALSE) ->  | AF19: =T19-HLOOKUP(X19,#REF!,8,FALSE) ->  | AG19: =T19-HLOOKUP(X19,#REF!,9,FALSE) -> 
A20: H | B20: SEST | C20: RAL | D20: 15 | E20: 357869 | F20: BARBIER | G20: Jocelyn | H20: 2003 | I20: 39.5 | J20: Vaulx en Velin | K20: F | L20: 15 | M20: 17 | N20: 19 | O20: 36 | P20: 20 | Q20: 22 | R20: 24 | S20: 46 | T20: 82 | U20: 175.4756955 | V20: 42.5 | X20: =IF(A20="F",(IF(OR(H20>2001,H20<2004),VLOOKUP(I20,Feuil1!$G$11:$H$25,2))),IF(A20="H",(IF(OR(H20>2001,H20<2004),VLOOKUP(I20,Feuil1!$A$11:$F$29,2))))) -> M40 | Z20: =T20-HLOOKUP(X20,#REF!,2,FALSE) ->  | AA20: =T20-HLOOKUP(X20,#REF!,3,FALSE) ->  | AB20: =T20-HLOOKUP(X20,#REF!,4,FALSE) ->  | AC20: =T20-HLOOKUP(X20,#REF!,5,FALSE) ->  | AD20: =T20-HLOOKUP(X20,#REF!,6,FALSE) ->  | AE20: =T20-HLOOKUP(X20,#REF!,7,FALSE) ->  | AF20: =T20-HLOOKUP(X20,#REF!,8,FALSE) ->  | AG20: =T20-HLOOKUP(X20,#REF!,9,FALSE) -> 
A21: H | B21: NORD | C21: NPC | D21: 16 | E21: 369340 | F21: FOURNIER | G21: Romain | H21: 2002 | I21: 37 | J21: ST POL/MER | K21: F | L21: 15 | M21: 17 | N21: 19 | O21: 36 | P21: 20 | Q21: 22 | R21: -24 | S21: 42 | T21: 78 | U21: 178.7444244 | V21: 41 | X21: =IF(A21="F",(IF(OR(H21>2001,H21<2004),VLOOKUP(I21,Feuil1!$G$11:$H$25,2))),IF(A21="H",(IF(OR(H21>2001,H21<2004),VLOOKUP(I21,Feuil1!$A$11:$F$29,2))))) -> M40 | Z21: =T21-HLOOKUP(X21,#REF!,2,FALSE) ->  | AA21: =T21-HLOOKUP(X21,#REF!,3,FALSE) ->  | AB21: =T21-HLOOKUP(X21,#REF!,4,FALSE) ->  | AC21: =T21-HLOOKUP(X21,#REF!,5,FALSE) ->  | AD21: =T21-HLOOKUP(X21,#REF!,6,FALSE) ->  | AE21: =T21-HLOOKUP(X21,#REF!,7,FALSE) ->  | AF21: =T21-HLOOKUP(X21,#REF!,8,FALSE) ->  | AG21: =T21-HLOOKUP(X21,#REF!,9,FALSE) -> 
A22: H | B22: N | C22: IDF | D22: 17 | E22: 335649 | F22: LEDEAN | G22: LOUAN | H22: 2002 | I22: 35.3 | J22: PONTOISE | K22: F | L22: 14 | M22: 16 | N22: 18 | O22: 34 | P22: 18 | Q22: 20 | R22: 22 | S22: 42 | T22: 76 | U22: 183.2880979 | V22: 40.7 | X22: =IF(A22="F",(IF(OR(H22>2001,H22<2004),VLOOKUP(I22,Feuil1!$G$11:$H$25,2))),IF(A22="H",(IF(OR(H22>2001,H22<2004),VLOOKUP(I22,Feuil1!$A$11:$F$29,2))))) -> M40 | Z22: =T22-HLOOKUP(X22,#REF!,2,FALSE) ->  | AA22: =T22-HLOOKUP(X22,#REF!,3,FALSE) ->  | AB22: =T22-HLOOKUP(X22,#REF!,4,FALSE) ->  | AC22: =T22-HLOOKUP(X22,#REF!,5,FALSE) ->  | AD22: =T22-HLOOKUP(X22,#REF!,6,FALSE) ->  | AE22: =T22-HLOOKUP(X22,#REF!,7,FALSE) ->  | AF22: =T22-HLOOKUP(X22,#REF!,8,FALSE) ->  | AG22: =T22-HLOOKUP(X22,#REF!,9,FALSE) -> 
A23: H | B23: CO | C23: BRE | D23: 18 | E23: 378678 | F23: VANLOQUEREN | G23: Jolan | H23: 2003 | I23: 34.3 | J23: CHM Plouhinec | K23: F | L23: 14 | M23: -16 | N23: 16 | O23: 30 | P23: 17 | Q23: 19 | R23: 21 | S23: 40 | T23: 70 | U23: 174.3003592 | V23: 35.7 | X23: =IF(A23="F",(IF(OR(H23>2001,H23<2004),VLOOKUP(I23,Feuil1!$G$11:$H$25,2))),IF(A23="H",(IF(OR(H23>2001,H23<2004),VLOOKUP(I23,Feuil1!$A$11:$F$29,2))))) -> M40 | Z23: =T23-HLOOKUP(X23,#REF!,2,FALSE) ->  | AA23: =T23-HLOOKUP(X23,#REF!,3,FALSE) ->  | AB23: =T23-HLOOKUP(X23,#REF!,4,FALSE) ->  | AC23: =T23-HLOOKUP(X23,#REF!,5,FALSE) ->  | AD23: =T23-HLOOKUP(X23,#REF!,6,FALSE) ->  | AE23: =T23-HLOOKUP(X23,#REF!,7,FALSE) ->  | AF23: =T23-HLOOKUP(X23,#REF!,8,FALSE) ->  | AG23: =T23-HLOOKUP(X23,#REF!,9,FALSE) -> 
A24: H | B24: SO | C24: POI | D24: 19 | E24: 384574 | F24: FERNANDES | G24: Hugo | H24: 2003 | I24: 37.6 | J24: St-Jean d'Angély | K24: F | L24: 14 | M24: 16 | N24: -18 | O24: 30 | P24: 17 | Q24: 19 | R24: 21 | S24: 40 | T24: 70 | U24: 157.6890275 | V24: 32.4 | X24: =IF(A24="F",(IF(OR(H24>2001,H24<2004),VLOOKUP(I24,Feuil1!$G$11:$H$25,2))),IF(A24="H",(IF(OR(H24>2001,H24<2004),VLOOKUP(I24,Feuil1!$A$11:$F$29,2))))) -> M40 | Z24: =T24-HLOOKUP(X24,#REF!,2,FALSE) ->  | AA24: =T24-HLOOKUP(X24,#REF!,3,FALSE) ->  | AB24: =T24-HLOOKUP(X24,#REF!,4,FALSE) ->  | AC24: =T24-HLOOKUP(X24,#REF!,5,FALSE) ->  | AD24: =T24-HLOOKUP(X24,#REF!,6,FALSE) ->  | AE24: =T24-HLOOKUP(X24,#REF!,7,FALSE) ->  | AF24: =T24-HLOOKUP(X24,#REF!,8,FALSE) ->  | AG24: =T24-HLOOKUP(X24,#REF!,9,FALSE) -> 
A25: H | B25: NE | C25: ALS | D25: 20 | E25: 377282 | F25: ALLAIN | G25: ARSENE | H25: 2002 | I25: 31.1 | J25: ASPTT Strasbourg | K25: F | L25: 13 | M25: 15 | N25: 16 | O25: 31 | P25: 16 | Q25: 18 | R25: 20 | S25: 38 | T25: 69 | U25: 192.4019909 | V25: 37.9 | X25: =IF(A25="F",(IF(OR(H25>2001,H25<2004),VLOOKUP(I25,Feuil1!$G$11:$H$25,2))),IF(A25="H",(IF(OR(H25>2001,H25<2004),VLOOKUP(I25,Feuil1!$A$11:$F$29,2))))) -> M40 | Z25: =T25-HLOOKUP(X25,#REF!,2,FALSE) ->  | AA25: =T25-HLOOKUP(X25,#REF!,3,FALSE) ->  | AB25: =T25-HLOOKUP(X25,#REF!,4,FALSE) ->  | AC25: =T25-HLOOKUP(X25,#REF!,5,FALSE) ->  | AD25: =T25-HLOOKUP(X25,#REF!,6,FALSE) ->  | AE25: =T25-HLOOKUP(X25,#REF!,7,FALSE) ->  | AF25: =T25-HLOOKUP(X25,#REF!,8,FALSE) ->  | AG25: =T25-HLOOKUP(X25,#REF!,9,FALSE) -> 
A26: H | B26: CO | C26: CEN | D26: 21 | E26: 378393 | F26: BAH | G26: Idriss | H26: 2002 | I26: 34.2 | J26: AAJ BLOIS | K26: F | L26: 15 | M26: 16 | N26: -17 | O26: 31 | P26: 17 | Q26: 18 | R26: 19 | S26: 37 | T26: 68 | U26: 169.8764405 | V26: 33.8 | X26: =IF(A26="F",(IF(OR(H26>2001,H26<2004),VLOOKUP(I26,Feuil1!$G$11:$H$25,2))),IF(A26="H",(IF(OR(H26>2001,H26<2004),VLOOKUP(I26,Feuil1!$A$11:$F$29,2))))) -> M40 | Z26: =T26-HLOOKUP(X26,#REF!,2,FALSE) ->  | AA26: =T26-HLOOKUP(X26,#REF!,3,FALSE) ->  | AB26: =T26-HLOOKUP(X26,#REF!,4,FALSE) ->  | AC26: =T26-HLOOKUP(X26,#REF!,5,FALSE) ->  | AD26: =T26-HLOOKUP(X26,#REF!,6,FALSE) ->  | AE26: =T26-HLOOKUP(X26,#REF!,7,FALSE) ->  | AF26: =T26-HLOOKUP(X26,#REF!,8,FALSE) ->  | AG26: =T26-HLOOKUP(X26,#REF!,9,FALSE) -> 
A27: H | B27: NORD | C27: NPC | D27: 22 | E27: 359629 | F27: ETCHEVERRY | G27: Antoine | H27: 2003 | I27: 24.7 | J27: C.A.ROSENDAEL | K27: F | L27: 12 | M27: 14 | N27: 15 | O27: 29 | P27: 15 | Q27: 17 | R27: 19 | S27: 36 | T27: 65 | U27: 242.8069135 | V27: 40.3 | X27: =IF(A27="F",(IF(OR(H27>2001,H27<2004),VLOOKUP(I27,Feuil1!$G$11:$H$25,2))),IF(A27="H",(IF(OR(H27>2001,H27<2004),VLOOKUP(I27,Feuil1!$A$11:$F$29,2))))) -> M40 | Z27: =T27-HLOOKUP(X27,#REF!,2,FALSE) ->  | AA27: =T27-HLOOKUP(X27,#REF!,3,FALSE) ->  | AB27: =T27-HLOOKUP(X27,#REF!,4,FALSE) ->  | AC27: =T27-HLOOKUP(X27,#REF!,5,FALSE) ->  | AD27: =T27-HLOOKUP(X27,#REF!,6,FALSE) ->  | AE27: =T27-HLOOKUP(X27,#REF!,7,FALSE) ->  | AF27: =T27-HLOOKUP(X27,#REF!,8,FALSE) ->  | AG27: =T27-HLOOKUP(X27,#REF!,9,FALSE) -> 
A28: H | B28: NE | C28: CHA | D28: 23 | E28: 376655 | F28: GUSTIN | G28: Isario | H28: 2003 | I28: 34.6 | J28: Reims HM | K28: F | L28: 10 | M28: 12 | N28: 14 | O28: 26 | P28: 16 | Q28: 18 | R28: 20 | S28: 38 | T28: 64 | U28: 157.8149608 | V28: 29.4 | X28: =IF(A28="F",(IF(OR(H28>2001,H28<2004),VLOOKUP(I28,Feuil1!$G$11:$H$25,2))),IF(A28="H",(IF(OR(H28>2001,H28<2004),VLOOKUP(I28,Feuil1!$A$11:$F$29,2))))) -> M40 | Z28: =T28-HLOOKUP(X28,#REF!,2,FALSE) ->  | AA28: =T28-HLOOKUP(X28,#REF!,3,FALSE) ->  | AB28: =T28-HLOOKUP(X28,#REF!,4,FALSE) ->  | AC28: =T28-HLOOKUP(X28,#REF!,5,FALSE) ->  | AD28: =T28-HLOOKUP(X28,#REF!,6,FALSE) ->  | AE28: =T28-HLOOKUP(X28,#REF!,7,FALSE) ->  | AF28: =T28-HLOOKUP(X28,#REF!,8,FALSE) ->  | AG28: =T28-HLOOKUP(X28,#REF!,9,FALSE) -> 
A29: H | B29: SO | C29: MPY | D29: 24 | E29: 378624 | F29: MELIA | G29: Maxence | H29: 2002 | I29: 39.8 | J29: FIGEAC HC | K29: F | L29: 10 | M29: 12 | N29: 13 | O29: 25 | P29: 16 | Q29: 18 | R29: 20 | S29: 38 | T29: 63 | U29: 133.7782128 | V29: 23.2 | X29: =IF(A29="F",(IF(OR(H29>2001,H29<2004),VLOOKUP(I29,Feuil1!$G$11:$H$25,2))),IF(A29="H",(IF(OR(H29>2001,H29<2004),VLOOKUP(I29,Feuil1!$A$11:$F$29,2))))) -> M40 | Z29: =T29-HLOOKUP(X29,#REF!,2,FALSE) ->  | AA29: =T29-HLOOKUP(X29,#REF!,3,FALSE) ->  | AB29: =T29-HLOOKUP(X29,#REF!,4,FALSE) ->  | AC29: =T29-HLOOKUP(X29,#REF!,5,FALSE) ->  | AD29: =T29-HLOOKUP(X29,#REF!,6,FALSE) ->  | AE29: =T29-HLOOKUP(X29,#REF!,7,FALSE) ->  | AF29: =T29-HLOOKUP(X29,#REF!,8,FALSE) ->  | AG29: =T29-HLOOKUP(X29,#REF!,9,FALSE) -> 
A30: H | B30: CO | C30: CEN | D30: 25 | E30: 375839 | F30: DALLIER | G30: Dévy | H30: 2002 | I30: 35.4 | J30: CHM CHATEAUROUX | K30: F | L30: 14 | M30: 15 | N30: -16 | O30: 29 | P30: 16 | Q30: -17 | R30: 17 | S30: 33 | T30: 62 | U30: 149.0594352 | V30: 26.6 | X30: =IF(A30="F",(IF(OR(H30>2001,H30<2004),VLOOKUP(I30,Feuil1!$G$11:$H$25,2))),IF(A30="H",(IF(OR(H30>2001,H30<2004),VLOOKUP(I30,Feuil1!$A$11:$F$29,2))))) -> M40 | Z30: =T30-HLOOKUP(X30,#REF!,2,FALSE) ->  | AA30: =T30-HLOOKUP(X30,#REF!,3,FALSE) ->  | AB30: =T30-HLOOKUP(X30,#REF!,4,FALSE) ->  | AC30: =T30-HLOOKUP(X30,#REF!,5,FALSE) ->  | AD30: =T30-HLOOKUP(X30,#REF!,6,FALSE) ->  | AE30: =T30-HLOOKUP(X30,#REF!,7,FALSE) ->  | AF30: =T30-HLOOKUP(X30,#REF!,8,FALSE) ->  | AG30: =T30-HLOOKUP(X30,#REF!,9,FALSE) -> 
A31: H | B31: SEST | C31: RAL | D31: 26 | E31: 377714 | F31: SIMON | G31: Matteo | H31: 2002 | I31: 36.8 | J31: Saint Marcellin | K31: F | L31: 12 | M31: 14 | N31: -16 | O31: 26 | P31: 15 | Q31: 17 | R31: 19 | S31: 36 | T31: 62 | U31: 142.9065142 | V31: 25.2 | X31: =IF(A31="F",(IF(OR(H31>2001,H31<2004),VLOOKUP(I31,Feuil1!$G$11:$H$25,2))),IF(A31="H",(IF(OR(H31>2001,H31<2004),VLOOKUP(I31,Feuil1!$A$11:$F$29,2))))) -> M40 | Z31: =T31-HLOOKUP(X31,#REF!,2,FALSE) ->  | AA31: =T31-HLOOKUP(X31,#REF!,3,FALSE) ->  | AB31: =T31-HLOOKUP(X31,#REF!,4,FALSE) ->  | AC31: =T31-HLOOKUP(X31,#REF!,5,FALSE) ->  | AD31: =T31-HLOOKUP(X31,#REF!,6,FALSE) ->  | AE31: =T31-HLOOKUP(X31,#REF!,7,FALSE) ->  | AF31: =T31-HLOOKUP(X31,#REF!,8,FALSE) ->  | AG31: =T31-HLOOKUP(X31,#REF!,9,FALSE) -> 
A32: H | B32: NE | C32: CHA | D32: 27 | E32: 376654 | F32: GUSTIN | G32: Ophelio | H32: 2002 | I32: 32.2 | J32: Reims HM | K32: F | L32: 10 | M32: 12 | N32: -14 | O32: 22 | P32: 16 | Q32: 18 | R32: 20 | S32: 38 | T32: 60 | U32: 160.5962632 | V32: 27.8 | X32: =IF(A32="F",(IF(OR(H32>2001,H32<2004),VLOOKUP(I32,Feuil1!$G$11:$H$25,2))),IF(A32="H",(IF(OR(H32>2001,H32<2004),VLOOKUP(I32,Feuil1!$A$11:$F$29,2))))) -> M40 | Z32: =T32-HLOOKUP(X32,#REF!,2,FALSE) ->  | AA32: =T32-HLOOKUP(X32,#REF!,3,FALSE) ->  | AB32: =T32-HLOOKUP(X32,#REF!,4,FALSE) ->  | AC32: =T32-HLOOKUP(X32,#REF!,5,FALSE) ->  | AD32: =T32-HLOOKUP(X32,#REF!,6,FALSE) ->  | AE32: =T32-HLOOKUP(X32,#REF!,7,FALSE) ->  | AF32: =T32-HLOOKUP(X32,#REF!,8,FALSE) ->  | AG32: =T32-HLOOKUP(X32,#REF!,9,FALSE) -> 
A33: H | B33: NE | C33: CHA | D33: 28 | E33: 387908 | F33: CHAMARANDE | G33: Johanny | H33: 2002 | I33: 39.4 | J33: Langres HM | K33: F | L33: 10 | M33: 12 | N33: 14 | O33: 26 | P33: 14 | Q33: 16 | R33: 18 | S33: 34 | T33: 60 | U33: 128.7310477 | V33: 20.6 | X33: =IF(A33="F",(IF(OR(H33>2001,H33<2004),VLOOKUP(I33,Feuil1!$G$11:$H$25,2))),IF(A33="H",(IF(OR(H33>2001,H33<2004),VLOOKUP(I33,Feuil1!$A$11:$F$29,2))))) -> M40 | Z33: =T33-HLOOKUP(X33,#REF!,2,FALSE) ->  | AA33: =T33-HLOOKUP(X33,#REF!,3,FALSE) ->  | AB33: =T33-HLOOKUP(X33,#REF!,4,FALSE) ->  | AC33: =T33-HLOOKUP(X33,#REF!,5,FALSE) ->  | AD33: =T33-HLOOKUP(X33,#REF!,6,FALSE) ->  | AE33: =T33-HLOOKUP(X33,#REF!,7,FALSE) ->  | AF33: =T33-HLOOKUP(X33,#REF!,8,FALSE) ->  | AG33: =T33-HLOOKUP(X33,#REF!,9,FALSE) -> 
A34: H | B34: SE | C34: PRO | D34: 29 | E34: 379241 | F34: LABBE | G34: Andy | H34: 2002 | I34: 35 | J34: EEAR MONTEUX | K34: F | L34: 10 | M34: 12 | N34: 14 | O34: 26 | P34: 13 | Q34: 15 | R34: 17 | S34: 32 | T34: 58 | U34: 141.2033443 | V34: 23 | X34: =IF(A34="F",(IF(OR(H34>2001,H34<2004),VLOOKUP(I34,Feuil1!$G$11:$H$25,2))),IF(A34="H",(IF(OR(H34>2001,H34<2004),VLOOKUP(I34,Feuil1!$A$11:$F$29,2))))) -> M40 | Z34: =T34-HLOOKUP(X34,#REF!,2,FALSE) ->  | AA34: =T34-HLOOKUP(X34,#REF!,3,FALSE) ->  | AB34: =T34-HLOOKUP(X34,#REF!,4,FALSE) ->  | AC34: =T34-HLOOKUP(X34,#REF!,5,FALSE) ->  | AD34: =T34-HLOOKUP(X34,#REF!,6,FALSE) ->  | AE34: =T34-HLOOKUP(X34,#REF!,7,FALSE) ->  | AF34: =T34-HLOOKUP(X34,#REF!,8,FALSE) ->  | AG34: =T34-HLOOKUP(X34,#REF!,9,FALSE) -> 
A35: H | B35: SEST | C35: RAL | D35: 30 | E35: 377618 | F35: GRASPERGE | G35: Amory | H35: 2002 | I35: 36.6 | J35: Vaulx en Velin | K35: F | L35: 8 | M35: 10 | N35: 12 | O35: 22 | P35: 10 | Q35: 12 | R35: 13 | S35: 25 | T35: 47 | U35: 108.9690717 | V35: 10.4 | X35: =IF(A35="F",(IF(OR(H35>2001,H35<2004),VLOOKUP(I35,Feuil1!$G$11:$H$25,2))),IF(A35="H",(IF(OR(H35>2001,H35<2004),VLOOKUP(I35,Feuil1!$A$11:$F$29,2))))) -> M40 | Z35: =T35-HLOOKUP(X35,#REF!,2,FALSE) ->  | AA35: =T35-HLOOKUP(X35,#REF!,3,FALSE) ->  | AB35: =T35-HLOOKUP(X35,#REF!,4,FALSE) ->  | AC35: =T35-HLOOKUP(X35,#REF!,5,FALSE) ->  | AD35: =T35-HLOOKUP(X35,#REF!,6,FALSE) ->  | AE35: =T35-HLOOKUP(X35,#REF!,7,FALSE) ->  | AF35: =T35-HLOOKUP(X35,#REF!,8,FALSE) ->  | AG35: =T35-HLOOKUP(X35,#REF!,9,FALSE) -> 
A36: H | B36: SE | C36: LAN | D36: 31 | E36: 378498 | F36: CAYROL | G36: Jimmy | H36: 2003 | I36: 34.4 | J36: Frontignan AC | K36: F | L36: 7 | M36: 9 | N36: 11 | O36: 20 | P36: 10 | Q36: 12 | R36: 14 | S36: 26 | T36: 46 | U36: 114.1670462 | V36: 11.6 | X36: =IF(A36="F",(IF(OR(H36>2001,H36<2004),VLOOKUP(I36,Feuil1!$G$11:$H$25,2))),IF(A36="H",(IF(OR(H36>2001,H36<2004),VLOOKUP(I36,Feuil1!$A$11:$F$29,2))))) -> M40 | Z36: =T36-HLOOKUP(X36,#REF!,2,FALSE) ->  | AA36: =T36-HLOOKUP(X36,#REF!,3,FALSE) ->  | AB36: =T36-HLOOKUP(X36,#REF!,4,FALSE) ->  | AC36: =T36-HLOOKUP(X36,#REF!,5,FALSE) ->  | AD36: =T36-HLOOKUP(X36,#REF!,6,FALSE) ->  | AE36: =T36-HLOOKUP(X36,#REF!,7,FALSE) ->  | AF36: =T36-HLOOKUP(X36,#REF!,8,FALSE) ->  | AG36: =T36-HLOOKUP(X36,#REF!,9,FALSE) -> 
A37: H | B37: CO | C37: PDL | D37: 32 | E37: 351830 | F37: BEZIAS | G37: guylian | H37: 2002 | I37: 25.8 | J37: ALSavenay | K37: F | L37: -7 | M37: 7 | N37: 8 | O37: 15 | P37: 8 | Q37: 9 | R37: 10 | S37: 19 | T37: 34 | U37: 119.8374897 | V37: 8.2 | X37: =IF(A37="F",(IF(OR(H37>2001,H37<2004),VLOOKUP(I37,Feuil1!$G$11:$H$25,2))),IF(A37="H",(IF(OR(H37>2001,H37<2004),VLOOKUP(I37,Feuil1!$A$11:$F$29,2))))) -> M40 | Z37: =T37-HLOOKUP(X37,#REF!,2,FALSE) ->  | AA37: =T37-HLOOKUP(X37,#REF!,3,FALSE) ->  | AB37: =T37-HLOOKUP(X37,#REF!,4,FALSE) ->  | AC37: =T37-HLOOKUP(X37,#REF!,5,FALSE) ->  | AD37: =T37-HLOOKUP(X37,#REF!,6,FALSE) ->  | AE37: =T37-HLOOKUP(X37,#REF!,7,FALSE) ->  | AF37: =T37-HLOOKUP(X37,#REF!,8,FALSE) ->  | AG37: =T37-HLOOKUP(X37,#REF!,9,FALSE) -> 
A38: H | B38: CO | C38: CEN | D38: 33 | E38: 375840 | F38: FOUCHER | G38: Paul | H38: 2002 | I38: 33.6 | J38: CHM CHATEAUROUX | K38: F | L38: 7 | M38: 8 | N38: 9 | O38: 17 | P38: 7 | Q38: 8 | R38: 9 | S38: 17 | T38: 34 | U38: 86.65432699 | V38: 0.4 | X38: =IF(A38="F",(IF(OR(H38>2001,H38<2004),VLOOKUP(I38,Feuil1!$G$11:$H$25,2))),IF(A38="H",(IF(OR(H38>2001,H38<2004),VLOOKUP(I38,Feuil1!$A$11:$F$29,2))))) -> M40 | Z38: =T38-HLOOKUP(X38,#REF!,2,FALSE) ->  | AA38: =T38-HLOOKUP(X38,#REF!,3,FALSE) ->  | AB38: =T38-HLOOKUP(X38,#REF!,4,FALSE) ->  | AC38: =T38-HLOOKUP(X38,#REF!,5,FALSE) ->  | AD38: =T38-HLOOKUP(X38,#REF!,6,FALSE) ->  | AE38: =T38-HLOOKUP(X38,#REF!,7,FALSE) ->  | AF38: =T38-HLOOKUP(X38,#REF!,8,FALSE) ->  | AG38: =T38-HLOOKUP(X38,#REF!,9,FALSE) -> 
Z39: =T39-HLOOKUP(X39,#REF!,2,FALSE) ->  | AA39: =T39-HLOOKUP(X39,#REF!,3,FALSE) ->  | AB39: =T39-HLOOKUP(X39,#REF!,4,FALSE) ->  | AC39: =T39-HLOOKUP(X39,#REF!,5,FALSE) ->  | AD39: =T39-HLOOKUP(X39,#REF!,6,FALSE) ->  | AE39: =T39-HLOOKUP(X39,#REF!,7,FALSE) ->  | AF39: =T39-HLOOKUP(X39,#REF!,8,FALSE) ->  | AG39: =T39-HLOOKUP(X39,#REF!,9,FALSE) ->  | AO39: =IF(AG39>=0,$AG$4,IF(AF39>=0,$AF$4,IF(AE39>=0,$AE$4,IF(AD39>=0,$AD$4,IF(AC39>=0,$AC$4,IF(AB39>=0,$AB$4,IF(AA39>=0,$AA$4,IF(Z39>=0,$Z$4,$AH$4)))))))) -> 
A40: H | B40: CO | C40: PDL | D40: 1 | E40: 355921 | F40: COGNON | G40: Théo | H40: 2002 | I40: 40.4 | J40: CJF LAVAL - VOUTRÉ | K40: F | L40: 36 | M40: 38 | N40: -40 | O40: =IF(MAXA(L40+M40,M40+N40,L40+N40,L40,M40,N40)<=0,0,MAXA(L40+M40,M40+N40,L40+N40,L40,M40,N40)) -> 74 | P40: 46 | Q40: 48 | R40: 50 | S40: =IF(MAXA(P40+Q40,Q40+R40,P40+R40,P40,Q40,R40)<=0,0,MAXA(P40+Q40,Q40+R40,P40+R40,P40,Q40,R40)) -> 98 | T40: =IF(H40="","",IF(OR(O40=0,S40=0),0,O40+S40)) -> 172 | U40: =IF(I40="","",IF(A40="H",10^(0.794358141*LOG(I40/174.393)^2)*T40,IF(A40="F",10^(0.89726074 * LOG(I40/148.026)^2)*T40,""))) -> 359.7348509 | V40: =SUM(T40-I40) -> 131.6 | X40: =IF(A40="F",(IF(OR(H40>2001,H40<2004),VLOOKUP(I40,Feuil1!$G$11:$H$25,2))),IF(A40="H",(IF(OR(H40>2001,H40<2004),VLOOKUP(I40,Feuil1!$A$11:$F$29,2))))) -> M45 | Z40: =T40-HLOOKUP(X40,#REF!,2,FALSE) ->  | AA40: =T40-HLOOKUP(X40,#REF!,3,FALSE) ->  | AB40: =T40-HLOOKUP(X40,#REF!,4,FALSE) ->  | AC40: =T40-HLOOKUP(X40,#REF!,5,FALSE) ->  | AD40: =T40-HLOOKUP(X40,#REF!,6,FALSE) ->  | AE40: =T40-HLOOKUP(X40,#REF!,7,FALSE) ->  | AF40: =T40-HLOOKUP(X40,#REF!,8,FALSE) ->  | AG40: =T40-HLOOKUP(X40,#REF!,9,FALSE) ->  | AO40: =IF(AG40>=0,$AG$4,IF(AF40>=0,$AF$4,IF(AE40>=0,$AE$4,IF(AD40>=0,$AD$4,IF(AC40>=0,$AC$4,IF(AB40>=0,$AB$4,IF(AA40>=0,$AA$4,IF(Z40>=0,$Z$4,$AH$4)))))))) -> 
A41: H | B41: SE | C41: PRO | D41: 2 | E41: 344414 | F41: MARTIN | G41: Gabriel | H41: 2002 | I41: 42.6 | J41: EEAR MONTEUX | K41: F | L41: 28 | M41: 30 | N41: 32 | O41: 62 | P41: 38 | Q41: 40 | R41: 42 | S41: 82 | T41: 144 | U41: 285.7595275 | V41: 101.4 | X41: =IF(A41="F",(IF(OR(H41>2001,H41<2004),VLOOKUP(I41,Feuil1!$G$11:$H$25,2))),IF(A41="H",(IF(OR(H41>2001,H41<2004),VLOOKUP(I41,Feuil1!$A$11:$F$29,2))))) -> M45 | Z41: =T41-HLOOKUP(X41,#REF!,2,FALSE) ->  | AA41: =T41-HLOOKUP(X41,#REF!,3,FALSE) ->  | AB41: =T41-HLOOKUP(X41,#REF!,4,FALSE) ->  | AC41: =T41-HLOOKUP(X41,#REF!,5,FALSE) ->  | AD41: =T41-HLOOKUP(X41,#REF!,6,FALSE) ->  | AE41: =T41-HLOOKUP(X41,#REF!,7,FALSE) ->  | AF41: =T41-HLOOKUP(X41,#REF!,8,FALSE) ->  | AG41: =T41-HLOOKUP(X41,#REF!,9,FALSE) -> 
A42: H | B42: NORD | C42: NPC | D42: 3 | E42: 344407 | F42: GALLOO | G42: Martin | H42: 2002 | I42: 44.7 | J42: CHCD COMINES | K42: F | L42: 23 | M42: 25 | N42: 27 | O42: 52 | P42: 32 | Q42: 34 | R42: 36 | S42: 70 | T42: 122 | U42: 231.2182303 | V42: 77.3 | X42: =IF(A42="F",(IF(OR(H42>2001,H42<2004),VLOOKUP(I42,Feuil1!$G$11:$H$25,2))),IF(A42="H",(IF(OR(H42>2001,H42<2004),VLOOKUP(I42,Feuil1!$A$11:$F$29,2))))) -> M45 | Z42: =T42-HLOOKUP(X42,#REF!,2,FALSE) ->  | AA42: =T42-HLOOKUP(X42,#REF!,3,FALSE) ->  | AB42: =T42-HLOOKUP(X42,#REF!,4,FALSE) ->  | AC42: =T42-HLOOKUP(X42,#REF!,5,FALSE) ->  | AD42: =T42-HLOOKUP(X42,#REF!,6,FALSE) ->  | AE42: =T42-HLOOKUP(X42,#REF!,7,FALSE) ->  | AF42: =T42-HLOOKUP(X42,#REF!,8,FALSE) ->  | AG42: =T42-HLOOKUP(X42,#REF!,9,FALSE) -> 
A43: H | B43: SE | C43: LAN | D43: 4 | E43: 367403 | F43: TARUSSIO | G43: Laurent | H43: 2003 | I43: 44 | J43: Narbonne Haltéro | K43: F | L43: 18 | M43: 20 | N43: 22 | O43: 42 | P43: 25 | Q43: 27 | R43: 29 | S43: 56 | T43: 98 | U43: 188.5229759 | V43: 54 | X43: =IF(A43="F",(IF(OR(H43>2001,H43<2004),VLOOKUP(I43,Feuil1!$G$11:$H$25,2))),IF(A43="H",(IF(OR(H43>2001,H43<2004),VLOOKUP(I43,Feuil1!$A$11:$F$29,2))))) -> M45 | Z43: =T43-HLOOKUP(X43,#REF!,2,FALSE) ->  | AA43: =T43-HLOOKUP(X43,#REF!,3,FALSE) ->  | AB43: =T43-HLOOKUP(X43,#REF!,4,FALSE) ->  | AC43: =T43-HLOOKUP(X43,#REF!,5,FALSE) ->  | AD43: =T43-HLOOKUP(X43,#REF!,6,FALSE) ->  | AE43: =T43-HLOOKUP(X43,#REF!,7,FALSE) ->  | AF43: =T43-HLOOKUP(X43,#REF!,8,FALSE) ->  | AG43: =T43-HLOOKUP(X43,#REF!,9,FALSE) -> 
A44: H | B44: NORD | C44: NPC | D44: 5 | E44: 383860 | F44: BOULANGER | G44: Geoffrey | H44: 2002 | I44: 43.4 | J44: A.O.SALLAUMINES | K44: F | L44: 19 | M44: 21 | N44: 23 | O44: 44 | P44: 22 | Q44: 24 | R44: 26 | S44: 50 | T44: 94 | U44: 183.2146277 | V44: 50.6 | X44: =IF(A44="F",(IF(OR(H44>2001,H44<2004),VLOOKUP(I44,Feuil1!$G$11:$H$25,2))),IF(A44="H",(IF(OR(H44>2001,H44<2004),VLOOKUP(I44,Feuil1!$A$11:$F$29,2))))) -> M45 | Z44: =T44-HLOOKUP(X44,#REF!,2,FALSE) ->  | AA44: =T44-HLOOKUP(X44,#REF!,3,FALSE) ->  | AB44: =T44-HLOOKUP(X44,#REF!,4,FALSE) ->  | AC44: =T44-HLOOKUP(X44,#REF!,5,FALSE) ->  | AD44: =T44-HLOOKUP(X44,#REF!,6,FALSE) ->  | AE44: =T44-HLOOKUP(X44,#REF!,7,FALSE) ->  | AF44: =T44-HLOOKUP(X44,#REF!,8,FALSE) ->  | AG44: =T44-HLOOKUP(X44,#REF!,9,FALSE) -> 
A45: H | B45: NORD | C45: NPC | D45: 6 | E45: 352093 | F45: CABRE | G45: Martin | H45: 2003 | I45: 45 | J45: ALSH BULLY LES MINES | K45: F | L45: 18 | M45: 20 | N45: -22 | O45: 38 | P45: 25 | Q45: 27 | R45: 29 | S45: 56 | T45: 94 | U45: 177.0386912 | V45: 49 | X45: =IF(A45="F",(IF(OR(H45>2001,H45<2004),VLOOKUP(I45,Feuil1!$G$11:$H$25,2))),IF(A45="H",(IF(OR(H45>2001,H45<2004),VLOOKUP(I45,Feuil1!$A$11:$F$29,2))))) -> M45 | Z45: =T45-HLOOKUP(X45,#REF!,2,FALSE) ->  | AA45: =T45-HLOOKUP(X45,#REF!,3,FALSE) ->  | AB45: =T45-HLOOKUP(X45,#REF!,4,FALSE) ->  | AC45: =T45-HLOOKUP(X45,#REF!,5,FALSE) ->  | AD45: =T45-HLOOKUP(X45,#REF!,6,FALSE) ->  | AE45: =T45-HLOOKUP(X45,#REF!,7,FALSE) ->  | AF45: =T45-HLOOKUP(X45,#REF!,8,FALSE) ->  | AG45: =T45-HLOOKUP(X45,#REF!,9,FALSE) -> 
A46: H | B46: NE | C46: ALS | D46: 7 | E46: 375712 | F46: VOLTZ | G46: ANTOINE | H46: 2003 | I46: 40.3 | J46: SHC Haguenau | K46: F | L46: 18 | M46: -20 | N46: 20 | O46: 38 | P46: 22 | Q46: 24 | R46: 26 | S46: 50 | T46: 88 | U46: 184.5116277 | V46: 47.7 | X46: =IF(A46="F",(IF(OR(H46>2001,H46<2004),VLOOKUP(I46,Feuil1!$G$11:$H$25,2))),IF(A46="H",(IF(OR(H46>2001,H46<2004),VLOOKUP(I46,Feuil1!$A$11:$F$29,2))))) -> M45 | Z46: =T46-HLOOKUP(X46,#REF!,2,FALSE) ->  | AA46: =T46-HLOOKUP(X46,#REF!,3,FALSE) ->  | AB46: =T46-HLOOKUP(X46,#REF!,4,FALSE) ->  | AC46: =T46-HLOOKUP(X46,#REF!,5,FALSE) ->  | AD46: =T46-HLOOKUP(X46,#REF!,6,FALSE) ->  | AE46: =T46-HLOOKUP(X46,#REF!,7,FALSE) ->  | AF46: =T46-HLOOKUP(X46,#REF!,8,FALSE) ->  | AG46: =T46-HLOOKUP(X46,#REF!,9,FALSE) -> 
A47: H | B47: NE | C47: ALS | D47: 8 | E47: 353650 | F47: RIEHL | G47: MATEO | H47: 2002 | I47: 43.4 | J47: Dorlisheim FH | K47: F | L47: 17 | M47: 19 | N47: 21 | O47: 40 | P47: 20 | Q47: 22 | R47: 24 | S47: 46 | T47: 86 | U47: 167.6218935 | V47: 42.6 | X47: =IF(A47="F",(IF(OR(H47>2001,H47<2004),VLOOKUP(I47,Feuil1!$G$11:$H$25,2))),IF(A47="H",(IF(OR(H47>2001,H47<2004),VLOOKUP(I47,Feuil1!$A$11:$F$29,2))))) -> M45 | Z47: =T47-HLOOKUP(X47,#REF!,2,FALSE) ->  | AA47: =T47-HLOOKUP(X47,#REF!,3,FALSE) ->  | AB47: =T47-HLOOKUP(X47,#REF!,4,FALSE) ->  | AC47: =T47-HLOOKUP(X47,#REF!,5,FALSE) ->  | AD47: =T47-HLOOKUP(X47,#REF!,6,FALSE) ->  | AE47: =T47-HLOOKUP(X47,#REF!,7,FALSE) ->  | AF47: =T47-HLOOKUP(X47,#REF!,8,FALSE) ->  | AG47: =T47-HLOOKUP(X47,#REF!,9,FALSE) -> 
A48: H | B48: NE | C48: BOU | D48: 9 | E48: 358738 | F48: MILUD | G48: Malik | H48: 2003 | I48: 41.9 | J48: HC Avallon | K48: F | L48: 17 | M48: 19 | N48: 20 | O48: 39 | P48: 22 | Q48: 24 | R48: -26 | S48: 46 | T48: 85 | U48: 171.4335685 | V48: 43.1 | X48: =IF(A48="F",(IF(OR(H48>2001,H48<2004),VLOOKUP(I48,Feuil1!$G$11:$H$25,2))),IF(A48="H",(IF(OR(H48>2001,H48<2004),VLOOKUP(I48,Feuil1!$A$11:$F$29,2))))) -> M45 | Z48: =T48-HLOOKUP(X48,#REF!,2,FALSE) ->  | AA48: =T48-HLOOKUP(X48,#REF!,3,FALSE) ->  | AB48: =T48-HLOOKUP(X48,#REF!,4,FALSE) ->  | AC48: =T48-HLOOKUP(X48,#REF!,5,FALSE) ->  | AD48: =T48-HLOOKUP(X48,#REF!,6,FALSE) ->  | AE48: =T48-HLOOKUP(X48,#REF!,7,FALSE) ->  | AF48: =T48-HLOOKUP(X48,#REF!,8,FALSE) ->  | AG48: =T48-HLOOKUP(X48,#REF!,9,FALSE) -> 
A49: H | B49: NORD | C49: PIC | D49: 10 | E49: 386580 | F49: CREQUIS | G49: Sullivan | H49: 2003 | I49: 43.4 | J49: Hirson CEHT | K49: F | L49: 14 | M49: 16 | N49: 18 | O49: 34 | P49: 22 | Q49: 24 | R49: 26 | S49: 50 | T49: 84 | U49: 163.7237099 | V49: 40.6 | X49: =IF(A49="F",(IF(OR(H49>2001,H49<2004),VLOOKUP(I49,Feuil1!$G$11:$H$25,2))),IF(A49="H",(IF(OR(H49>2001,H49<2004),VLOOKUP(I49,Feuil1!$A$11:$F$29,2))))) -> M45 | Z49: =T49-HLOOKUP(X49,#REF!,2,FALSE) ->  | AA49: =T49-HLOOKUP(X49,#REF!,3,FALSE) ->  | AB49: =T49-HLOOKUP(X49,#REF!,4,FALSE) ->  | AC49: =T49-HLOOKUP(X49,#REF!,5,FALSE) ->  | AD49: =T49-HLOOKUP(X49,#REF!,6,FALSE) ->  | AE49: =T49-HLOOKUP(X49,#REF!,7,FALSE) ->  | AF49: =T49-HLOOKUP(X49,#REF!,8,FALSE) ->  | AG49: =T49-HLOOKUP(X49,#REF!,9,FALSE) -> 
A50: H | B50: NE | C50: ALS | D50: 11 | E50: 383774 | F50: VERGNAUD | G50: JAROD | H50: 2003 | I50: 44.6 | J50: SHC Haguenau | K50: F | L50: 14 | M50: 16 | N50: -17 | O50: 30 | P50: 20 | Q50: 22 | R50: 23 | S50: 45 | T50: 75 | U50: 142.4419349 | V50: 30.4 | X50: =IF(A50="F",(IF(OR(H50>2001,H50<2004),VLOOKUP(I50,Feuil1!$G$11:$H$25,2))),IF(A50="H",(IF(OR(H50>2001,H50<2004),VLOOKUP(I50,Feuil1!$A$11:$F$29,2))))) -> M45 | Z50: =T50-HLOOKUP(X50,#REF!,2,FALSE) ->  | AA50: =T50-HLOOKUP(X50,#REF!,3,FALSE) ->  | AB50: =T50-HLOOKUP(X50,#REF!,4,FALSE) ->  | AC50: =T50-HLOOKUP(X50,#REF!,5,FALSE) ->  | AD50: =T50-HLOOKUP(X50,#REF!,6,FALSE) ->  | AE50: =T50-HLOOKUP(X50,#REF!,7,FALSE) ->  | AF50: =T50-HLOOKUP(X50,#REF!,8,FALSE) ->  | AG50: =T50-HLOOKUP(X50,#REF!,9,FALSE) -> 
A51: H | B51: NORD | C51: PIC | D51: 12 | E51: 376821 | F51: LEGER LESOT | G51: Dylan | H51: 2002 | I51: 42.2 | J51: La Vaillante Saint Quentin | K51: F | L51: 13 | M51: 15 | N51: 16 | O51: 31 | P51: 18 | Q51: 20 | R51: 22 | S51: 42 | T51: 73 | U51: 146.2038582 | V51: 30.8 | X51: =IF(A51="F",(IF(OR(H51>2001,H51<2004),VLOOKUP(I51,Feuil1!$G$11:$H$25,2))),IF(A51="H",(IF(OR(H51>2001,H51<2004),VLOOKUP(I51,Feuil1!$A$11:$F$29,2))))) -> M45 | Z51: =T51-HLOOKUP(X51,#REF!,2,FALSE) ->  | AA51: =T51-HLOOKUP(X51,#REF!,3,FALSE) ->  | AB51: =T51-HLOOKUP(X51,#REF!,4,FALSE) ->  | AC51: =T51-HLOOKUP(X51,#REF!,5,FALSE) ->  | AD51: =T51-HLOOKUP(X51,#REF!,6,FALSE) ->  | AE51: =T51-HLOOKUP(X51,#REF!,7,FALSE) ->  | AF51: =T51-HLOOKUP(X51,#REF!,8,FALSE) ->  | AG51: =T51-HLOOKUP(X51,#REF!,9,FALSE) -> 
A52: H | B52: SEST | C52: RAL | D52: 13 | E52: 372601 | F52: VARDANIAN | G52: Avetis | H52: 2003 | I52: 42.2 | J52: Vaulx en Velin | K52: Arm | L52: 15 | M52: -16 | N52: 16 | O52: 31 | P52: 18 | Q52: 20 | R52: 22 | S52: 42 | T52: 73 | U52: 146.2038582 | V52: 30.8 | X52: =IF(A52="F",(IF(OR(H52>2001,H52<2004),VLOOKUP(I52,Feuil1!$G$11:$H$25,2))),IF(A52="H",(IF(OR(H52>2001,H52<2004),VLOOKUP(I52,Feuil1!$A$11:$F$29,2))))) -> M45 | Z52: =T52-HLOOKUP(X52,#REF!,2,FALSE) ->  | AA52: =T52-HLOOKUP(X52,#REF!,3,FALSE) ->  | AB52: =T52-HLOOKUP(X52,#REF!,4,FALSE) ->  | AC52: =T52-HLOOKUP(X52,#REF!,5,FALSE) ->  | AD52: =T52-HLOOKUP(X52,#REF!,6,FALSE) ->  | AE52: =T52-HLOOKUP(X52,#REF!,7,FALSE) ->  | AF52: =T52-HLOOKUP(X52,#REF!,8,FALSE) ->  | AG52: =T52-HLOOKUP(X52,#REF!,9,FALSE) -> 
A53: H | B53: NE | C53: ALS | D53: 14 | E53: 375935 | F53: CIZEK | G53: ERWAN | H53: 2002 | I53: 43 | J53: SHC Haguenau | K53: F | L53: 15 | M53: -17 | N53: 17 | O53: 32 | P53: 16 | Q53: 18 | R53: 19 | S53: 37 | T53: 69 | U53: 135.6916835 | V53: 26 | X53: =IF(A53="F",(IF(OR(H53>2001,H53<2004),VLOOKUP(I53,Feuil1!$G$11:$H$25,2))),IF(A53="H",(IF(OR(H53>2001,H53<2004),VLOOKUP(I53,Feuil1!$A$11:$F$29,2))))) -> M45 | Z53: =T53-HLOOKUP(X53,#REF!,2,FALSE) ->  | AA53: =T53-HLOOKUP(X53,#REF!,3,FALSE) ->  | AB53: =T53-HLOOKUP(X53,#REF!,4,FALSE) ->  | AC53: =T53-HLOOKUP(X53,#REF!,5,FALSE) ->  | AD53: =T53-HLOOKUP(X53,#REF!,6,FALSE) ->  | AE53: =T53-HLOOKUP(X53,#REF!,7,FALSE) ->  | AF53: =T53-HLOOKUP(X53,#REF!,8,FALSE) ->  | AG53: =T53-HLOOKUP(X53,#REF!,9,FALSE) -> 
A54: H | B54: CO | C54: PDL | D54: 15 | E54: 388362 | F54: CORROY | G54: Tahiri | H54: 2003 | I54: 43.1 | J54: CJF LAVAL - VOUTRÉ | K54: F | L54: 12 | M54: -14 | N54: -14 | O54: 12 | P54: 12 | Q54: 14 | R54: 15 | S54: 29 | T54: 41 | U54: 80.44781523 | V54: -2.1 | X54: =IF(A54="F",(IF(OR(H54>2001,H54<2004),VLOOKUP(I54,Feuil1!$G$11:$H$25,2))),IF(A54="H",(IF(OR(H54>2001,H54<2004),VLOOKUP(I54,Feuil1!$A$11:$F$29,2))))) -> M45 | Z54: =T54-HLOOKUP(X54,#REF!,2,FALSE) ->  | AA54: =T54-HLOOKUP(X54,#REF!,3,FALSE) ->  | AB54: =T54-HLOOKUP(X54,#REF!,4,FALSE) ->  | AC54: =T54-HLOOKUP(X54,#REF!,5,FALSE) ->  | AD54: =T54-HLOOKUP(X54,#REF!,6,FALSE) ->  | AE54: =T54-HLOOKUP(X54,#REF!,7,FALSE) ->  | AF54: =T54-HLOOKUP(X54,#REF!,8,FALSE) ->  | AG54: =T54-HLOOKUP(X54,#REF!,9,FALSE) -> 
Z55: =T55-HLOOKUP(X55,#REF!,2,FALSE) ->  | AA55: =T55-HLOOKUP(X55,#REF!,3,FALSE) ->  | AB55: =T55-HLOOKUP(X55,#REF!,4,FALSE) ->  | AC55: =T55-HLOOKUP(X55,#REF!,5,FALSE) ->  | AD55: =T55-HLOOKUP(X55,#REF!,6,FALSE) ->  | AE55: =T55-HLOOKUP(X55,#REF!,7,FALSE) ->  | AF55: =T55-HLOOKUP(X55,#REF!,8,FALSE) ->  | AG55: =T55-HLOOKUP(X55,#REF!,9,FALSE) ->  | AO55: =IF(AG55>=0,$AG$4,IF(AF55>=0,$AF$4,IF(AE55>=0,$AE$4,IF(AD55>=0,$AD$4,IF(AC55>=0,$AC$4,IF(AB55>=0,$AB$4,IF(AA55>=0,$AA$4,IF(Z55>=0,$Z$4,$AH$4)))))))) -> 
A56: H | B56: NE | C56: ALS | D56: 1 | E56: 324091 | F56: SPAGNULO | G56: GIACONO | H56: 2002 | I56: 49.9 | J56: SHC Haguenau | K56: F | L56: 41 | M56: 43 | N56: 45 | O56: =IF(MAXA(L56+M56,M56+N56,L56+N56,L56,M56,N56)<=0,0,MAXA(L56+M56,M56+N56,L56+N56,L56,M56,N56)) -> 88 | P56: 52 | Q56: 54 | R56: 56 | S56: =IF(MAXA(P56+Q56,Q56+R56,P56+R56,P56,Q56,R56)<=0,0,MAXA(P56+Q56,Q56+R56,P56+R56,P56,Q56,R56)) -> 110 | T56: =IF(H56="","",IF(OR(O56=0,S56=0),0,O56+S56)) -> 198 | U56: =IF(I56="","",IF(A56="H",10^(0.794358141*LOG(I56/174.393)^2)*T56,IF(A56="F",10^(0.89726074 * LOG(I56/148.026)^2)*T56,""))) -> 339.8213788 | V56: =SUM(T56-I56) -> 148.1 | X56: =IF(A56="F",(IF(OR(H56>2001,H56<2004),VLOOKUP(I56,Feuil1!$G$11:$H$25,2))),IF(A56="H",(IF(OR(H56>2001,H56<2004),VLOOKUP(I56,Feuil1!$A$11:$F$29,2))))) -> M50 | Z56: =T56-HLOOKUP(X56,#REF!,2,FALSE) ->  | AA56: =T56-HLOOKUP(X56,#REF!,3,FALSE) ->  | AB56: =T56-HLOOKUP(X56,#REF!,4,FALSE) ->  | AC56: =T56-HLOOKUP(X56,#REF!,5,FALSE) ->  | AD56: =T56-HLOOKUP(X56,#REF!,6,FALSE) ->  | AE56: =T56-HLOOKUP(X56,#REF!,7,FALSE) ->  | AF56: =T56-HLOOKUP(X56,#REF!,8,FALSE) ->  | AG56: =T56-HLOOKUP(X56,#REF!,9,FALSE) ->  | AO56: =IF(AG56>=0,$AG$4,IF(AF56>=0,$AF$4,IF(AE56>=0,$AE$4,IF(AD56>=0,$AD$4,IF(AC56>=0,$AC$4,IF(AB56>=0,$AB$4,IF(AA56>=0,$AA$4,IF(Z56>=0,$Z$4,$AH$4)))))))) -> 
A57: H | B57: NORD | C57: NPC | D57: 2 | E57: 359647 | F57: PARANTHOEN | G57: Jason | H57: 2002 | I57: 49 | J57: C.A.ROSENDAEL | K57: F | L57: 30 | M57: 32 | N57: 34 | O57: 66 | P57: 40 | Q57: 42 | R57: 44 | S57: 86 | T57: 152 | U57: 265.0349067 | V57: 103 | X57: =IF(A57="F",(IF(OR(H57>2001,H57<2004),VLOOKUP(I57,Feuil1!$G$11:$H$25,2))),IF(A57="H",(IF(OR(H57>2001,H57<2004),VLOOKUP(I57,Feuil1!$A$11:$F$29,2))))) -> M50 | Z57: =T57-HLOOKUP(X57,#REF!,2,FALSE) ->  | AA57: =T57-HLOOKUP(X57,#REF!,3,FALSE) ->  | AB57: =T57-HLOOKUP(X57,#REF!,4,FALSE) ->  | AC57: =T57-HLOOKUP(X57,#REF!,5,FALSE) ->  | AD57: =T57-HLOOKUP(X57,#REF!,6,FALSE) ->  | AE57: =T57-HLOOKUP(X57,#REF!,7,FALSE) ->  | AF57: =T57-HLOOKUP(X57,#REF!,8,FALSE) ->  | AG57: =T57-HLOOKUP(X57,#REF!,9,FALSE) -> 
A58: H | B58: N | C58: IDF | D58: 3 | E58: 334661 | F58: RASCLE | G58: LENNY | H58: 2002 | I58: 45.5 | J58: VGA SAINT-MAUR | K58: F | L58: 25 | M58: 27 | N58: 29 | O58: 56 | P58: 37 | Q58: 39 | R58: 41 | S58: 80 | T58: 136 | U58: 253.5199707 | V58: 90.5 | X58: =IF(A58="F",(IF(OR(H58>2001,H58<2004),VLOOKUP(I58,Feuil1!$G$11:$H$25,2))),IF(A58="H",(IF(OR(H58>2001,H58<2004),VLOOKUP(I58,Feuil1!$A$11:$F$29,2))))) -> M50 | Z58: =T58-HLOOKUP(X58,#REF!,2,FALSE) ->  | AA58: =T58-HLOOKUP(X58,#REF!,3,FALSE) ->  | AB58: =T58-HLOOKUP(X58,#REF!,4,FALSE) ->  | AC58: =T58-HLOOKUP(X58,#REF!,5,FALSE) ->  | AD58: =T58-HLOOKUP(X58,#REF!,6,FALSE) ->  | AE58: =T58-HLOOKUP(X58,#REF!,7,FALSE) ->  | AF58: =T58-HLOOKUP(X58,#REF!,8,FALSE) ->  | AG58: =T58-HLOOKUP(X58,#REF!,9,FALSE) -> 
A59: H | B59: SO | C59: MPY | D59: 4 | E59: 326262 | F59: HAVET | G59: Bastien | H59: 2002 | I59: 49 | J59: FIGEAC HC | K59: F | L59: 31 | M59: 33 | N59: 35 | O59: 68 | P59: 31 | Q59: 33 | R59: 35 | S59: 68 | T59: 136 | U59: 237.1364955 | V59: 87 | X59: =IF(A59="F",(IF(OR(H59>2001,H59<2004),VLOOKUP(I59,Feuil1!$G$11:$H$25,2))),IF(A59="H",(IF(OR(H59>2001,H59<2004),VLOOKUP(I59,Feuil1!$A$11:$F$29,2))))) -> M50 | Z59: =T59-HLOOKUP(X59,#REF!,2,FALSE) ->  | AA59: =T59-HLOOKUP(X59,#REF!,3,FALSE) ->  | AB59: =T59-HLOOKUP(X59,#REF!,4,FALSE) ->  | AC59: =T59-HLOOKUP(X59,#REF!,5,FALSE) ->  | AD59: =T59-HLOOKUP(X59,#REF!,6,FALSE) ->  | AE59: =T59-HLOOKUP(X59,#REF!,7,FALSE) ->  | AF59: =T59-HLOOKUP(X59,#REF!,8,FALSE) ->  | AG59: =T59-HLOOKUP(X59,#REF!,9,FALSE) -> 
A60: H | B60: SE | C60: LAN | D60: 5 | E60: 306124 | F60: MARTINEZ | G60: Léo | H60: 2003 | I60: 49.6 | J60: Clermont Sports | K60: F | L60: 26 | M60: 28 | N60: 29 | O60: 57 | P60: 36 | Q60: 38 | R60: 39 | S60: 77 | T60: 134 | U60: 231.1834626 | V60: 84.4 | X60: =IF(A60="F",(IF(OR(H60>2001,H60<2004),VLOOKUP(I60,Feuil1!$G$11:$H$25,2))),IF(A60="H",(IF(OR(H60>2001,H60<2004),VLOOKUP(I60,Feuil1!$A$11:$F$29,2))))) -> M50 | Z60: =T60-HLOOKUP(X60,#REF!,2,FALSE) ->  | AA60: =T60-HLOOKUP(X60,#REF!,3,FALSE) ->  | AB60: =T60-HLOOKUP(X60,#REF!,4,FALSE) ->  | AC60: =T60-HLOOKUP(X60,#REF!,5,FALSE) ->  | AD60: =T60-HLOOKUP(X60,#REF!,6,FALSE) ->  | AE60: =T60-HLOOKUP(X60,#REF!,7,FALSE) ->  | AF60: =T60-HLOOKUP(X60,#REF!,8,FALSE) ->  | AG60: =T60-HLOOKUP(X60,#REF!,9,FALSE) -> 
A61: H | B61: NORD | C61: NPC | D61: 6 | E61: 344407 | F61: GALLOO | G61: Martin | H61: 2002 | I61: 45.4 | J61: CHCD COMINES | K61: F | L61: 23 | M61: 25 | N61: 27 | O61: 52 | P61: 34 | Q61: 36 | R61: 38 | S61: 74 | T61: 126 | U61: 235.358761 | V61: 80.6 | X61: =IF(A61="F",(IF(OR(H61>2001,H61<2004),VLOOKUP(I61,Feuil1!$G$11:$H$25,2))),IF(A61="H",(IF(OR(H61>2001,H61<2004),VLOOKUP(I61,Feuil1!$A$11:$F$29,2))))) -> M50 | Z61: =T61-HLOOKUP(X61,#REF!,2,FALSE) ->  | AA61: =T61-HLOOKUP(X61,#REF!,3,FALSE) ->  | AB61: =T61-HLOOKUP(X61,#REF!,4,FALSE) ->  | AC61: =T61-HLOOKUP(X61,#REF!,5,FALSE) ->  | AD61: =T61-HLOOKUP(X61,#REF!,6,FALSE) ->  | AE61: =T61-HLOOKUP(X61,#REF!,7,FALSE) ->  | AF61: =T61-HLOOKUP(X61,#REF!,8,FALSE) ->  | AG61: =T61-HLOOKUP(X61,#REF!,9,FALSE) -> 
A62: H | B62: SEST | C62: RAL | D62: 7 | E62: 378094 | F62: DENIS | G62: Thomas | H62: 2002 | I62: 49.2 | J62: CHAMBON FEUG | K62: F | L62: 25 | M62: 27 | N62: 28 | O62: 55 | P62: 30 | Q62: -32 | R62: 32 | S62: 62 | T62: 117 | U62: 203.2817211 | V62: 67.8 | X62: =IF(A62="F",(IF(OR(H62>2001,H62<2004),VLOOKUP(I62,Feuil1!$G$11:$H$25,2))),IF(A62="H",(IF(OR(H62>2001,H62<2004),VLOOKUP(I62,Feuil1!$A$11:$F$29,2))))) -> M50 | Z62: =T62-HLOOKUP(X62,#REF!,2,FALSE) ->  | AA62: =T62-HLOOKUP(X62,#REF!,3,FALSE) ->  | AB62: =T62-HLOOKUP(X62,#REF!,4,FALSE) ->  | AC62: =T62-HLOOKUP(X62,#REF!,5,FALSE) ->  | AD62: =T62-HLOOKUP(X62,#REF!,6,FALSE) ->  | AE62: =T62-HLOOKUP(X62,#REF!,7,FALSE) ->  | AF62: =T62-HLOOKUP(X62,#REF!,8,FALSE) ->  | AG62: =T62-HLOOKUP(X62,#REF!,9,FALSE) -> 
A63: H | B63: SO | C63: AQU | D63: 8 | E63: 377643 | F63: JACQUET | G63: YOANN | H63: 2002 | I63: 45.2 | J63: BORDEAUX ASPOM | K63: F | L63: 21 | M63: 23 | N63: 25 | O63: 48 | P63: 30 | Q63: 32 | R63: 34 | S63: 66 | T63: 114 | U63: 213.8198583 | V63: 68.8 | X63: =IF(A63="F",(IF(OR(H63>2001,H63<2004),VLOOKUP(I63,Feuil1!$G$11:$H$25,2))),IF(A63="H",(IF(OR(H63>2001,H63<2004),VLOOKUP(I63,Feuil1!$A$11:$F$29,2))))) -> M50 | Z63: =T63-HLOOKUP(X63,#REF!,2,FALSE) ->  | AA63: =T63-HLOOKUP(X63,#REF!,3,FALSE) ->  | AB63: =T63-HLOOKUP(X63,#REF!,4,FALSE) ->  | AC63: =T63-HLOOKUP(X63,#REF!,5,FALSE) ->  | AD63: =T63-HLOOKUP(X63,#REF!,6,FALSE) ->  | AE63: =T63-HLOOKUP(X63,#REF!,7,FALSE) ->  | AF63: =T63-HLOOKUP(X63,#REF!,8,FALSE) ->  | AG63: =T63-HLOOKUP(X63,#REF!,9,FALSE) -> 
A64: H | B64: SO | C64: POI | D64: 9 | E64: 375640 | F64: MONGIN | G64: Hugo | H64: 2002 | I64: 46.8 | J64: Poitiers | K64: F | L64: 21 | M64: 23 | N64: 25 | O64: 48 | P64: 28 | Q64: 30 | R64: 32 | S64: 62 | T64: 110 | U64: 199.8218495 | V64: 63.2 | X64: =IF(A64="F",(IF(OR(H64>2001,H64<2004),VLOOKUP(I64,Feuil1!$G$11:$H$25,2))),IF(A64="H",(IF(OR(H64>2001,H64<2004),VLOOKUP(I64,Feuil1!$A$11:$F$29,2))))) -> M50 | Z64: =T64-HLOOKUP(X64,#REF!,2,FALSE) ->  | AA64: =T64-HLOOKUP(X64,#REF!,3,FALSE) ->  | AB64: =T64-HLOOKUP(X64,#REF!,4,FALSE) ->  | AC64: =T64-HLOOKUP(X64,#REF!,5,FALSE) ->  | AD64: =T64-HLOOKUP(X64,#REF!,6,FALSE) ->  | AE64: =T64-HLOOKUP(X64,#REF!,7,FALSE) ->  | AF64: =T64-HLOOKUP(X64,#REF!,8,FALSE) ->  | AG64: =T64-HLOOKUP(X64,#REF!,9,FALSE) -> 
A65: H | B65: NORD | C65: NPC | D65: 10 | E65: 376898 | F65: MANGELLE | G65: Kenzo | H65: 2003 | I65: 47.6 | J65: ST POL/MER | K65: F | L65: 20 | M65: 22 | N65: 24 | O65: 46 | P65: 28 | Q65: 30 | R65: 32 | S65: 62 | T65: 108 | U65: 193.2128927 | V65: 60.4 | X65: =IF(A65="F",(IF(OR(H65>2001,H65<2004),VLOOKUP(I65,Feuil1!$G$11:$H$25,2))),IF(A65="H",(IF(OR(H65>2001,H65<2004),VLOOKUP(I65,Feuil1!$A$11:$F$29,2))))) -> M50 | Z65: =T65-HLOOKUP(X65,#REF!,2,FALSE) ->  | AA65: =T65-HLOOKUP(X65,#REF!,3,FALSE) ->  | AB65: =T65-HLOOKUP(X65,#REF!,4,FALSE) ->  | AC65: =T65-HLOOKUP(X65,#REF!,5,FALSE) ->  | AD65: =T65-HLOOKUP(X65,#REF!,6,FALSE) ->  | AE65: =T65-HLOOKUP(X65,#REF!,7,FALSE) ->  | AF65: =T65-HLOOKUP(X65,#REF!,8,FALSE) ->  | AG65: =T65-HLOOKUP(X65,#REF!,9,FALSE) -> 
A66: H | B66: NORD | C66: PIC | D66: 11 | E66: 364932 | F66: VICART | G66: Mathéo | H66: 2002 | I66: 49.3 | J66: Saleux CHM | K66: F | L66: 22 | M66: 24 | N66: 26 | O66: 50 | P66: 27 | Q66: 29 | R66: -31 | S66: 56 | T66: 106 | U66: 183.8438199 | V66: 56.7 | X66: =IF(A66="F",(IF(OR(H66>2001,H66<2004),VLOOKUP(I66,Feuil1!$G$11:$H$25,2))),IF(A66="H",(IF(OR(H66>2001,H66<2004),VLOOKUP(I66,Feuil1!$A$11:$F$29,2))))) -> M50 | Z66: =T66-HLOOKUP(X66,#REF!,2,FALSE) ->  | AA66: =T66-HLOOKUP(X66,#REF!,3,FALSE) ->  | AB66: =T66-HLOOKUP(X66,#REF!,4,FALSE) ->  | AC66: =T66-HLOOKUP(X66,#REF!,5,FALSE) ->  | AD66: =T66-HLOOKUP(X66,#REF!,6,FALSE) ->  | AE66: =T66-HLOOKUP(X66,#REF!,7,FALSE) ->  | AF66: =T66-HLOOKUP(X66,#REF!,8,FALSE) ->  | AG66: =T66-HLOOKUP(X66,#REF!,9,FALSE) -> 
A67: H | B67: SE | C67: PRO | D67: 12 | E67: 364002 | F67: CHOMIENNE | G67: Tristan | H67: 2002 | I67: 50 | J67: ISTRES SPORTS | K67: F | L67: 20 | M67: 22 | N67: 24 | O67: 46 | P67: 26 | Q67: 28 | R67: 30 | S67: 58 | T67: 104 | U67: 178.184038 | V67: 54 | X67: =IF(A67="F",(IF(OR(H67>2001,H67<2004),VLOOKUP(I67,Feuil1!$G$11:$H$25,2))),IF(A67="H",(IF(OR(H67>2001,H67<2004),VLOOKUP(I67,Feuil1!$A$11:$F$29,2))))) -> M50 | Z67: =T67-HLOOKUP(X67,#REF!,2,FALSE) ->  | AA67: =T67-HLOOKUP(X67,#REF!,3,FALSE) ->  | AB67: =T67-HLOOKUP(X67,#REF!,4,FALSE) ->  | AC67: =T67-HLOOKUP(X67,#REF!,5,FALSE) ->  | AD67: =T67-HLOOKUP(X67,#REF!,6,FALSE) ->  | AE67: =T67-HLOOKUP(X67,#REF!,7,FALSE) ->  | AF67: =T67-HLOOKUP(X67,#REF!,8,FALSE) ->  | AG67: =T67-HLOOKUP(X67,#REF!,9,FALSE) -> 
A68: H | B68: N | C68: IDF | D68: 13 | E68: 377315 | F68: CAGNY | G68: RAFAEL | H68: 2003 | I68: 48.8 | J68: FRANCONVILLE | K68: F | L68: 18 | M68: 20 | N68: 22 | O68: 42 | P68: 27 | Q68: 29 | R68: 31 | S68: 60 | T68: 102 | U68: 178.4916944 | V68: 53.2 | X68: =IF(A68="F",(IF(OR(H68>2001,H68<2004),VLOOKUP(I68,Feuil1!$G$11:$H$25,2))),IF(A68="H",(IF(OR(H68>2001,H68<2004),VLOOKUP(I68,Feuil1!$A$11:$F$29,2))))) -> M50 | Z68: =T68-HLOOKUP(X68,#REF!,2,FALSE) ->  | AA68: =T68-HLOOKUP(X68,#REF!,3,FALSE) ->  | AB68: =T68-HLOOKUP(X68,#REF!,4,FALSE) ->  | AC68: =T68-HLOOKUP(X68,#REF!,5,FALSE) ->  | AD68: =T68-HLOOKUP(X68,#REF!,6,FALSE) ->  | AE68: =T68-HLOOKUP(X68,#REF!,7,FALSE) ->  | AF68: =T68-HLOOKUP(X68,#REF!,8,FALSE) ->  | AG68: =T68-HLOOKUP(X68,#REF!,9,FALSE) -> 
A69: H | B69: NE | C69: ALS | D69: 14 | E69: 355143 | F69: DELORME | G69: CYRIL | H69: 2003 | I69: 49.5 | J69: SR Obernai HM | K69: F | L69: 17 | M69: 19 | N69: 21 | O69: 40 | P69: 26 | Q69: 28 | R69: 30 | S69: 58 | T69: 98 | U69: 169.3709832 | V69: 48.5 | X69: =IF(A69="F",(IF(OR(H69>2001,H69<2004),VLOOKUP(I69,Feuil1!$G$11:$H$25,2))),IF(A69="H",(IF(OR(H69>2001,H69<2004),VLOOKUP(I69,Feuil1!$A$11:$F$29,2))))) -> M50 | Z69: =T69-HLOOKUP(X69,#REF!,2,FALSE) ->  | AA69: =T69-HLOOKUP(X69,#REF!,3,FALSE) ->  | AB69: =T69-HLOOKUP(X69,#REF!,4,FALSE) ->  | AC69: =T69-HLOOKUP(X69,#REF!,5,FALSE) ->  | AD69: =T69-HLOOKUP(X69,#REF!,6,FALSE) ->  | AE69: =T69-HLOOKUP(X69,#REF!,7,FALSE) ->  | AF69: =T69-HLOOKUP(X69,#REF!,8,FALSE) ->  | AG69: =T69-HLOOKUP(X69,#REF!,9,FALSE) -> 
A70: H | B70: N | C70: IDF | D70: 15 | E70: 380705 | F70: BEKKOUCH | G70: ILIES | H70: 2002 | I70: 49.2 | J70: CACHAN | K70: F | L70: 16 | M70: 18 | N70: 20 | O70: 38 | P70: 27 | Q70: 29 | R70: 30 | S70: 59 | T70: 97 | U70: 168.5327089 | V70: 47.8 | X70: =IF(A70="F",(IF(OR(H70>2001,H70<2004),VLOOKUP(I70,Feuil1!$G$11:$H$25,2))),IF(A70="H",(IF(OR(H70>2001,H70<2004),VLOOKUP(I70,Feuil1!$A$11:$F$29,2))))) -> M50 | Z70: =T70-HLOOKUP(X70,#REF!,2,FALSE) ->  | AA70: =T70-HLOOKUP(X70,#REF!,3,FALSE) ->  | AB70: =T70-HLOOKUP(X70,#REF!,4,FALSE) ->  | AC70: =T70-HLOOKUP(X70,#REF!,5,FALSE) ->  | AD70: =T70-HLOOKUP(X70,#REF!,6,FALSE) ->  | AE70: =T70-HLOOKUP(X70,#REF!,7,FALSE) ->  | AF70: =T70-HLOOKUP(X70,#REF!,8,FALSE) ->  | AG70: =T70-HLOOKUP(X70,#REF!,9,FALSE) -> 
A71: H | B71: CO | C71: PDL | D71: 16 | E71: 378550 | F71: IHIHI | G71: Ossama | H71: 2002 | I71: 47.95 | J71: CJF LAVAL - VOUTRÉ | K71: F | L71: 20 | M71: 22 | N71: 24 | O71: 46 | P71: 22 | Q71: 24 | R71: 25 | S71: 49 | T71: 95 | U71: 168.8470615 | V71: 47.05 | X71: =IF(A71="F",(IF(OR(H71>2001,H71<2004),VLOOKUP(I71,Feuil1!$G$11:$H$25,2))),IF(A71="H",(IF(OR(H71>2001,H71<2004),VLOOKUP(I71,Feuil1!$A$11:$F$29,2))))) -> M50 | Z71: =T71-HLOOKUP(X71,#REF!,2,FALSE) ->  | AA71: =T71-HLOOKUP(X71,#REF!,3,FALSE) ->  | AB71: =T71-HLOOKUP(X71,#REF!,4,FALSE) ->  | AC71: =T71-HLOOKUP(X71,#REF!,5,FALSE) ->  | AD71: =T71-HLOOKUP(X71,#REF!,6,FALSE) ->  | AE71: =T71-HLOOKUP(X71,#REF!,7,FALSE) ->  | AF71: =T71-HLOOKUP(X71,#REF!,8,FALSE) ->  | AG71: =T71-HLOOKUP(X71,#REF!,9,FALSE) -> 
A72: H | B72: SO | C72: AQU | D72: 17 | E72: 390374 | F72: GANESHARAJAH | G72: ABIESHEK | H72: 2002 | I72: 45.7 | J72: MONT DE MARSAN | K72: SRL | L72: 15 | M72: 18 | N72: 19 | O72: 37 | P72: 25 | Q72: 27 | R72: 30 | S72: 57 | T72: 94 | U72: 174.517172 | V72: 48.3 | X72: =IF(A72="F",(IF(OR(H72>2001,H72<2004),VLOOKUP(I72,Feuil1!$G$11:$H$25,2))),IF(A72="H",(IF(OR(H72>2001,H72<2004),VLOOKUP(I72,Feuil1!$A$11:$F$29,2))))) -> M50 | Z72: =T72-HLOOKUP(X72,#REF!,2,FALSE) ->  | AA72: =T72-HLOOKUP(X72,#REF!,3,FALSE) ->  | AB72: =T72-HLOOKUP(X72,#REF!,4,FALSE) ->  | AC72: =T72-HLOOKUP(X72,#REF!,5,FALSE) ->  | AD72: =T72-HLOOKUP(X72,#REF!,6,FALSE) ->  | AE72: =T72-HLOOKUP(X72,#REF!,7,FALSE) ->  | AF72: =T72-HLOOKUP(X72,#REF!,8,FALSE) ->  | AG72: =T72-HLOOKUP(X72,#REF!,9,FALSE) -> 
A73: H | B73: CO | C73: BRE | D73: 18 | E73: 327176 | F73: FETIVEAU | G73: Brian | H73: 2003 | I73: 48.7 | J73: ES Saint-Avé | K73: F | L73: 21 | M73: 23 | N73: -25 | O73: 44 | P73: 22 | Q73: 24 | R73: 26 | S73: 50 | T73: 94 | U73: 164.789355 | V73: 45.3 | X73: =IF(A73="F",(IF(OR(H73>2001,H73<2004),VLOOKUP(I73,Feuil1!$G$11:$H$25,2))),IF(A73="H",(IF(OR(H73>2001,H73<2004),VLOOKUP(I73,Feuil1!$A$11:$F$29,2))))) -> M50 | Z73: =T73-HLOOKUP(X73,#REF!,2,FALSE) ->  | AA73: =T73-HLOOKUP(X73,#REF!,3,FALSE) ->  | AB73: =T73-HLOOKUP(X73,#REF!,4,FALSE) ->  | AC73: =T73-HLOOKUP(X73,#REF!,5,FALSE) ->  | AD73: =T73-HLOOKUP(X73,#REF!,6,FALSE) ->  | AE73: =T73-HLOOKUP(X73,#REF!,7,FALSE) ->  | AF73: =T73-HLOOKUP(X73,#REF!,8,FALSE) ->  | AG73: =T73-HLOOKUP(X73,#REF!,9,FALSE) -> 
A74: H | B74: CO | C74: BRE | D74: 19 | E74: 364030 | F74: RAGOT | G74: Antoine | H74: 2002 | I74: 47.1 | J74: HC Pleurtuit | K74: F | L74: 16 | M74: 18 | N74: 20 | O74: 38 | P74: 26 | Q74: 28 | R74: -30 | S74: 54 | T74: 92 | U74: 166.1596526 | V74: 44.9 | X74: =IF(A74="F",(IF(OR(H74>2001,H74<2004),VLOOKUP(I74,Feuil1!$G$11:$H$25,2))),IF(A74="H",(IF(OR(H74>2001,H74<2004),VLOOKUP(I74,Feuil1!$A$11:$F$29,2))))) -> M50 | Z74: =T74-HLOOKUP(X74,#REF!,2,FALSE) ->  | AA74: =T74-HLOOKUP(X74,#REF!,3,FALSE) ->  | AB74: =T74-HLOOKUP(X74,#REF!,4,FALSE) ->  | AC74: =T74-HLOOKUP(X74,#REF!,5,FALSE) ->  | AD74: =T74-HLOOKUP(X74,#REF!,6,FALSE) ->  | AE74: =T74-HLOOKUP(X74,#REF!,7,FALSE) ->  | AF74: =T74-HLOOKUP(X74,#REF!,8,FALSE) ->  | AG74: =T74-HLOOKUP(X74,#REF!,9,FALSE) -> 
A75: H | B75: CO | C75: BRE | D75: 20 | E75: 378681 | F75: OUDIN | G75: Fabien | H75: 2003 | I75: 46.4 | J75: CHM Plouhinec | K75: F | L75: 18 | M75: 19 | N75: 20 | O75: 39 | P75: 21 | Q75: 23 | R75: 25 | S75: 48 | T75: 87 | U75: 159.2810185 | V75: 40.6 | X75: =IF(A75="F",(IF(OR(H75>2001,H75<2004),VLOOKUP(I75,Feuil1!$G$11:$H$25,2))),IF(A75="H",(IF(OR(H75>2001,H75<2004),VLOOKUP(I75,Feuil1!$A$11:$F$29,2))))) -> M50 | Z75: =T75-HLOOKUP(X75,#REF!,2,FALSE) ->  | AA75: =T75-HLOOKUP(X75,#REF!,3,FALSE) ->  | AB75: =T75-HLOOKUP(X75,#REF!,4,FALSE) ->  | AC75: =T75-HLOOKUP(X75,#REF!,5,FALSE) ->  | AD75: =T75-HLOOKUP(X75,#REF!,6,FALSE) ->  | AE75: =T75-HLOOKUP(X75,#REF!,7,FALSE) ->  | AF75: =T75-HLOOKUP(X75,#REF!,8,FALSE) ->  | AG75: =T75-HLOOKUP(X75,#REF!,9,FALSE) -> 
A76: H | B76: NE | C76: ALS | D76: 21 | E76: 383774 | F76: VERGNAUD | G76: JAROD | H76: 2003 | I76: 45.4 | J76: SHC Haguenau | K76: F | L76: 13 | M76: 15 | N76: -17 | O76: 28 | P76: 18 | Q76: 20 | R76: 22 | S76: 42 | T76: 70 | U76: 130.7548672 | V76: 24.6 | X76: =IF(A76="F",(IF(OR(H76>2001,H76<2004),VLOOKUP(I76,Feuil1!$G$11:$H$25,2))),IF(A76="H",(IF(OR(H76>2001,H76<2004),VLOOKUP(I76,Feuil1!$A$11:$F$29,2))))) -> M50 | Z76: =T76-HLOOKUP(X76,#REF!,2,FALSE) ->  | AA76: =T76-HLOOKUP(X76,#REF!,3,FALSE) ->  | AB76: =T76-HLOOKUP(X76,#REF!,4,FALSE) ->  | AC76: =T76-HLOOKUP(X76,#REF!,5,FALSE) ->  | AD76: =T76-HLOOKUP(X76,#REF!,6,FALSE) ->  | AE76: =T76-HLOOKUP(X76,#REF!,7,FALSE) ->  | AF76: =T76-HLOOKUP(X76,#REF!,8,FALSE) ->  | AG76: =T76-HLOOKUP(X76,#REF!,9,FALSE) -> 
A77: H | B77: CO | C77: BNO | D77: 22 | E77: 377449 | F77: Anquetil | G77: Kilian | H77: 2002 | I77: 45.3 | J77: Giberville | K77: F | L77: 12 | M77: 13 | N77: 14 | O77: 27 | P77: 16 | Q77: 17 | R77: 19 | S77: 36 | T77: 63 | U77: 117.9207792 | V77: 17.7 | X77: =IF(A77="F",(IF(OR(H77>2001,H77<2004),VLOOKUP(I77,Feuil1!$G$11:$H$25,2))),IF(A77="H",(IF(OR(H77>2001,H77<2004),VLOOKUP(I77,Feuil1!$A$11:$F$29,2))))) -> M50 | Z77: =T77-HLOOKUP(X77,#REF!,2,FALSE) ->  | AA77: =T77-HLOOKUP(X77,#REF!,3,FALSE) ->  | AB77: =T77-HLOOKUP(X77,#REF!,4,FALSE) ->  | AC77: =T77-HLOOKUP(X77,#REF!,5,FALSE) ->  | AD77: =T77-HLOOKUP(X77,#REF!,6,FALSE) ->  | AE77: =T77-HLOOKUP(X77,#REF!,7,FALSE) ->  | AF77: =T77-HLOOKUP(X77,#REF!,8,FALSE) ->  | AG77: =T77-HLOOKUP(X77,#REF!,9,FALSE) -> 
A78: H | B78: SO | C78: MPY | D78: 23 | E78: 375974 | F78: MIQUEL | G78: Noah | H78: 2003 | I78: 45.2 | J78: MONTAUBAN HC | K78: F | L78: 9 | M78: 11 | N78: 12 | O78: 23 | P78: 14 | Q78: 16 | R78: 17 | S78: 33 | T78: 56 | U78: 105.0343164 | V78: 10.8 | X78: =IF(A78="F",(IF(OR(H78>2001,H78<2004),VLOOKUP(I78,Feuil1!$G$11:$H$25,2))),IF(A78="H",(IF(OR(H78>2001,H78<2004),VLOOKUP(I78,Feuil1!$A$11:$F$29,2))))) -> M50 | Z78: =T78-HLOOKUP(X78,#REF!,2,FALSE) ->  | AA78: =T78-HLOOKUP(X78,#REF!,3,FALSE) ->  | AB78: =T78-HLOOKUP(X78,#REF!,4,FALSE) ->  | AC78: =T78-HLOOKUP(X78,#REF!,5,FALSE) ->  | AD78: =T78-HLOOKUP(X78,#REF!,6,FALSE) ->  | AE78: =T78-HLOOKUP(X78,#REF!,7,FALSE) ->  | AF78: =T78-HLOOKUP(X78,#REF!,8,FALSE) ->  | AG78: =T78-HLOOKUP(X78,#REF!,9,FALSE) -> 
A79: H | B79: CO | C79: CEN | D79: 24 | E79: 386546 | F79: CLAVIER | G79: Mathéo | H79: 2002 | I79: 47.4 | J79: CHM CHATEAUROUX | K79: F | L79: 11 | M79: -12 | N79: 12 | O79: 23 | P79: 14 | Q79: 15 | R79: 16 | S79: 31 | T79: 54 | U79: 96.97215304 | V79: 6.6 | X79: =IF(A79="F",(IF(OR(H79>2001,H79<2004),VLOOKUP(I79,Feuil1!$G$11:$H$25,2))),IF(A79="H",(IF(OR(H79>2001,H79<2004),VLOOKUP(I79,Feuil1!$A$11:$F$29,2))))) -> M50 | Z79: =T79-HLOOKUP(X79,#REF!,2,FALSE) ->  | AA79: =T79-HLOOKUP(X79,#REF!,3,FALSE) ->  | AB79: =T79-HLOOKUP(X79,#REF!,4,FALSE) ->  | AC79: =T79-HLOOKUP(X79,#REF!,5,FALSE) ->  | AD79: =T79-HLOOKUP(X79,#REF!,6,FALSE) ->  | AE79: =T79-HLOOKUP(X79,#REF!,7,FALSE) ->  | AF79: =T79-HLOOKUP(X79,#REF!,8,FALSE) ->  | AG79: =T79-HLOOKUP(X79,#REF!,9,FALSE) -> 
A80: H | B80: CO | C80: BRE | D80: 25 | E80: 378685 | F80: AUTRET | G80: Ian | H80: 2003 | I80: 45.4 | J80: CHM Plouhinec | K80: F | L80: 12 | M80: 13 | N80: 14 | O80: 27 | P80: 11 | Q80: 12 | R80: 13 | S80: 25 | T80: 52 | U80: 97.13218707 | V80: 6.6 | X80: =IF(A80="F",(IF(OR(H80>2001,H80<2004),VLOOKUP(I80,Feuil1!$G$11:$H$25,2))),IF(A80="H",(IF(OR(H80>2001,H80<2004),VLOOKUP(I80,Feuil1!$A$11:$F$29,2))))) -> M50 | Z80: =T80-HLOOKUP(X80,#REF!,2,FALSE) ->  | AA80: =T80-HLOOKUP(X80,#REF!,3,FALSE) ->  | AB80: =T80-HLOOKUP(X80,#REF!,4,FALSE) ->  | AC80: =T80-HLOOKUP(X80,#REF!,5,FALSE) ->  | AD80: =T80-HLOOKUP(X80,#REF!,6,FALSE) ->  | AE80: =T80-HLOOKUP(X80,#REF!,7,FALSE) ->  | AF80: =T80-HLOOKUP(X80,#REF!,8,FALSE) ->  | AG80: =T80-HLOOKUP(X80,#REF!,9,FALSE) -> 
Z81: =T81-HLOOKUP(X81,#REF!,2,FALSE) ->  | AA81: =T81-HLOOKUP(X81,#REF!,3,FALSE) ->  | AB81: =T81-HLOOKUP(X81,#REF!,4,FALSE) ->  | AC81: =T81-HLOOKUP(X81,#REF!,5,FALSE) ->  | AD81: =T81-HLOOKUP(X81,#REF!,6,FALSE) ->  | AE81: =T81-HLOOKUP(X81,#REF!,7,FALSE) ->  | AF81: =T81-HLOOKUP(X81,#REF!,8,FALSE) ->  | AG81: =T81-HLOOKUP(X81,#REF!,9,FALSE) ->  | AO81: =IF(AG81>=0,$AG$4,IF(AF81>=0,$AF$4,IF(AE81>=0,$AE$4,IF(AD81>=0,$AD$4,IF(AC81>=0,$AC$4,IF(AB81>=0,$AB$4,IF(AA81>=0,$AA$4,IF(Z81>=0,$Z$4,$AH$4)))))))) -> 
A82: H | B82: NE | C82: ALS | D82: 1 | E82: 324091 | F82: SPAGNULO | G82: GIACONO | H82: 2002 | I82: 53.4 | J82: SHC Haguenau | K82: F | L82: 44 | M82: 46 | N82: -48 | O82: =IF(MAXA(L82+M82,M82+N82,L82+N82,L82,M82,N82)<=0,0,MAXA(L82+M82,M82+N82,L82+N82,L82,M82,N82)) -> 90 | P82: 54 | Q82: 56 | R82: 58 | S82: =IF(MAXA(P82+Q82,Q82+R82,P82+R82,P82,Q82,R82)<=0,0,MAXA(P82+Q82,Q82+R82,P82+R82,P82,Q82,R82)) -> 114 | T82: =IF(H82="","",IF(OR(O82=0,S82=0),0,O82+S82)) -> 204 | U82: =IF(I82="","",IF(A82="H",10^(0.794358141*LOG(I82/174.393)^2)*T82,IF(A82="F",10^(0.89726074 * LOG(I82/148.026)^2)*T82,""))) -> 330.7397864 | V82: =SUM(T82-I82) -> 150.6 | X82: =IF(A82="F",(IF(OR(H82>2001,H82<2004),VLOOKUP(I82,Feuil1!$G$11:$H$25,2))),IF(A82="H",(IF(OR(H82>2001,H82<2004),VLOOKUP(I82,Feuil1!$A$11:$F$29,2))))) -> M56 | Z82: =T82-HLOOKUP(X82,#REF!,2,FALSE) ->  | AA82: =T82-HLOOKUP(X82,#REF!,3,FALSE) ->  | AB82: =T82-HLOOKUP(X82,#REF!,4,FALSE) ->  | AC82: =T82-HLOOKUP(X82,#REF!,5,FALSE) ->  | AD82: =T82-HLOOKUP(X82,#REF!,6,FALSE) ->  | AE82: =T82-HLOOKUP(X82,#REF!,7,FALSE) ->  | AF82: =T82-HLOOKUP(X82,#REF!,8,FALSE) ->  | AG82: =T82-HLOOKUP(X82,#REF!,9,FALSE) ->  | AO82: =IF(AG82>=0,$AG$4,IF(AF82>=0,$AF$4,IF(AE82>=0,$AE$4,IF(AD82>=0,$AD$4,IF(AC82>=0,$AC$4,IF(AB82>=0,$AB$4,IF(AA82>=0,$AA$4,IF(Z82>=0,$Z$4,$AH$4)))))))) -> 
A83: H | B83: DOM | C83: REU | D83: 2 | E83: 321684 | F83: ROUGET | G83: TIZZIANO | H83: 2002 | I83: 53 | J83: LES DEUX PETITS NANOS | K83: F | L83: 40 | M83: 42 | N83: 44 | O83: 86 | P83: 54 | Q83: 56 | R83: 58 | S83: 114 | T83: 200 | U83: 326.2580172 | V83: 147 | X83: =IF(A83="F",(IF(OR(H83>2001,H83<2004),VLOOKUP(I83,Feuil1!$G$11:$H$25,2))),IF(A83="H",(IF(OR(H83>2001,H83<2004),VLOOKUP(I83,Feuil1!$A$11:$F$29,2))))) -> M56 | Z83: =T83-HLOOKUP(X83,#REF!,2,FALSE) ->  | AA83: =T83-HLOOKUP(X83,#REF!,3,FALSE) ->  | AB83: =T83-HLOOKUP(X83,#REF!,4,FALSE) ->  | AC83: =T83-HLOOKUP(X83,#REF!,5,FALSE) ->  | AD83: =T83-HLOOKUP(X83,#REF!,6,FALSE) ->  | AE83: =T83-HLOOKUP(X83,#REF!,7,FALSE) ->  | AF83: =T83-HLOOKUP(X83,#REF!,8,FALSE) ->  | AG83: =T83-HLOOKUP(X83,#REF!,9,FALSE) -> 
A84: H | B84: SO | C84: MPY | D84: 3 | E84: 356782 | F84: CANCE | G84: Quentin | H84: 2002 | I84: 55.62 | J84: FIGEAC HC | K84: F | L84: 36 | M84: 38 | N84: 40 | O84: 78 | P84: 56 | Q84: -58 | R84: 58 | S84: 114 | T84: 192 | U84: 301.2735377 | V84: 136.38 | X84: =IF(A84="F",(IF(OR(H84>2001,H84<2004),VLOOKUP(I84,Feuil1!$G$11:$H$25,2))),IF(A84="H",(IF(OR(H84>2001,H84<2004),VLOOKUP(I84,Feuil1!$A$11:$F$29,2))))) -> M56 | Z84: =T84-HLOOKUP(X84,#REF!,2,FALSE) ->  | AA84: =T84-HLOOKUP(X84,#REF!,3,FALSE) ->  | AB84: =T84-HLOOKUP(X84,#REF!,4,FALSE) ->  | AC84: =T84-HLOOKUP(X84,#REF!,5,FALSE) ->  | AD84: =T84-HLOOKUP(X84,#REF!,6,FALSE) ->  | AE84: =T84-HLOOKUP(X84,#REF!,7,FALSE) ->  | AF84: =T84-HLOOKUP(X84,#REF!,8,FALSE) ->  | AG84: =T84-HLOOKUP(X84,#REF!,9,FALSE) -> 
A85: H | B85: CO | C85: CEN | D85: 4 | E85: 346360 | F85: PINIAU | G85: Mathis | H85: 2002 | I85: 55.8 | J85: CM ORLEANS | K85: F | L85: 27 | M85: 29 | N85: 31 | O85: 60 | P85: 37 | Q85: 39 | R85: 41 | S85: 80 | T85: 140 | U85: 219.1204728 | V85: 84.2 | X85: =IF(A85="F",(IF(OR(H85>2001,H85<2004),VLOOKUP(I85,Feuil1!$G$11:$H$25,2))),IF(A85="H",(IF(OR(H85>2001,H85<2004),VLOOKUP(I85,Feuil1!$A$11:$F$29,2))))) -> M56 | Z85: =T85-HLOOKUP(X85,#REF!,2,FALSE) ->  | AA85: =T85-HLOOKUP(X85,#REF!,3,FALSE) ->  | AB85: =T85-HLOOKUP(X85,#REF!,4,FALSE) ->  | AC85: =T85-HLOOKUP(X85,#REF!,5,FALSE) ->  | AD85: =T85-HLOOKUP(X85,#REF!,6,FALSE) ->  | AE85: =T85-HLOOKUP(X85,#REF!,7,FALSE) ->  | AF85: =T85-HLOOKUP(X85,#REF!,8,FALSE) ->  | AG85: =T85-HLOOKUP(X85,#REF!,9,FALSE) -> 
A86: H | B86: NORD | C86: NPC | D86: 5 | E86: 359647 | F86: PARANTHOEN | G86: Jason | H86: 2002 | I86: 50.1 | J86: C.A.ROSENDAEL | K86: F | L86: 24 | M86: -26 | N86: 26 | O86: 50 | P86: 40 | Q86: 42 | R86: 44 | S86: 86 | T86: 136 | U86: 232.6092666 | V86: 85.9 | X86: =IF(A86="F",(IF(OR(H86>2001,H86<2004),VLOOKUP(I86,Feuil1!$G$11:$H$25,2))),IF(A86="H",(IF(OR(H86>2001,H86<2004),VLOOKUP(I86,Feuil1!$A$11:$F$29,2))))) -> M56 | Z86: =T86-HLOOKUP(X86,#REF!,2,FALSE) ->  | AA86: =T86-HLOOKUP(X86,#REF!,3,FALSE) ->  | AB86: =T86-HLOOKUP(X86,#REF!,4,FALSE) ->  | AC86: =T86-HLOOKUP(X86,#REF!,5,FALSE) ->  | AD86: =T86-HLOOKUP(X86,#REF!,6,FALSE) ->  | AE86: =T86-HLOOKUP(X86,#REF!,7,FALSE) ->  | AF86: =T86-HLOOKUP(X86,#REF!,8,FALSE) ->  | AG86: =T86-HLOOKUP(X86,#REF!,9,FALSE) -> 
A87: H | B87: SE | C87: LAN | D87: 6 | E87: 306124 | F87: MARTINEZ | G87: Léo | H87: 2003 | I87: 52.9 | J87: Clermont Sports | K87: F | L87: 26 | M87: 28 | N87: 29 | O87: 57 | P87: 36 | Q87: 38 | R87: 40 | S87: 78 | T87: 135 | U87: 220.56648 | V87: 82.1 | X87: =IF(A87="F",(IF(OR(H87>2001,H87<2004),VLOOKUP(I87,Feuil1!$G$11:$H$25,2))),IF(A87="H",(IF(OR(H87>2001,H87<2004),VLOOKUP(I87,Feuil1!$A$11:$F$29,2))))) -> M56 | Z87: =T87-HLOOKUP(X87,#REF!,2,FALSE) ->  | AA87: =T87-HLOOKUP(X87,#REF!,3,FALSE) ->  | AB87: =T87-HLOOKUP(X87,#REF!,4,FALSE) ->  | AC87: =T87-HLOOKUP(X87,#REF!,5,FALSE) ->  | AD87: =T87-HLOOKUP(X87,#REF!,6,FALSE) ->  | AE87: =T87-HLOOKUP(X87,#REF!,7,FALSE) ->  | AF87: =T87-HLOOKUP(X87,#REF!,8,FALSE) ->  | AG87: =T87-HLOOKUP(X87,#REF!,9,FALSE) -> 
A88: H | B88: NE | C88: ALS | D88: 7 | E88: 375708 | F88: DELUCCHI | G88: MATTEO | H88: 2002 | I88: 52.5 | J88: SHC Haguenau | K88: F | L88: 27 | M88: 29 | N88: 31 | O88: 60 | P88: 33 | Q88: 35 | R88: 37 | S88: 72 | T88: 132 | U88: 217.0208469 | V88: 79.5 | X88: =IF(A88="F",(IF(OR(H88>2001,H88<2004),VLOOKUP(I88,Feuil1!$G$11:$H$25,2))),IF(A88="H",(IF(OR(H88>2001,H88<2004),VLOOKUP(I88,Feuil1!$A$11:$F$29,2))))) -> M56 | Z88: =T88-HLOOKUP(X88,#REF!,2,FALSE) ->  | AA88: =T88-HLOOKUP(X88,#REF!,3,FALSE) ->  | AB88: =T88-HLOOKUP(X88,#REF!,4,FALSE) ->  | AC88: =T88-HLOOKUP(X88,#REF!,5,FALSE) ->  | AD88: =T88-HLOOKUP(X88,#REF!,6,FALSE) ->  | AE88: =T88-HLOOKUP(X88,#REF!,7,FALSE) ->  | AF88: =T88-HLOOKUP(X88,#REF!,8,FALSE) ->  | AG88: =T88-HLOOKUP(X88,#REF!,9,FALSE) -> 
A89: H | B89: SE | C89: LAN | D89: 8 | E89: 374525 | F89: DELLACHI | G89: Yann | H89: 2002 | I89: 56 | J89: HC Grand Combe | K89: F | L89: 28 | M89: 30 | N89: 32 | O89: 62 | P89: 32 | Q89: 34 | R89: 36 | S89: 70 | T89: 132 | U89: 206.0198546 | V89: 76 | X89: =IF(A89="F",(IF(OR(H89>2001,H89<2004),VLOOKUP(I89,Feuil1!$G$11:$H$25,2))),IF(A89="H",(IF(OR(H89>2001,H89<2004),VLOOKUP(I89,Feuil1!$A$11:$F$29,2))))) -> M56 | Z89: =T89-HLOOKUP(X89,#REF!,2,FALSE) ->  | AA89: =T89-HLOOKUP(X89,#REF!,3,FALSE) ->  | AB89: =T89-HLOOKUP(X89,#REF!,4,FALSE) ->  | AC89: =T89-HLOOKUP(X89,#REF!,5,FALSE) ->  | AD89: =T89-HLOOKUP(X89,#REF!,6,FALSE) ->  | AE89: =T89-HLOOKUP(X89,#REF!,7,FALSE) ->  | AF89: =T89-HLOOKUP(X89,#REF!,8,FALSE) ->  | AG89: =T89-HLOOKUP(X89,#REF!,9,FALSE) -> 
A90: H | B90: NE | C90: ALS | D90: 9 | E90: 378213 | F90: LAPP | G90: EWANN | H90: 2003 | I90: 55.6 | J90: CHM Andlau | K90: F | L90: 28 | M90: -30 | N90: 30 | O90: 58 | P90: 32 | Q90: 34 | R90: 36 | S90: 70 | T90: 128 | U90: 200.9059977 | V90: 72.4 | X90: =IF(A90="F",(IF(OR(H90>2001,H90<2004),VLOOKUP(I90,Feuil1!$G$11:$H$25,2))),IF(A90="H",(IF(OR(H90>2001,H90<2004),VLOOKUP(I90,Feuil1!$A$11:$F$29,2))))) -> M56 | Z90: =T90-HLOOKUP(X90,#REF!,2,FALSE) ->  | AA90: =T90-HLOOKUP(X90,#REF!,3,FALSE) ->  | AB90: =T90-HLOOKUP(X90,#REF!,4,FALSE) ->  | AC90: =T90-HLOOKUP(X90,#REF!,5,FALSE) ->  | AD90: =T90-HLOOKUP(X90,#REF!,6,FALSE) ->  | AE90: =T90-HLOOKUP(X90,#REF!,7,FALSE) ->  | AF90: =T90-HLOOKUP(X90,#REF!,8,FALSE) ->  | AG90: =T90-HLOOKUP(X90,#REF!,9,FALSE) -> 
A91: H | B91: SEST | C91: RAL | D91: 10 | E91: 377320 | F91: SERRANO | G91: Dimitri | H91: 2002 | I91: 51.5 | J91: CHAMBON FEUG | K91: F | L91: 25 | M91: 27 | N91: 28 | O91: 55 | P91: 31 | Q91: 33 | R91: 35 | S91: 68 | T91: 123 | U91: 205.4973101 | V91: 71.5 | X91: =IF(A91="F",(IF(OR(H91>2001,H91<2004),VLOOKUP(I91,Feuil1!$G$11:$H$25,2))),IF(A91="H",(IF(OR(H91>2001,H91<2004),VLOOKUP(I91,Feuil1!$A$11:$F$29,2))))) -> M56 | Z91: =T91-HLOOKUP(X91,#REF!,2,FALSE) ->  | AA91: =T91-HLOOKUP(X91,#REF!,3,FALSE) ->  | AB91: =T91-HLOOKUP(X91,#REF!,4,FALSE) ->  | AC91: =T91-HLOOKUP(X91,#REF!,5,FALSE) ->  | AD91: =T91-HLOOKUP(X91,#REF!,6,FALSE) ->  | AE91: =T91-HLOOKUP(X91,#REF!,7,FALSE) ->  | AF91: =T91-HLOOKUP(X91,#REF!,8,FALSE) ->  | AG91: =T91-HLOOKUP(X91,#REF!,9,FALSE) -> 
A92: H | B92: N | C92: IDF | D92: 11 | E92: 380705 | F92: BEKKOUCH | G92: ILIES | H92: 2002 | I92: 54.3 | J92: CACHAN | K92: F | L92: 22 | M92: 24 | N92: 26 | O92: 50 | P92: 33 | Q92: 35 | R92: 37 | S92: 72 | T92: 122 | U92: 195.1330112 | V92: 67.7 | X92: =IF(A92="F",(IF(OR(H92>2001,H92<2004),VLOOKUP(I92,Feuil1!$G$11:$H$25,2))),IF(A92="H",(IF(OR(H92>2001,H92<2004),VLOOKUP(I92,Feuil1!$A$11:$F$29,2))))) -> M56 | Z92: =T92-HLOOKUP(X92,#REF!,2,FALSE) ->  | AA92: =T92-HLOOKUP(X92,#REF!,3,FALSE) ->  | AB92: =T92-HLOOKUP(X92,#REF!,4,FALSE) ->  | AC92: =T92-HLOOKUP(X92,#REF!,5,FALSE) ->  | AD92: =T92-HLOOKUP(X92,#REF!,6,FALSE) ->  | AE92: =T92-HLOOKUP(X92,#REF!,7,FALSE) ->  | AF92: =T92-HLOOKUP(X92,#REF!,8,FALSE) ->  | AG92: =T92-HLOOKUP(X92,#REF!,9,FALSE) -> 
A93: H | B93: NE | C93: LOR | D93: 12 | E93: 378967 | F93: MARROCCO | G93: Nathan | H93: 2003 | I93: 54.1 | J93: H.VALLEROY-AUBOUÉ | K93: F | L93: 21 | M93: 22 | N93: 23 | O93: 45 | P93: 26 | Q93: 27 | R93: 28 | S93: 55 | T93: 100 | U93: 160.4216942 | V93: 45.9 | X93: =IF(A93="F",(IF(OR(H93>2001,H93<2004),VLOOKUP(I93,Feuil1!$G$11:$H$25,2))),IF(A93="H",(IF(OR(H93>2001,H93<2004),VLOOKUP(I93,Feuil1!$A$11:$F$29,2))))) -> M56 | Z93: =T93-HLOOKUP(X93,#REF!,2,FALSE) ->  | AA93: =T93-HLOOKUP(X93,#REF!,3,FALSE) ->  | AB93: =T93-HLOOKUP(X93,#REF!,4,FALSE) ->  | AC93: =T93-HLOOKUP(X93,#REF!,5,FALSE) ->  | AD93: =T93-HLOOKUP(X93,#REF!,6,FALSE) ->  | AE93: =T93-HLOOKUP(X93,#REF!,7,FALSE) ->  | AF93: =T93-HLOOKUP(X93,#REF!,8,FALSE) ->  | AG93: =T93-HLOOKUP(X93,#REF!,9,FALSE) -> 
A94: H | B94: SE | C94: LAN | D94: 13 | E94: 383010 | F94: GARIDEL | G94: Théo | H94: 2002 | I94: 56 | J94: HC Grand Combe | K94: F | L94: -18 | M94: 18 | N94: 20 | O94: 38 | P94: 24 | Q94: 26 | R94: 28 | S94: 54 | T94: 92 | U94: 143.5895956 | V94: 36 | X94: =IF(A94="F",(IF(OR(H94>2001,H94<2004),VLOOKUP(I94,Feuil1!$G$11:$H$25,2))),IF(A94="H",(IF(OR(H94>2001,H94<2004),VLOOKUP(I94,Feuil1!$A$11:$F$29,2))))) -> M56 | Z94: =T94-HLOOKUP(X94,#REF!,2,FALSE) ->  | AA94: =T94-HLOOKUP(X94,#REF!,3,FALSE) ->  | AB94: =T94-HLOOKUP(X94,#REF!,4,FALSE) ->  | AC94: =T94-HLOOKUP(X94,#REF!,5,FALSE) ->  | AD94: =T94-HLOOKUP(X94,#REF!,6,FALSE) ->  | AE94: =T94-HLOOKUP(X94,#REF!,7,FALSE) ->  | AF94: =T94-HLOOKUP(X94,#REF!,8,FALSE) ->  | AG94: =T94-HLOOKUP(X94,#REF!,9,FALSE) -> 
A95: H | B95: SEST | C95: CAZ | D95: 14 | E95: 378543 | F95: GATEAU | G95: Raphael | H95: 2002 | I95: 51.7 | J95: ASPTT DRAGUIGNAN | K95: F | L95: 16 | M95: 17 | N95: 19 | O95: 36 | P95: 23 | Q95: 25 | R95: 27 | S95: 52 | T95: 88 | U95: 146.5444291 | V95: 36.3 | X95: =IF(A95="F",(IF(OR(H95>2001,H95<2004),VLOOKUP(I95,Feuil1!$G$11:$H$25,2))),IF(A95="H",(IF(OR(H95>2001,H95<2004),VLOOKUP(I95,Feuil1!$A$11:$F$29,2))))) -> M56 | Z95: =T95-HLOOKUP(X95,#REF!,2,FALSE) ->  | AA95: =T95-HLOOKUP(X95,#REF!,3,FALSE) ->  | AB95: =T95-HLOOKUP(X95,#REF!,4,FALSE) ->  | AC95: =T95-HLOOKUP(X95,#REF!,5,FALSE) ->  | AD95: =T95-HLOOKUP(X95,#REF!,6,FALSE) ->  | AE95: =T95-HLOOKUP(X95,#REF!,7,FALSE) ->  | AF95: =T95-HLOOKUP(X95,#REF!,8,FALSE) ->  | AG95: =T95-HLOOKUP(X95,#REF!,9,FALSE) -> 
A96: H | B96: N | C96: IDF | D96: 15 | E96: 386891 | F96: PHILIBERT | G96: MAEDÏN | H96: 2002 | I96: 55.9 | J96: FRANCONVILLE | K96: F | L96: 15 | M96: 17 | N96: 19 | O96: 36 | P96: 21 | Q96: 23 | R96: 25 | S96: 48 | T96: 84 | U96: 131.2874744 | V96: 28.1 | X96: =IF(A96="F",(IF(OR(H96>2001,H96<2004),VLOOKUP(I96,Feuil1!$G$11:$H$25,2))),IF(A96="H",(IF(OR(H96>2001,H96<2004),VLOOKUP(I96,Feuil1!$A$11:$F$29,2))))) -> M56 | Z96: =T96-HLOOKUP(X96,#REF!,2,FALSE) ->  | AA96: =T96-HLOOKUP(X96,#REF!,3,FALSE) ->  | AB96: =T96-HLOOKUP(X96,#REF!,4,FALSE) ->  | AC96: =T96-HLOOKUP(X96,#REF!,5,FALSE) ->  | AD96: =T96-HLOOKUP(X96,#REF!,6,FALSE) ->  | AE96: =T96-HLOOKUP(X96,#REF!,7,FALSE) ->  | AF96: =T96-HLOOKUP(X96,#REF!,8,FALSE) ->  | AG96: =T96-HLOOKUP(X96,#REF!,9,FALSE) -> 
A97: H | B97: CO | C97: CEN | D97: 16 | E97: 381199 | F97: AUBRY | G97: Tanguy | H97: 2003 | I97: 53.7 | J97: AAJ BLOIS | K97: F | L97: 15 | M97: 17 | N97: 19 | O97: 36 | P97: 20 | Q97: 22 | R97: 24 | S97: 46 | T97: 82 | U97: 132.3390658 | V97: 28.3 | X97: =IF(A97="F",(IF(OR(H97>2001,H97<2004),VLOOKUP(I97,Feuil1!$G$11:$H$25,2))),IF(A97="H",(IF(OR(H97>2001,H97<2004),VLOOKUP(I97,Feuil1!$A$11:$F$29,2))))) -> M56 | Z97: =T97-HLOOKUP(X97,#REF!,2,FALSE) ->  | AA97: =T97-HLOOKUP(X97,#REF!,3,FALSE) ->  | AB97: =T97-HLOOKUP(X97,#REF!,4,FALSE) ->  | AC97: =T97-HLOOKUP(X97,#REF!,5,FALSE) ->  | AD97: =T97-HLOOKUP(X97,#REF!,6,FALSE) ->  | AE97: =T97-HLOOKUP(X97,#REF!,7,FALSE) ->  | AF97: =T97-HLOOKUP(X97,#REF!,8,FALSE) ->  | AG97: =T97-HLOOKUP(X97,#REF!,9,FALSE) -> 
A98: H | B98: N | C98: IDF | D98: 17 | E98: 377315 | F98: CAGNY | G98: RAFAEL | H98: 2003 | I98: 50.7 | J98: FRANCONVILLE | K98: F | L98: 21 | M98: -23 | N98: -23 | O98: 21 | P98: 20 | Q98: 22 | R98: 23 | S98: 45 | T98: 66 | U98: 111.7387484 | V98: 15.3 | X98: =IF(A98="F",(IF(OR(H98>2001,H98<2004),VLOOKUP(I98,Feuil1!$G$11:$H$25,2))),IF(A98="H",(IF(OR(H98>2001,H98<2004),VLOOKUP(I98,Feuil1!$A$11:$F$29,2))))) -> M56 | Z98: =T98-HLOOKUP(X98,#REF!,2,FALSE) ->  | AA98: =T98-HLOOKUP(X98,#REF!,3,FALSE) ->  | AB98: =T98-HLOOKUP(X98,#REF!,4,FALSE) ->  | AC98: =T98-HLOOKUP(X98,#REF!,5,FALSE) ->  | AD98: =T98-HLOOKUP(X98,#REF!,6,FALSE) ->  | AE98: =T98-HLOOKUP(X98,#REF!,7,FALSE) ->  | AF98: =T98-HLOOKUP(X98,#REF!,8,FALSE) ->  | AG98: =T98-HLOOKUP(X98,#REF!,9,FALSE) -> 
A99: H | B99: CO | C99: HNO | D99: 18 | E99: 375036 | F99: Dubuisson | G99: florian | H99: 2002 | I99: 50.4 | J99: CHM Le Trait | K99: F | L99: 8 | M99: 10 | N99: 12 | O99: 22 | P99: 15 | Q99: 17 | R99: 19 | S99: 36 | T99: 58 | U99: 98.69384765 | V99: 7.6 | X99: =IF(A99="F",(IF(OR(H99>2001,H99<2004),VLOOKUP(I99,Feuil1!$G$11:$H$25,2))),IF(A99="H",(IF(OR(H99>2001,H99<2004),VLOOKUP(I99,Feuil1!$A$11:$F$29,2))))) -> M56 | Z99: =T99-HLOOKUP(X99,#REF!,2,FALSE) ->  | AA99: =T99-HLOOKUP(X99,#REF!,3,FALSE) ->  | AB99: =T99-HLOOKUP(X99,#REF!,4,FALSE) ->  | AC99: =T99-HLOOKUP(X99,#REF!,5,FALSE) ->  | AD99: =T99-HLOOKUP(X99,#REF!,6,FALSE) ->  | AE99: =T99-HLOOKUP(X99,#REF!,7,FALSE) ->  | AF99: =T99-HLOOKUP(X99,#REF!,8,FALSE) ->  | AG99: =T99-HLOOKUP(X99,#REF!,9,FALSE) -> 
Z100: =T100-HLOOKUP(X100,#REF!,2,FALSE) ->  | AA100: =T100-HLOOKUP(X100,#REF!,3,FALSE) ->  | AB100: =T100-HLOOKUP(X100,#REF!,4,FALSE) ->  | AC100: =T100-HLOOKUP(X100,#REF!,5,FALSE) ->  | AD100: =T100-HLOOKUP(X100,#REF!,6,FALSE) ->  | AE100: =T100-HLOOKUP(X100,#REF!,7,FALSE) ->  | AF100: =T100-HLOOKUP(X100,#REF!,8,FALSE) ->  | AG100: =T100-HLOOKUP(X100,#REF!,9,FALSE) ->  | AO100: =IF(AG100>=0,$AG$4,IF(AF100>=0,$AF$4,IF(AE100>=0,$AE$4,IF(AD100>=0,$AD$4,IF(AC100>=0,$AC$4,IF(AB100>=0,$AB$4,IF(AA100>=0,$AA$4,IF(Z100>=0,$Z$4,$AH$4)))))))) -> 
A101: H | B101: NE | C101: BOU | D101: 1 | E101: 363266 | F101: GRAILLOT | G101: Jessy | H101: 2003 | I101: 58.4 | J101: HMDB21 | K101: F | L101: 36 | M101: 38 | N101: 40 | O101: =IF(MAXA(L101+M101,M101+N101,L101+N101,L101,M101,N101)<=0,0,MAXA(L101+M101,M101+N101,L101+N101,L101,M101,N101)) -> 78 | P101: 46 | Q101: 48 | R101: 50 | S101: =IF(MAXA(P101+Q101,Q101+R101,P101+R101,P101,Q101,R101)<=0,0,MAXA(P101+Q101,Q101+R101,P101+R101,P101,Q101,R101)) -> 98 | T101: =IF(H101="","",IF(OR(O101=0,S101=0),0,O101+S101)) -> 176 | U101: =IF(I101="","",IF(A101="H",10^(0.794358141*LOG(I101/174.393)^2)*T101,IF(A101="F",10^(0.89726074 * LOG(I101/148.026)^2)*T101,""))) -> 265.9667978 | V101: =SUM(T101-I101) -> 117.6 | X101: =IF(A101="F",(IF(OR(H101>2001,H101<2004),VLOOKUP(I101,Feuil1!$G$11:$H$25,2))),IF(A101="H",(IF(OR(H101>2001,H101<2004),VLOOKUP(I101,Feuil1!$A$11:$F$29,2))))) -> M62 | Z101: =T101-HLOOKUP(X101,#REF!,2,FALSE) ->  | AA101: =T101-HLOOKUP(X101,#REF!,3,FALSE) ->  | AB101: =T101-HLOOKUP(X101,#REF!,4,FALSE) ->  | AC101: =T101-HLOOKUP(X101,#REF!,5,FALSE) ->  | AD101: =T101-HLOOKUP(X101,#REF!,6,FALSE) ->  | AE101: =T101-HLOOKUP(X101,#REF!,7,FALSE) ->  | AF101: =T101-HLOOKUP(X101,#REF!,8,FALSE) ->  | AG101: =T101-HLOOKUP(X101,#REF!,9,FALSE) ->  | AO101: =IF(AG101>=0,$AG$4,IF(AF101>=0,$AF$4,IF(AE101>=0,$AE$4,IF(AD101>=0,$AD$4,IF(AC101>=0,$AC$4,IF(AB101>=0,$AB$4,IF(AA101>=0,$AA$4,IF(Z101>=0,$Z$4,$AH$4)))))))) -> 
A102: H | B102: CO | C102: BRE | D102: 2 | E102: 360832 | F102: BERTHE | G102: Thibaut | H102: 2002 | I102: 59.75 | J102: AL QUIMPER | K102: F | L102: 36 | M102: 38 | N102: 40 | O102: 78 | P102: 44 | Q102: 46 | R102: 48 | S102: 94 | T102: 172 | U102: 255.5228658 | V102: 112.25 | X102: =IF(A102="F",(IF(OR(H102>2001,H102<2004),VLOOKUP(I102,Feuil1!$G$11:$H$25,2))),IF(A102="H",(IF(OR(H102>2001,H102<2004),VLOOKUP(I102,Feuil1!$A$11:$F$29,2))))) -> M62 | Z102: =T102-HLOOKUP(X102,#REF!,2,FALSE) ->  | AA102: =T102-HLOOKUP(X102,#REF!,3,FALSE) ->  | AB102: =T102-HLOOKUP(X102,#REF!,4,FALSE) ->  | AC102: =T102-HLOOKUP(X102,#REF!,5,FALSE) ->  | AD102: =T102-HLOOKUP(X102,#REF!,6,FALSE) ->  | AE102: =T102-HLOOKUP(X102,#REF!,7,FALSE) ->  | AF102: =T102-HLOOKUP(X102,#REF!,8,FALSE) ->  | AG102: =T102-HLOOKUP(X102,#REF!,9,FALSE) -> 
A103: H | B103: NORD | C103: PIC | D103: 3 | E103: 376294 | F103: HULOT | G103: Charles | H103: 2002 | I103: 61.7 | J103: Roisel CHFM | K103: F | L103: 27 | M103: 28 | N103: 29 | O103: 57 | P103: 32 | Q103: 33 | R103: 34 | S103: 67 | T103: 124 | U103: 179.9574036 | V103: 62.3 | X103: =IF(A103="F",(IF(OR(H103>2001,H103<2004),VLOOKUP(I103,Feuil1!$G$11:$H$25,2))),IF(A103="H",(IF(OR(H103>2001,H103<2004),VLOOKUP(I103,Feuil1!$A$11:$F$29,2))))) -> M62 | Z103: =T103-HLOOKUP(X103,#REF!,2,FALSE) ->  | AA103: =T103-HLOOKUP(X103,#REF!,3,FALSE) ->  | AB103: =T103-HLOOKUP(X103,#REF!,4,FALSE) ->  | AC103: =T103-HLOOKUP(X103,#REF!,5,FALSE) ->  | AD103: =T103-HLOOKUP(X103,#REF!,6,FALSE) ->  | AE103: =T103-HLOOKUP(X103,#REF!,7,FALSE) ->  | AF103: =T103-HLOOKUP(X103,#REF!,8,FALSE) ->  | AG103: =T103-HLOOKUP(X103,#REF!,9,FALSE) -> 
A104: H | B104: DOM | C104: REU | D104: 4 | E104: 374356 | F104: BARDEUR | G104: JULIEN | H104: 2002 | I104: 56.23 | J104: CH TAMPON | K104: F | L104: 23 | M104: 25 | N104: 27 | O104: 52 | P104: 30 | Q104: 32 | R104: 34 | S104: 66 | T104: 118 | U104: 183.5796335 | V104: 61.77 | X104: =IF(A104="F",(IF(OR(H104>2001,H104<2004),VLOOKUP(I104,Feuil1!$G$11:$H$25,2))),IF(A104="H",(IF(OR(H104>2001,H104<2004),VLOOKUP(I104,Feuil1!$A$11:$F$29,2))))) -> M62 | Z104: =T104-HLOOKUP(X104,#REF!,2,FALSE) ->  | AA104: =T104-HLOOKUP(X104,#REF!,3,FALSE) ->  | AB104: =T104-HLOOKUP(X104,#REF!,4,FALSE) ->  | AC104: =T104-HLOOKUP(X104,#REF!,5,FALSE) ->  | AD104: =T104-HLOOKUP(X104,#REF!,6,FALSE) ->  | AE104: =T104-HLOOKUP(X104,#REF!,7,FALSE) ->  | AF104: =T104-HLOOKUP(X104,#REF!,8,FALSE) ->  | AG104: =T104-HLOOKUP(X104,#REF!,9,FALSE) -> 
A105: H | B105: SO | C105: MPY | D105: 5 | E105: 368450 | F105: DURETELLE DE ST SAUVEUR | G105: Valentin | H105: 2003 | I105: 57.2 | J105: ALBI HC | K105: F | L105: 23 | M105: 25 | N105: 27 | O105: 52 | P105: 28 | Q105: 30 | R105: -32 | S105: 58 | T105: 110 | U105: 168.8799703 | V105: 52.8 | X105: =IF(A105="F",(IF(OR(H105>2001,H105<2004),VLOOKUP(I105,Feuil1!$G$11:$H$25,2))),IF(A105="H",(IF(OR(H105>2001,H105<2004),VLOOKUP(I105,Feuil1!$A$11:$F$29,2))))) -> M62 | Z105: =T105-HLOOKUP(X105,#REF!,2,FALSE) ->  | AA105: =T105-HLOOKUP(X105,#REF!,3,FALSE) ->  | AB105: =T105-HLOOKUP(X105,#REF!,4,FALSE) ->  | AC105: =T105-HLOOKUP(X105,#REF!,5,FALSE) ->  | AD105: =T105-HLOOKUP(X105,#REF!,6,FALSE) ->  | AE105: =T105-HLOOKUP(X105,#REF!,7,FALSE) ->  | AF105: =T105-HLOOKUP(X105,#REF!,8,FALSE) ->  | AG105: =T105-HLOOKUP(X105,#REF!,9,FALSE) -> 
A106: H | B106: NORD | C106: PIC | D106: 6 | E106: 376940 | F106: LEVIONNOIS | G106: Nicolas | H106: 2002 | I106: 61.9 | J106: La Ferté Milon CMHM | K106: F | L106: 20 | M106: 22 | N106: 24 | O106: 46 | P106: 25 | Q106: 27 | R106: 29 | S106: 56 | T106: 102 | U106: 147.6869713 | V106: 40.1 | X106: =IF(A106="F",(IF(OR(H106>2001,H106<2004),VLOOKUP(I106,Feuil1!$G$11:$H$25,2))),IF(A106="H",(IF(OR(H106>2001,H106<2004),VLOOKUP(I106,Feuil1!$A$11:$F$29,2))))) -> M62 | Z106: =T106-HLOOKUP(X106,#REF!,2,FALSE) ->  | AA106: =T106-HLOOKUP(X106,#REF!,3,FALSE) ->  | AB106: =T106-HLOOKUP(X106,#REF!,4,FALSE) ->  | AC106: =T106-HLOOKUP(X106,#REF!,5,FALSE) ->  | AD106: =T106-HLOOKUP(X106,#REF!,6,FALSE) ->  | AE106: =T106-HLOOKUP(X106,#REF!,7,FALSE) ->  | AF106: =T106-HLOOKUP(X106,#REF!,8,FALSE) ->  | AG106: =T106-HLOOKUP(X106,#REF!,9,FALSE) -> 
A107: H | B107: N | C107: IDF | D107: 7 | E107: 335746 | F107: FAOUZI | G107: BASSAM | H107: 2002 | I107: 61.8 | J107: CACHAN | K107: F | L107: 18 | M107: 20 | N107: 22 | O107: 42 | P107: 26 | Q107: 28 | R107: 30 | S107: 58 | T107: 100 | U107: 144.9586794 | V107: 38.2 | X107: =IF(A107="F",(IF(OR(H107>2001,H107<2004),VLOOKUP(I107,Feuil1!$G$11:$H$25,2))),IF(A107="H",(IF(OR(H107>2001,H107<2004),VLOOKUP(I107,Feuil1!$A$11:$F$29,2))))) -> M62 | Z107: =T107-HLOOKUP(X107,#REF!,2,FALSE) ->  | AA107: =T107-HLOOKUP(X107,#REF!,3,FALSE) ->  | AB107: =T107-HLOOKUP(X107,#REF!,4,FALSE) ->  | AC107: =T107-HLOOKUP(X107,#REF!,5,FALSE) ->  | AD107: =T107-HLOOKUP(X107,#REF!,6,FALSE) ->  | AE107: =T107-HLOOKUP(X107,#REF!,7,FALSE) ->  | AF107: =T107-HLOOKUP(X107,#REF!,8,FALSE) ->  | AG107: =T107-HLOOKUP(X107,#REF!,9,FALSE) -> 
A108: H | B108: NORD | C108: PIC | D108: 8 | E108: 379759 | F108: MARCHANDISE | G108: Timéo | H108: 2002 | I108: 61.6 | J108: La Vaillante Saint Quentin | K108: F | L108: 18 | M108: 20 | N108: 22 | O108: 42 | P108: 24 | Q108: 26 | R108: 28 | S108: 54 | T108: 96 | U108: 139.4840925 | V108: 34.4 | X108: =IF(A108="F",(IF(OR(H108>2001,H108<2004),VLOOKUP(I108,Feuil1!$G$11:$H$25,2))),IF(A108="H",(IF(OR(H108>2001,H108<2004),VLOOKUP(I108,Feuil1!$A$11:$F$29,2))))) -> M62 | Z108: =T108-HLOOKUP(X108,#REF!,2,FALSE) ->  | AA108: =T108-HLOOKUP(X108,#REF!,3,FALSE) ->  | AB108: =T108-HLOOKUP(X108,#REF!,4,FALSE) ->  | AC108: =T108-HLOOKUP(X108,#REF!,5,FALSE) ->  | AD108: =T108-HLOOKUP(X108,#REF!,6,FALSE) ->  | AE108: =T108-HLOOKUP(X108,#REF!,7,FALSE) ->  | AF108: =T108-HLOOKUP(X108,#REF!,8,FALSE) ->  | AG108: =T108-HLOOKUP(X108,#REF!,9,FALSE) -> 
A109: H | B109: CO | C109: CEN | D109: 9 | E109: 381199 | F109: AUBRY | G109: Tanguy | H109: 2003 | I109: 57.9 | J109: AAJ BLOIS | K109: F | L109: 17 | M109: 18 | N109: 21 | O109: 39 | P109: 25 | Q109: 27 | R109: 28 | S109: 55 | T109: 94 | U109: 142.9790534 | V109: 36.1 | X109: =IF(A109="F",(IF(OR(H109>2001,H109<2004),VLOOKUP(I109,Feuil1!$G$11:$H$25,2))),IF(A109="H",(IF(OR(H109>2001,H109<2004),VLOOKUP(I109,Feuil1!$A$11:$F$29,2))))) -> M62 | Z109: =T109-HLOOKUP(X109,#REF!,2,FALSE) ->  | AA109: =T109-HLOOKUP(X109,#REF!,3,FALSE) ->  | AB109: =T109-HLOOKUP(X109,#REF!,4,FALSE) ->  | AC109: =T109-HLOOKUP(X109,#REF!,5,FALSE) ->  | AD109: =T109-HLOOKUP(X109,#REF!,6,FALSE) ->  | AE109: =T109-HLOOKUP(X109,#REF!,7,FALSE) ->  | AF109: =T109-HLOOKUP(X109,#REF!,8,FALSE) ->  | AG109: =T109-HLOOKUP(X109,#REF!,9,FALSE) -> 
A110: H | B110: CO | C110: BRE | D110: 10 | E110: 380250 | F110: RATON | G110: Killian | H110: 2002 | I110: 58.5 | J110: AL QUIMPER | K110: F | L110: 18 | M110: 20 | N110: 22 | O110: 42 | P110: 24 | Q110: -26 | R110: 26 | S110: 50 | T110: 92 | U110: 138.8488136 | V110: 33.5 | X110: =IF(A110="F",(IF(OR(H110>2001,H110<2004),VLOOKUP(I110,Feuil1!$G$11:$H$25,2))),IF(A110="H",(IF(OR(H110>2001,H110<2004),VLOOKUP(I110,Feuil1!$A$11:$F$29,2))))) -> M62 | Z110: =T110-HLOOKUP(X110,#REF!,2,FALSE) ->  | AA110: =T110-HLOOKUP(X110,#REF!,3,FALSE) ->  | AB110: =T110-HLOOKUP(X110,#REF!,4,FALSE) ->  | AC110: =T110-HLOOKUP(X110,#REF!,5,FALSE) ->  | AD110: =T110-HLOOKUP(X110,#REF!,6,FALSE) ->  | AE110: =T110-HLOOKUP(X110,#REF!,7,FALSE) ->  | AF110: =T110-HLOOKUP(X110,#REF!,8,FALSE) ->  | AG110: =T110-HLOOKUP(X110,#REF!,9,FALSE) -> 
A111: H | B111: SEST | C111: RAL | D111: 11 | E111: 380145 | F111: DUFFEZ | G111: Quentin | H111: 2002 | I111: 59.5 | J111: L'ARBRESLE | K111: F | L111: 15 | M111: 17 | N111: 19 | O111: 36 | P111: 25 | Q111: 27 | R111: 29 | S111: 56 | T111: 92 | U111: 137.1000347 | V111: 32.5 | X111: =IF(A111="F",(IF(OR(H111>2001,H111<2004),VLOOKUP(I111,Feuil1!$G$11:$H$25,2))),IF(A111="H",(IF(OR(H111>2001,H111<2004),VLOOKUP(I111,Feuil1!$A$11:$F$29,2))))) -> M62 | Z111: =T111-HLOOKUP(X111,#REF!,2,FALSE) ->  | AA111: =T111-HLOOKUP(X111,#REF!,3,FALSE) ->  | AB111: =T111-HLOOKUP(X111,#REF!,4,FALSE) ->  | AC111: =T111-HLOOKUP(X111,#REF!,5,FALSE) ->  | AD111: =T111-HLOOKUP(X111,#REF!,6,FALSE) ->  | AE111: =T111-HLOOKUP(X111,#REF!,7,FALSE) ->  | AF111: =T111-HLOOKUP(X111,#REF!,8,FALSE) ->  | AG111: =T111-HLOOKUP(X111,#REF!,9,FALSE) -> 
A112: H | B112: SE | C112: PRO | D112: 12 | E112: 377629 | F112: CEBE | G112: Albin | H112: 2003 | I112: 56.9 | J112: EEAR MONTEUX | K112: F | L112: 20 | M112: 20 | N112: 20 | O112: 40 | P112: 22 | Q112: 23 | R112: 25 | S112: 48 | T112: 88 | U112: 135.6528211 | V112: 31.1 | X112: =IF(A112="F",(IF(OR(H112>2001,H112<2004),VLOOKUP(I112,Feuil1!$G$11:$H$25,2))),IF(A112="H",(IF(OR(H112>2001,H112<2004),VLOOKUP(I112,Feuil1!$A$11:$F$29,2))))) -> M62 | Z112: =T112-HLOOKUP(X112,#REF!,2,FALSE) ->  | AA112: =T112-HLOOKUP(X112,#REF!,3,FALSE) ->  | AB112: =T112-HLOOKUP(X112,#REF!,4,FALSE) ->  | AC112: =T112-HLOOKUP(X112,#REF!,5,FALSE) ->  | AD112: =T112-HLOOKUP(X112,#REF!,6,FALSE) ->  | AE112: =T112-HLOOKUP(X112,#REF!,7,FALSE) ->  | AF112: =T112-HLOOKUP(X112,#REF!,8,FALSE) ->  | AG112: =T112-HLOOKUP(X112,#REF!,9,FALSE) -> 
A113: H | B113: SE | C113: PRO | D113: 13 | E113: 374428 | F113: BOGUCKI | G113: Vicent | H113: 2002 | I113: 60.7 | J113: ISTRES SPORTS | K113: F | L113: 15 | M113: 17 | N113: 18 | O113: 35 | P113: 20 | Q113: 22 | R113: 24 | S113: 46 | T113: 81 | U113: 118.9489211 | V113: 20.3 | X113: =IF(A113="F",(IF(OR(H113>2001,H113<2004),VLOOKUP(I113,Feuil1!$G$11:$H$25,2))),IF(A113="H",(IF(OR(H113>2001,H113<2004),VLOOKUP(I113,Feuil1!$A$11:$F$29,2))))) -> M62 | Z113: =T113-HLOOKUP(X113,#REF!,2,FALSE) ->  | AA113: =T113-HLOOKUP(X113,#REF!,3,FALSE) ->  | AB113: =T113-HLOOKUP(X113,#REF!,4,FALSE) ->  | AC113: =T113-HLOOKUP(X113,#REF!,5,FALSE) ->  | AD113: =T113-HLOOKUP(X113,#REF!,6,FALSE) ->  | AE113: =T113-HLOOKUP(X113,#REF!,7,FALSE) ->  | AF113: =T113-HLOOKUP(X113,#REF!,8,FALSE) ->  | AG113: =T113-HLOOKUP(X113,#REF!,9,FALSE) -> 
A114: H | B114: NORD | C114: PIC | D114: 14 | E114: 361096 | F114: ROUSSEAU | G114: Benjamin | H114: 2002 | I114: 59.9 | J114: La Vaillante Saint Quentin | K114: F | L114: 9 | M114: 11 | N114: 12 | O114: 23 | P114: 11 | Q114: 13 | R114: 15 | S114: 28 | T114: 51 | U114: 75.62539784 | V114: -8.9 | X114: =IF(A114="F",(IF(OR(H114>2001,H114<2004),VLOOKUP(I114,Feuil1!$G$11:$H$25,2))),IF(A114="H",(IF(OR(H114>2001,H114<2004),VLOOKUP(I114,Feuil1!$A$11:$F$29,2))))) -> M62 | Z114: =T114-HLOOKUP(X114,#REF!,2,FALSE) ->  | AA114: =T114-HLOOKUP(X114,#REF!,3,FALSE) ->  | AB114: =T114-HLOOKUP(X114,#REF!,4,FALSE) ->  | AC114: =T114-HLOOKUP(X114,#REF!,5,FALSE) ->  | AD114: =T114-HLOOKUP(X114,#REF!,6,FALSE) ->  | AE114: =T114-HLOOKUP(X114,#REF!,7,FALSE) ->  | AF114: =T114-HLOOKUP(X114,#REF!,8,FALSE) ->  | AG114: =T114-HLOOKUP(X114,#REF!,9,FALSE) -> 
A115: H | B115: SEST | C115: CAZ | D115: 15 | E115: 392293 | F115: ABDOU LATIOFO | G115: Dayane | H115: 2002 | I115: 60.55 | J115: HC NICE | K115: F | L115: -20 | M115: -20 | N115: -20 | O115: 0 | P115: 30 | Q115: -32 | R115: -32 | S115: 30 | T115: 0 | U115: 0 | V115: -60.55 | X115: =IF(A115="F",(IF(OR(H115>2001,H115<2004),VLOOKUP(I115,Feuil1!$G$11:$H$25,2))),IF(A115="H",(IF(OR(H115>2001,H115<2004),VLOOKUP(I115,Feuil1!$A$11:$F$29,2))))) -> M62 | Z115: =T115-HLOOKUP(X115,#REF!,2,FALSE) ->  | AA115: =T115-HLOOKUP(X115,#REF!,3,FALSE) ->  | AB115: =T115-HLOOKUP(X115,#REF!,4,FALSE) ->  | AC115: =T115-HLOOKUP(X115,#REF!,5,FALSE) ->  | AD115: =T115-HLOOKUP(X115,#REF!,6,FALSE) ->  | AE115: =T115-HLOOKUP(X115,#REF!,7,FALSE) ->  | AF115: =T115-HLOOKUP(X115,#REF!,8,FALSE) ->  | AG115: =T115-HLOOKUP(X115,#REF!,9,FALSE) -> 
Z116: =T116-HLOOKUP(X116,#REF!,2,FALSE) ->  | AA116: =T116-HLOOKUP(X116,#REF!,3,FALSE) ->  | AB116: =T116-HLOOKUP(X116,#REF!,4,FALSE) ->  | AC116: =T116-HLOOKUP(X116,#REF!,5,FALSE) ->  | AD116: =T116-HLOOKUP(X116,#REF!,6,FALSE) ->  | AE116: =T116-HLOOKUP(X116,#REF!,7,FALSE) ->  | AF116: =T116-HLOOKUP(X116,#REF!,8,FALSE) ->  | AG116: =T116-HLOOKUP(X116,#REF!,9,FALSE) ->  | AO116: =IF(AG116>=0,$AG$4,IF(AF116>=0,$AF$4,IF(AE116>=0,$AE$4,IF(AD116>=0,$AD$4,IF(AC116>=0,$AC$4,IF(AB116>=0,$AB$4,IF(AA116>=0,$AA$4,IF(Z116>=0,$Z$4,$AH$4)))))))) -> 
A117: H | B117: CO | C117: BRE | D117: 1 | E117: 360255 | F117: BERTHE | G117: Maxence | H117: 2003 | I117: 62.45 | J117: AL QUIMPER | K117: F | L117: 35 | M117: 37 | N117: -38 | O117: =IF(MAXA(L117+M117,M117+N117,L117+N117,L117,M117,N117)<=0,0,MAXA(L117+M117,M117+N117,L117+N117,L117,M117,N117)) -> 72 | P117: 44 | Q117: 46 | R117: 47 | S117: =IF(MAXA(P117+Q117,Q117+R117,P117+R117,P117,Q117,R117)<=0,0,MAXA(P117+Q117,Q117+R117,P117+R117,P117,Q117,R117)) -> 93 | T117: =IF(H117="","",IF(OR(O117=0,S117=0),0,O117+S117)) -> 165 | U117: =IF(I117="","",IF(A117="H",10^(0.794358141*LOG(I117/174.393)^2)*T117,IF(A117="F",10^(0.89726074 * LOG(I117/148.026)^2)*T117,""))) -> 237.4062146 | V117: =SUM(T117-I117) -> 102.55 | X117: =IF(A117="F",(IF(OR(H117>2001,H117<2004),VLOOKUP(I117,Feuil1!$G$11:$H$25,2))),IF(A117="H",(IF(OR(H117>2001,H117<2004),VLOOKUP(I117,Feuil1!$A$11:$F$29,2))))) -> M69 | Z117: =T117-HLOOKUP(X117,#REF!,2,FALSE) ->  | AA117: =T117-HLOOKUP(X117,#REF!,3,FALSE) ->  | AB117: =T117-HLOOKUP(X117,#REF!,4,FALSE) ->  | AC117: =T117-HLOOKUP(X117,#REF!,5,FALSE) ->  | AD117: =T117-HLOOKUP(X117,#REF!,6,FALSE) ->  | AE117: =T117-HLOOKUP(X117,#REF!,7,FALSE) ->  | AF117: =T117-HLOOKUP(X117,#REF!,8,FALSE) ->  | AG117: =T117-HLOOKUP(X117,#REF!,9,FALSE) ->  | AO117: =IF(AG117>=0,$AG$4,IF(AF117>=0,$AF$4,IF(AE117>=0,$AE$4,IF(AD117>=0,$AD$4,IF(AC117>=0,$AC$4,IF(AB117>=0,$AB$4,IF(AA117>=0,$AA$4,IF(Z117>=0,$Z$4,$AH$4)))))))) -> 
A118: H | B118: NE | C118: BOU | D118: 2 | E118: 339088 | F118: CONNAN | G118: Killyan | H118: 2003 | I118: 67.2 | J118: Mont de Rême | K118: F | L118: 28 | M118: 30 | N118: 32 | O118: 62 | P118: 38 | Q118: 40 | R118: 42 | S118: 82 | T118: 144 | U118: 197.06859 | V118: 76.8 | X118: =IF(A118="F",(IF(OR(H118>2001,H118<2004),VLOOKUP(I118,Feuil1!$G$11:$H$25,2))),IF(A118="H",(IF(OR(H118>2001,H118<2004),VLOOKUP(I118,Feuil1!$A$11:$F$29,2))))) -> M69 | Z118: =T118-HLOOKUP(X118,#REF!,2,FALSE) ->  | AA118: =T118-HLOOKUP(X118,#REF!,3,FALSE) ->  | AB118: =T118-HLOOKUP(X118,#REF!,4,FALSE) ->  | AC118: =T118-HLOOKUP(X118,#REF!,5,FALSE) ->  | AD118: =T118-HLOOKUP(X118,#REF!,6,FALSE) ->  | AE118: =T118-HLOOKUP(X118,#REF!,7,FALSE) ->  | AF118: =T118-HLOOKUP(X118,#REF!,8,FALSE) ->  | AG118: =T118-HLOOKUP(X118,#REF!,9,FALSE) -> 
A119: H | B119: SEST | C119: RAL | D119: 3 | E119: 356458 | F119: REYNAUD | G119: Quentin | H119: 2002 | I119: 66.9 | J119: HF Péageois | K119: F | L119: 28 | M119: 30 | N119: 32 | O119: 62 | P119: 38 | Q119: 40 | R119: -42 | S119: 78 | T119: 140 | U119: 192.1606744 | V119: 73.1 | X119: =IF(A119="F",(IF(OR(H119>2001,H119<2004),VLOOKUP(I119,Feuil1!$G$11:$H$25,2))),IF(A119="H",(IF(OR(H119>2001,H119<2004),VLOOKUP(I119,Feuil1!$A$11:$F$29,2))))) -> M69 | Z119: =T119-HLOOKUP(X119,#REF!,2,FALSE) ->  | AA119: =T119-HLOOKUP(X119,#REF!,3,FALSE) ->  | AB119: =T119-HLOOKUP(X119,#REF!,4,FALSE) ->  | AC119: =T119-HLOOKUP(X119,#REF!,5,FALSE) ->  | AD119: =T119-HLOOKUP(X119,#REF!,6,FALSE) ->  | AE119: =T119-HLOOKUP(X119,#REF!,7,FALSE) ->  | AF119: =T119-HLOOKUP(X119,#REF!,8,FALSE) ->  | AG119: =T119-HLOOKUP(X119,#REF!,9,FALSE) -> 
A120: H | B120: NORD | C120: PIC | D120: 4 | E120: 376294 | F120: HULOT | G120: Charles | H120: 2002 | I120: 63.8 | J120: Roisel CHFM | K120: F | L120: 22 | M120: 24 | N120: 26 | O120: 50 | P120: 30 | Q120: 32 | R120: 34 | S120: 66 | T120: 116 | U120: 164.4195166 | V120: 52.2 | X120: =IF(A120="F",(IF(OR(H120>2001,H120<2004),VLOOKUP(I120,Feuil1!$G$11:$H$25,2))),IF(A120="H",(IF(OR(H120>2001,H120<2004),VLOOKUP(I120,Feuil1!$A$11:$F$29,2))))) -> M69 | Z120: =T120-HLOOKUP(X120,#REF!,2,FALSE) ->  | AA120: =T120-HLOOKUP(X120,#REF!,3,FALSE) ->  | AB120: =T120-HLOOKUP(X120,#REF!,4,FALSE) ->  | AC120: =T120-HLOOKUP(X120,#REF!,5,FALSE) ->  | AD120: =T120-HLOOKUP(X120,#REF!,6,FALSE) ->  | AE120: =T120-HLOOKUP(X120,#REF!,7,FALSE) ->  | AF120: =T120-HLOOKUP(X120,#REF!,8,FALSE) ->  | AG120: =T120-HLOOKUP(X120,#REF!,9,FALSE) -> 
A121: H | B121: N | C121: IDF | D121: 5 | E121: 335746 | F121: FAOUZI | G121: BASSAM | H121: 2002 | I121: 63.2 | J121: CACHAN | K121: F | L121: 21 | M121: 23 | N121: 25 | O121: 48 | P121: 30 | Q121: 32 | R121: 34 | S121: 66 | T121: 114 | U121: 162.6524866 | V121: 50.8 | X121: =IF(A121="F",(IF(OR(H121>2001,H121<2004),VLOOKUP(I121,Feuil1!$G$11:$H$25,2))),IF(A121="H",(IF(OR(H121>2001,H121<2004),VLOOKUP(I121,Feuil1!$A$11:$F$29,2))))) -> M69 | Z121: =T121-HLOOKUP(X121,#REF!,2,FALSE) ->  | AA121: =T121-HLOOKUP(X121,#REF!,3,FALSE) ->  | AB121: =T121-HLOOKUP(X121,#REF!,4,FALSE) ->  | AC121: =T121-HLOOKUP(X121,#REF!,5,FALSE) ->  | AD121: =T121-HLOOKUP(X121,#REF!,6,FALSE) ->  | AE121: =T121-HLOOKUP(X121,#REF!,7,FALSE) ->  | AF121: =T121-HLOOKUP(X121,#REF!,8,FALSE) ->  | AG121: =T121-HLOOKUP(X121,#REF!,9,FALSE) -> 
A122: H | B122: N | C122: IDF | D122: 6 | E122: 383960 | F122: KAADOUD | G122: ADAM | H122: 2002 | I122: 68.1 | J122: CACHAN | K122: F | L122: 12 | M122: 14 | N122: 16 | O122: 30 | P122: 17 | Q122: 19 | R122: -20 | S122: 36 | T122: 66 | U122: 89.54135353 | V122: -2.1 | X122: =IF(A122="F",(IF(OR(H122>2001,H122<2004),VLOOKUP(I122,Feuil1!$G$11:$H$25,2))),IF(A122="H",(IF(OR(H122>2001,H122<2004),VLOOKUP(I122,Feuil1!$A$11:$F$29,2))))) -> M69 | Z122: =T122-HLOOKUP(X122,#REF!,2,FALSE) ->  | AA122: =T122-HLOOKUP(X122,#REF!,3,FALSE) ->  | AB122: =T122-HLOOKUP(X122,#REF!,4,FALSE) ->  | AC122: =T122-HLOOKUP(X122,#REF!,5,FALSE) ->  | AD122: =T122-HLOOKUP(X122,#REF!,6,FALSE) ->  | AE122: =T122-HLOOKUP(X122,#REF!,7,FALSE) ->  | AF122: =T122-HLOOKUP(X122,#REF!,8,FALSE) ->  | AG122: =T122-HLOOKUP(X122,#REF!,9,FALSE) -> 
A123: H | B123: NORD | C123: PIC | D123: 7 | E123: 379759 | F123: MARCHANDISE | G123: Timéo | H123: 2002 | I123: 62.9 | J123: La Vaillante Saint Quentin | K123: F | L123: 10 | M123: 12 | N123: 14 | O123: 26 | P123: 15 | Q123: 17 | R123: 19 | S123: 36 | T123: 62 | U123: 88.75607983 | V123: -0.9 | X123: =IF(A123="F",(IF(OR(H123>2001,H123<2004),VLOOKUP(I123,Feuil1!$G$11:$H$25,2))),IF(A123="H",(IF(OR(H123>2001,H123<2004),VLOOKUP(I123,Feuil1!$A$11:$F$29,2))))) -> M69 | Z123: =T123-HLOOKUP(X123,#REF!,2,FALSE) ->  | AA123: =T123-HLOOKUP(X123,#REF!,3,FALSE) ->  | AB123: =T123-HLOOKUP(X123,#REF!,4,FALSE) ->  | AC123: =T123-HLOOKUP(X123,#REF!,5,FALSE) ->  | AD123: =T123-HLOOKUP(X123,#REF!,6,FALSE) ->  | AE123: =T123-HLOOKUP(X123,#REF!,7,FALSE) ->  | AF123: =T123-HLOOKUP(X123,#REF!,8,FALSE) ->  | AG123: =T123-HLOOKUP(X123,#REF!,9,FALSE) -> 
Z124: =T124-HLOOKUP(X124,#REF!,2,FALSE) ->  | AA124: =T124-HLOOKUP(X124,#REF!,3,FALSE) ->  | AB124: =T124-HLOOKUP(X124,#REF!,4,FALSE) ->  | AC124: =T124-HLOOKUP(X124,#REF!,5,FALSE) ->  | AD124: =T124-HLOOKUP(X124,#REF!,6,FALSE) ->  | AE124: =T124-HLOOKUP(X124,#REF!,7,FALSE) ->  | AF124: =T124-HLOOKUP(X124,#REF!,8,FALSE) ->  | AG124: =T124-HLOOKUP(X124,#REF!,9,FALSE) ->  | AO124: =IF(AG124>=0,$AG$4,IF(AF124>=0,$AF$4,IF(AE124>=0,$AE$4,IF(AD124>=0,$AD$4,IF(AC124>=0,$AC$4,IF(AB124>=0,$AB$4,IF(AA124>=0,$AA$4,IF(Z124>=0,$Z$4,$AH$4)))))))) -> 
A125: H | B125: CO | C125: BRE | D125: 1 | E125: 357284 | F125: BEGHAIN | G125: Flavien | H125: 2002 | I125: 71.7 | J125: AL QUIMPER | K125: F | L125: 40 | M125: 42 | N125: 44 | O125: =IF(MAXA(L125+M125,M125+N125,L125+N125,L125,M125,N125)<=0,0,MAXA(L125+M125,M125+N125,L125+N125,L125,M125,N125)) -> 86 | P125: 50 | Q125: 52 | R125: 54 | S125: =IF(MAXA(P125+Q125,Q125+R125,P125+R125,P125,Q125,R125)<=0,0,MAXA(P125+Q125,Q125+R125,P125+R125,P125,Q125,R125)) -> 106 | T125: =IF(H125="","",IF(OR(O125=0,S125=0),0,O125+S125)) -> 192 | U125: =IF(I125="","",IF(A125="H",10^(0.794358141*LOG(I125/174.393)^2)*T125,IF(A125="F",10^(0.89726074 * LOG(I125/148.026)^2)*T125,""))) -> 252.1526178 | V125: =SUM(T125-I125) -> 120.3 | X125: =IF(A125="F",(IF(OR(H125>2001,H125<2004),VLOOKUP(I125,Feuil1!$G$11:$H$25,2))),IF(A125="H",(IF(OR(H125>2001,H125<2004),VLOOKUP(I125,Feuil1!$A$11:$F$29,2))))) -> M77 | Z125: =T125-HLOOKUP(X125,#REF!,2,FALSE) ->  | AA125: =T125-HLOOKUP(X125,#REF!,3,FALSE) ->  | AB125: =T125-HLOOKUP(X125,#REF!,4,FALSE) ->  | AC125: =T125-HLOOKUP(X125,#REF!,5,FALSE) ->  | AD125: =T125-HLOOKUP(X125,#REF!,6,FALSE) ->  | AE125: =T125-HLOOKUP(X125,#REF!,7,FALSE) ->  | AF125: =T125-HLOOKUP(X125,#REF!,8,FALSE) ->  | AG125: =T125-HLOOKUP(X125,#REF!,9,FALSE) -> 
A126: H | B126: NORD | C126: NPC | D126: 2 | E126: 375845 | F126: MAQUAIRE-MILLE | G126: Gordon | H126: 2003 | I126: 75.4 | J126: CHCD COMINES | K126: F | L126: 15 | M126: 17 | N126: 19 | O126: 36 | P126: 27 | Q126: 29 | R126: -31 | S126: 56 | T126: 92 | U126: 117.2541767 | V126: 16.6 | X126: =IF(A126="F",(IF(OR(H126>2001,H126<2004),VLOOKUP(I126,Feuil1!$G$11:$H$25,2))),IF(A126="H",(IF(OR(H126>2001,H126<2004),VLOOKUP(I126,Feuil1!$A$11:$F$29,2))))) -> M77 | Z126: =T126-HLOOKUP(X126,#REF!,2,FALSE) ->  | AA126: =T126-HLOOKUP(X126,#REF!,3,FALSE) ->  | AB126: =T126-HLOOKUP(X126,#REF!,4,FALSE) ->  | AC126: =T126-HLOOKUP(X126,#REF!,5,FALSE) ->  | AD126: =T126-HLOOKUP(X126,#REF!,6,FALSE) ->  | AE126: =T126-HLOOKUP(X126,#REF!,7,FALSE) ->  | AF126: =T126-HLOOKUP(X126,#REF!,8,FALSE) ->  | AG126: =T126-HLOOKUP(X126,#REF!,9,FALSE) -> 
A127: H | B127: N | C127: IDF | D127: 3 | E127: 383960 | F127: KAADOUD | G127: ADAM | H127: 2002 | I127: 70.3 | J127: CACHAN | K127: F | L127: 15 | M127: 17 | N127: 19 | O127: =IF(MAXA(L127+M127,M127+N127,L127+N127,L127,M127,N127)<=0,0,MAXA(L127+M127,M127+N127,L127+N127,L127,M127,N127)) -> 36 | P127: 20 | Q127: 22 | R127: 24 | S127: =IF(MAXA(P127+Q127,Q127+R127,P127+R127,P127,Q127,R127)<=0,0,MAXA(P127+Q127,Q127+R127,P127+R127,P127,Q127,R127)) -> 46 | T127: =IF(H127="","",IF(OR(O127=0,S127=0),0,O127+S127)) -> 82 | U127: =IF(I127="","",IF(A127="H",10^(0.794358141*LOG(I127/174.393)^2)*T127,IF(A127="F",10^(0.89726074 * LOG(I127/148.026)^2)*T127,""))) -> 109.0149899 | V127: =SUM(T127-I127) -> 11.7 | X127: =IF(A127="F",(IF(OR(H127>2001,H127<2004),VLOOKUP(I127,Feuil1!$G$11:$H$25,2))),IF(A127="H",(IF(OR(H127>2001,H127<2004),VLOOKUP(I127,Feuil1!$A$11:$F$29,2))))) -> M77 | Z127: =T127-HLOOKUP(X127,#REF!,2,FALSE) ->  | AA127: =T127-HLOOKUP(X127,#REF!,3,FALSE) ->  | AB127: =T127-HLOOKUP(X127,#REF!,4,FALSE) ->  | AC127: =T127-HLOOKUP(X127,#REF!,5,FALSE) ->  | AD127: =T127-HLOOKUP(X127,#REF!,6,FALSE) ->  | AE127: =T127-HLOOKUP(X127,#REF!,7,FALSE) ->  | AF127: =T127-HLOOKUP(X127,#REF!,8,FALSE) ->  | AG127: =T127-HLOOKUP(X127,#REF!,9,FALSE) ->  | AO127: =IF(AG127>=0,$AG$4,IF(AF127>=0,$AF$4,IF(AE127>=0,$AE$4,IF(AD127>=0,$AD$4,IF(AC127>=0,$AC$4,IF(AB127>=0,$AB$4,IF(AA127>=0,$AA$4,IF(Z127>=0,$Z$4,$AH$4)))))))) -> 
Z128: =T128-HLOOKUP(X128,#REF!,2,FALSE) ->  | AA128: =T128-HLOOKUP(X128,#REF!,3,FALSE) ->  | AB128: =T128-HLOOKUP(X128,#REF!,4,FALSE) ->  | AC128: =T128-HLOOKUP(X128,#REF!,5,FALSE) ->  | AD128: =T128-HLOOKUP(X128,#REF!,6,FALSE) ->  | AE128: =T128-HLOOKUP(X128,#REF!,7,FALSE) ->  | AF128: =T128-HLOOKUP(X128,#REF!,8,FALSE) ->  | AG128: =T128-HLOOKUP(X128,#REF!,9,FALSE) -> 
A129: H | B129: NE | C129: ALS | D129: 1 | E129: 375934 | F129: BARD | G129: AXEL | H129: 2002 | I129: 82 | J129: SHC Haguenau | K129: F | L129: 33 | M129: 35 | N129: 37 | O129: =IF(MAXA(L129+M129,M129+N129,L129+N129,L129,M129,N129)<=0,0,MAXA(L129+M129,M129+N129,L129+N129,L129,M129,N129)) -> 72 | P129: 42 | Q129: 44 | R129: -46 | S129: =IF(MAXA(P129+Q129,Q129+R129,P129+R129,P129,Q129,R129)<=0,0,MAXA(P129+Q129,Q129+R129,P129+R129,P129,Q129,R129)) -> 86 | T129: =IF(H129="","",IF(OR(O129=0,S129=0),0,O129+S129)) -> 158 | U129: =IF(I129="","",IF(A129="H",10^(0.794358141*LOG(I129/174.393)^2)*T129,IF(A129="F",10^(0.89726074 * LOG(I129/148.026)^2)*T129,""))) -> 192.2954316 | V129: =SUM(T129-I129) -> 76 | X129: =IF(A129="F",(IF(OR(H129>2001,H129<2004),VLOOKUP(I129,Feuil1!$G$11:$H$25,2))),IF(A129="H",(IF(OR(H129>2001,H129<2004),VLOOKUP(I129,Feuil1!$A$11:$F$29,2))))) -> M+77 | Z129: =T129-HLOOKUP(X129,#REF!,2,FALSE) ->  | AA129: =T129-HLOOKUP(X129,#REF!,3,FALSE) ->  | AB129: =T129-HLOOKUP(X129,#REF!,4,FALSE) ->  | AC129: =T129-HLOOKUP(X129,#REF!,5,FALSE) ->  | AD129: =T129-HLOOKUP(X129,#REF!,6,FALSE) ->  | AE129: =T129-HLOOKUP(X129,#REF!,7,FALSE) ->  | AF129: =T129-HLOOKUP(X129,#REF!,8,FALSE) ->  | AG129: =T129-HLOOKUP(X129,#REF!,9,FALSE) ->  | AO129: =IF(AG129>=0,$AG$4,IF(AF129>=0,$AF$4,IF(AE129>=0,$AE$4,IF(AD129>=0,$AD$4,IF(AC129>=0,$AC$4,IF(AB129>=0,$AB$4,IF(AA129>=0,$AA$4,IF(Z129>=0,$Z$4,$AH$4)))))))) -> 
A130: H | B130: CO | C130: CEN | D130: 2 | E130: 327171 | F130: BENBOUCHTA | G130: Nassim | H130: 2002 | I130: 93.8 | J130: AAJ BLOIS | K130: F | L130: 30 | M130: 32 | N130: 34 | O130: =IF(MAXA(L130+M130,M130+N130,L130+N130,L130,M130,N130)<=0,0,MAXA(L130+M130,M130+N130,L130+N130,L130,M130,N130)) -> 66 | P130: 40 | Q130: 42 | R130: 44 | S130: =IF(MAXA(P130+Q130,Q130+R130,P130+R130,P130,Q130,R130)<=0,0,MAXA(P130+Q130,Q130+R130,P130+R130,P130,Q130,R130)) -> 86 | T130: =IF(H130="","",IF(OR(O130=0,S130=0),0,O130+S130)) -> 152 | U130: =IF(I130="","",IF(A130="H",10^(0.794358141*LOG(I130/174.393)^2)*T130,IF(A130="F",10^(0.89726074 * LOG(I130/148.026)^2)*T130,""))) -> 173.5655915 | V130: =SUM(T130-I130) -> 58.2 | X130: =IF(A130="F",(IF(OR(H130>2001,H130<2004),VLOOKUP(I130,Feuil1!$G$11:$H$25,2))),IF(A130="H",(IF(OR(H130>2001,H130<2004),VLOOKUP(I130,Feuil1!$A$11:$F$29,2))))) -> M+77 | Z130: =T130-HLOOKUP(X130,#REF!,2,FALSE) ->  | AA130: =T130-HLOOKUP(X130,#REF!,3,FALSE) ->  | AB130: =T130-HLOOKUP(X130,#REF!,4,FALSE) ->  | AC130: =T130-HLOOKUP(X130,#REF!,5,FALSE) ->  | AD130: =T130-HLOOKUP(X130,#REF!,6,FALSE) ->  | AE130: =T130-HLOOKUP(X130,#REF!,7,FALSE) ->  | AF130: =T130-HLOOKUP(X130,#REF!,8,FALSE) ->  | AG130: =T130-HLOOKUP(X130,#REF!,9,FALSE) ->  | AO130: =IF(AG130>=0,$AG$4,IF(AF130>=0,$AF$4,IF(AE130>=0,$AE$4,IF(AD130>=0,$AD$4,IF(AC130>=0,$AC$4,IF(AB130>=0,$AB$4,IF(AA130>=0,$AA$4,IF(Z130>=0,$Z$4,$AH$4)))))))) -> 
A131: H | B131: NORD | C131: NPC | D131: 3 | E131: 385701 | F131: BAILLEUL | G131: Maxime | H131: 2002 | I131: 78.8 | J131: ST POL/MER | K131: F | L131: 24 | M131: 26 | N131: 28 | O131: =IF(MAXA(L131+M131,M131+N131,L131+N131,L131,M131,N131)<=0,0,MAXA(L131+M131,M131+N131,L131+N131,L131,M131,N131)) -> 54 | P131: 40 | Q131: 42 | R131: 44 | S131: =IF(MAXA(P131+Q131,Q131+R131,P131+R131,P131,Q131,R131)<=0,0,MAXA(P131+Q131,Q131+R131,P131+R131,P131,Q131,R131)) -> 86 | T131: =IF(H131="","",IF(OR(O131=0,S131=0),0,O131+S131)) -> 140 | U131: =IF(I131="","",IF(A131="H",10^(0.794358141*LOG(I131/174.393)^2)*T131,IF(A131="F",10^(0.89726074 * LOG(I131/148.026)^2)*T131,""))) -> 174.0516181 | V131: =SUM(T131-I131) -> 61.2 | X131: =IF(A131="F",(IF(OR(H131>2001,H131<2004),VLOOKUP(I131,Feuil1!$G$11:$H$25,2))),IF(A131="H",(IF(OR(H131>2001,H131<2004),VLOOKUP(I131,Feuil1!$A$11:$F$29,2))))) -> M+77 | Z131: =T131-HLOOKUP(X131,#REF!,2,FALSE) ->  | AA131: =T131-HLOOKUP(X131,#REF!,3,FALSE) ->  | AB131: =T131-HLOOKUP(X131,#REF!,4,FALSE) ->  | AC131: =T131-HLOOKUP(X131,#REF!,5,FALSE) ->  | AD131: =T131-HLOOKUP(X131,#REF!,6,FALSE) ->  | AE131: =T131-HLOOKUP(X131,#REF!,7,FALSE) ->  | AF131: =T131-HLOOKUP(X131,#REF!,8,FALSE) ->  | AG131: =T131-HLOOKUP(X131,#REF!,9,FALSE) ->  | AO131: =IF(AG131>=0,$AG$4,IF(AF131>=0,$AF$4,IF(AE131>=0,$AE$4,IF(AD131>=0,$AD$4,IF(AC131>=0,$AC$4,IF(AB131>=0,$AB$4,IF(AA131>=0,$AA$4,IF(Z131>=0,$Z$4,$AH$4)))))))) -> 
A132: H | B132: NE | C132: ALS | D132: 4 | E132: 327057 | F132: LAEMLIN | G132: JULES | H132: 2003 | I132: 80.6 | J132: US Wittenheim | K132: F | L132: 27 | M132: 29 | N132: 31 | O132: =IF(MAXA(L132+M132,M132+N132,L132+N132,L132,M132,N132)<=0,0,MAXA(L132+M132,M132+N132,L132+N132,L132,M132,N132)) -> 60 | P132: 31 | Q132: 33 | R132: 35 | S132: =IF(MAXA(P132+Q132,Q132+R132,P132+R132,P132,Q132,R132)<=0,0,MAXA(P132+Q132,Q132+R132,P132+R132,P132,Q132,R132)) -> 68 | T132: =IF(H132="","",IF(OR(O132=0,S132=0),0,O132+S132)) -> 128 | U132: =IF(I132="","",IF(A132="H",10^(0.794358141*LOG(I132/174.393)^2)*T132,IF(A132="F",10^(0.89726074 * LOG(I132/148.026)^2)*T132,""))) -> 157.2027345 | V132: =SUM(T132-I132) -> 47.4 | X132: =IF(A132="F",(IF(OR(H132>2001,H132<2004),VLOOKUP(I132,Feuil1!$G$11:$H$25,2))),IF(A132="H",(IF(OR(H132>2001,H132<2004),VLOOKUP(I132,Feuil1!$A$11:$F$29,2))))) -> M+77 | Z132: =T132-HLOOKUP(X132,#REF!,2,FALSE) ->  | AA132: =T132-HLOOKUP(X132,#REF!,3,FALSE) ->  | AB132: =T132-HLOOKUP(X132,#REF!,4,FALSE) ->  | AC132: =T132-HLOOKUP(X132,#REF!,5,FALSE) ->  | AD132: =T132-HLOOKUP(X132,#REF!,6,FALSE) ->  | AE132: =T132-HLOOKUP(X132,#REF!,7,FALSE) ->  | AF132: =T132-HLOOKUP(X132,#REF!,8,FALSE) ->  | AG132: =T132-HLOOKUP(X132,#REF!,9,FALSE) ->  | AO132: =IF(AG132>=0,$AG$4,IF(AF132>=0,$AF$4,IF(AE132>=0,$AE$4,IF(AD132>=0,$AD$4,IF(AC132>=0,$AC$4,IF(AB132>=0,$AB$4,IF(AA132>=0,$AA$4,IF(Z132>=0,$Z$4,$AH$4)))))))) -> 
A133: H | B133: CO | C133: BRE | D133: 5 | E133: 380277 | F133: COATMEN | G133: Maxime | H133: 2002 | I133: 82.65 | J133: AL QUIMPER | K133: F | L133: 18 | M133: 20 | N133: 21 | O133: =IF(MAXA(L133+M133,M133+N133,L133+N133,L133,M133,N133)<=0,0,MAXA(L133+M133,M133+N133,L133+N133,L133,M133,N133)) -> 41 | P133: 25 | Q133: 27 | R133: 28 | S133: =IF(MAXA(P133+Q133,Q133+R133,P133+R133,P133,Q133,R133)<=0,0,MAXA(P133+Q133,Q133+R133,P133+R133,P133,Q133,R133)) -> 55 | T133: =IF(H133="","",IF(OR(O133=0,S133=0),0,O133+S133)) -> 96 | U133: =IF(I133="","",IF(A133="H",10^(0.794358141*LOG(I133/174.393)^2)*T133,IF(A133="F",10^(0.89726074 * LOG(I133/148.026)^2)*T133,""))) -> 116.3609219 | V133: =SUM(T133-I133) -> 13.35 | X133: =IF(A133="F",(IF(OR(H133>2001,H133<2004),VLOOKUP(I133,Feuil1!$G$11:$H$25,2))),IF(A133="H",(IF(OR(H133>2001,H133<2004),VLOOKUP(I133,Feuil1!$A$11:$F$29,2))))) -> M+77 | Z133: =T133-HLOOKUP(X133,#REF!,2,FALSE) ->  | AA133: =T133-HLOOKUP(X133,#REF!,3,FALSE) ->  | AB133: =T133-HLOOKUP(X133,#REF!,4,FALSE) ->  | AC133: =T133-HLOOKUP(X133,#REF!,5,FALSE) ->  | AD133: =T133-HLOOKUP(X133,#REF!,6,FALSE) ->  | AE133: =T133-HLOOKUP(X133,#REF!,7,FALSE) ->  | AF133: =T133-HLOOKUP(X133,#REF!,8,FALSE) ->  | AG133: =T133-HLOOKUP(X133,#REF!,9,FALSE) ->  | AO133: =IF(AG133>=0,$AG$4,IF(AF133>=0,$AF$4,IF(AE133>=0,$AE$4,IF(AD133>=0,$AD$4,IF(AC133>=0,$AC$4,IF(AB133>=0,$AB$4,IF(AA133>=0,$AA$4,IF(Z133>=0,$Z$4,$AH$4)))))))) -> 
Z134: =T134-HLOOKUP(X134,#REF!,2,FALSE) ->  | AA134: =T134-HLOOKUP(X134,#REF!,3,FALSE) ->  | AB134: =T134-HLOOKUP(X134,#REF!,4,FALSE) ->  | AC134: =T134-HLOOKUP(X134,#REF!,5,FALSE) ->  | AD134: =T134-HLOOKUP(X134,#REF!,6,FALSE) ->  | AE134: =T134-HLOOKUP(X134,#REF!,7,FALSE) ->  | AF134: =T134-HLOOKUP(X134,#REF!,8,FALSE) ->  | AG134: =T134-HLOOKUP(X134,#REF!,9,FALSE) -> 
Y638: J69 | Z638: J77 | AA638: J85 | AB638: J94 | AC638: J105 | AD638: J+105 | AF638: J56 | AG638: J62 | AH638: J69 | AI638: J77 | AJ638: J85 | AK638: J94 | AL638: J105 | AM638: J+105 | AO638: S56 | AP638: S62 | AQ638: S69 | AR638: S77 | AS638: S85 | AT638: S94 | AU638: S105 | AV638: S+105
Y639: 130 | Z639: 145 | AA639: 160 | AB639: 170 | AC639: 180 | AD639: 190 | AF639: 100 | AG639: 115 | AH639: 130 | AI639: 145 | AJ639: 160 | AK639: 170 | AL639: 180 | AM639: 190 | AO639: 115 | AP639: 135 | AQ639: 150 | AR639: 165 | AS639: 180 | AT639: 190 | AU639: 200 | AV639: 210
Y640: 150 | Z640: 165 | AA640: 180 | AB640: 190 | AC640: 200 | AD640: 210 | AF640: 115 | AG640: 135 | AH640: 150 | AI640: 165 | AJ640: 180 | AK640: 190 | AL640: 200 | AM640: 210 | AO640: 130 | AP640: 150 | AQ640: 165 | AR640: 185 | AS640: 200 | AT640: 210 | AU640: 220 | AV640: 230
Y641: 165 | Z641: 185 | AA641: 200 | AB641: 210 | AC641: 220 | AD641: 230 | AF641: 130 | AG641: 150 | AH641: 165 | AI641: 185 | AJ641: 200 | AK641: 210 | AL641: 220 | AM641: 230 | AO641: 145 | AP641: 165 | AQ641: 180 | AR641: 200 | AS641: 220 | AT641: 230 | AU641: 240 | AV641: 250
Y642: 180 | Z642: 200 | AA642: 220 | AB642: 230 | AC642: 240 | AD642: 250 | AF642: 145 | AG642: 165 | AH642: 180 | AI642: 200 | AJ642: 220 | AK642: 230 | AL642: 240 | AM642: 250 | AO642: 175 | AP642: 195 | AQ642: 215 | AR642: 235 | AS642: 250 | AT642: 260 | AU642: 275 | AV642: 280
Y643: 215 | Z643: 235 | AA643: 250 | AB643: 260 | AC643: 275 | AD643: 280 | AF643: 175 | AG643: 195 | AH643: 215 | AI643: 235 | AJ643: 250 | AK643: 260 | AL643: 275 | AM643: 280 | AO643: 210 | AP643: 230 | AQ643: 250 | AR643: 270 | AS643: 290 | AT643: 300 | AU643: 310 | AV643: 325
Y644: 250 | Z644: 270 | AA644: 290 | AB644: 300 | AC644: 310 | AD644: 325 | AF644: 210 | AG644: 230 | AH644: 250 | AI644: 270 | AJ644: 290 | AK644: 300 | AL644: 310 | AM644: 325 | AO644: 230 | AP644: 255 | AQ644: 275 | AR644: 300 | AS644: 315 | AT644: 335 | AU644: 345 | AV644: 355
Y645: 295 | Z645: 320 | AA645: 335 | AB645: 355 | AC645: 370 | AD645: 380 | AF645: 245 | AG645: 270 | AH645: 295 | AI645: 320 | AJ645: 335 | AK645: 355 | AL645: 370 | AM645: 380 | AO645: 245 | AP645: 270 | AQ645: 295 | AR645: 320 | AS645: 335 | AT645: 355 | AU645: 370 | AV645: 380

Sheet Feuil1 (hidden)
C1: FC1 44 | D1: FC1 48 | E1: FC1 53 | F1: FC1 58 | G1: FC1 63 | H1: FC1 69 | I1: FC1 +69 | J1: FC2 44 | K1: FC2 48 | L1: FC2 53 | M1: FC2 58 | N1: FC2 63 | O1: FC2 69 | P1: FC2 +69 | Q1: FJ48 | R1: FJ53 | S1: FJ58 | T1: FJ63 | U1: FJ69 | V1: FJ75 | W1: FJ+75 | X1: FS48 | Y1: FS53 | Z1: FS58 | AA1: FS63 | AB1: FS69 | AC1: FS75 | AD1: FS+75 | AE1: C1 50 | AF1: C1 56 | AG1: C1 62 | AH1: C1 69 | AI1: C1 77 | AJ1: C1 85 | AK1: C1 94 | AL1: C1 +94 | AM1: C2 50 | AN1: C2 56 | AO1: C2 62 | AP1: C2 69 | AQ1: C2 77 | AR1: C2 85 | AS1: C2 94 | AT1: C2 +94 | AU1: J56 | AV1: J62 | AW1: J69 | AX1: J77 | AY1: J85 | AZ1: J94 | BA1: J105 | BB1: J+105 | BC1: S56 | BD1: S62 | BE1: S69 | BF1: S77 | BG1: S85 | BH1: S94 | BI1: S105 | BJ1: S+105
B2: DEBUTANT | C2: 25 | D2: 25 | E2: 35 | F2: 40 | G2: 45 | H2: 50 | I2: 60 | J2: 30 | K2: 35 | L2: 45 | M2: 40 | N2: 55 | O2: 60 | P2: 70 | Q2: 45 | R2: 55 | S2: 60 | T2: 65 | U2: 70 | V2: 80 | W2: 90 | X2: 55 | Y2: 65 | Z2: 70 | AA2: 75 | AB2: 80 | AC2: 95 | AD2: 100 | AE2: 40 | AF2: 50 | AG2: 75 | AH2: 85 | AI2: 90 | AJ2: 100 | AK2: 110 | AL2: 120 | AM2: 45 | AN2: 65 | AO2: 85 | AP2: 95 | AQ2: 110 | AR2: 120 | AS2: 125 | AT2: 135 | AU2: 80 | AV2: 90 | AW2: 110 | AX2: 130 | AY2: 145 | AZ2: 150 | BA2: 155 | BB2: 165 | BC2: 95 | BD2: 120 | BE2: 130 | BF2: 150 | BG2: 165 | BH2: 170 | BI2: 175 | BJ2: 185
B3: DEPARTEMENTAL | C3: 35 | D3: 35 | E3: 45 | F3: 50 | G3: 55 | H3: 60 | I3: 70 | J3: 40 | K3: 45 | L3: 55 | M3: 50 | N3: 65 | O3: 70 | P3: 80 | Q3: 55 | R3: 65 | S3: 70 | T3: 75 | U3: 80 | V3: 95 | W3: 100 | X3: 65 | Y3: 75 | Z3: 80 | AA3: 85 | AB3: 90 | AC3: 105 | AD3: 110 | AE3: 55 | AF3: 70 | AG3: 95 | AH3: 105 | AI3: 110 | AJ3: 120 | AK3: 130 | AL3: 140 | AM3: 65 | AN3: 85 | AO3: 105 | AP3: 115 | AQ3: 130 | AR3: 140 | AS3: 145 | AT3: 155 | AU3: 100 | AV3: 120 | AW3: 130 | AX3: 150 | AY3: 165 | AZ3: 170 | BA3: 175 | BB3: 185 | BC3: 115 | BD3: 135 | BE3: 150 | BF3: 170 | BG3: 185 | BH3: 190 | BI3: 195 | BJ3: 205
B4: REGIONAL | C4: 40 | D4: 45 | E4: 55 | F4: 60 | G4: 65 | H4: 70 | I4: 80 | J4: 50 | K4: 55 | L4: 65 | M4: 60 | N4: 75 | O4: 80 | P4: 95 | Q4: 65 | R4: 75 | S4: 80 | T4: 85 | U4: 90 | V4: 105 | W4: 110 | X4: 75 | Y4: 85 | Z4: 90 | AA4: 95 | AB4: 105 | AC4: 115 | AD4: 125 | AE4: 65 | AF4: 85 | AG4: 105 | AH4: 115 | AI4: 130 | AJ4: 140 | AK4: 145 | AL4: 155 | AM4: 80 | AN4: 100 | AO4: 120 | AP4: 130 | AQ4: 150 | AR4: 160 | AS4: 165 | AT4: 175 | AU4: 115 | AV4: 135 | AW4: 150 | AX4: 170 | AY4: 185 | AZ4: 190 | BA4: 195 | BB4: 205 | BC4: 130 | BD4: 150 | BE4: 170 | BF4: 190 | BG4: 205 | BH4: 215 | BI4: 220 | BJ4: 225
B5: INTERREGIONAL | C5: 50 | D5: 55 | E5: 65 | F5: 70 | G5: 75 | H5: 80 | I5: 95 | J5: 60 | K5: 65 | L5: 75 | M5: 70 | N5: 85 | O5: 90 | P5: 105 | Q5: 75 | R5: 85 | S5: 90 | T5: 95 | U5: 105 | V5: 115 | W5: 125 | X5: 85 | Y5: 95 | Z5: 100 | AA5: 110 | AB5: 120 | AC5: 130 | AD5: 140 | AE5: 80 | AF5: 100 | AG5: 120 | AH5: 130 | AI5: 150 | AJ5: 160 | AK5: 165 | AL5: 175 | AM5: 95 | AN5: 115 | AO5: 135 | AP5: 150 | AQ5: 170 | AR5: 180 | AS5: 185 | AT5: 195 | AU5: 130 | AV5: 150 | AW5: 170 | AX5: 190 | AY5: 205 | AZ5: 215 | BA5: 220 | BB5: 225 | BC5: 145 | BD5: 170 | BE5: 190 | BF5: 210 | BG5: 225 | BH5: 235 | BI5: 245 | BJ5: 250
B6: FEDERAL | C6: 60 | D6: 65 | E6: 75 | F6: 80 | G6: 85 | H6: 90 | I6: 105 | J6: 70 | K6: 75 | L6: 85 | M6: 80 | N6: 95 | O6: 105 | P6: 115 | Q6: 85 | R6: 95 | S6: 100 | T6: 110 | U6: 120 | V6: 130 | W6: 140 | X6: 95 | Y6: 105 | Z6: 115 | AA6: 125 | AB6: 135 | AC6: 145 | AD6: 150 | AE6: 95 | AF6: 115 | AG6: 135 | AH6: 150 | AI6: 170 | AJ6: 180 | AK6: 185 | AL6: 195 | AM6: 110 | AN6: 130 | AO6: 150 | AP6: 170 | AQ6: 185 | AR6: 200 | AS6: 210 | AT6: 220 | AU6: 145 | AV6: 170 | AW6: 190 | AX6: 210 | AY6: 225 | AZ6: 235 | BA6: 245 | BB6: 250 | BC6: 170 | BD6: 190 | BE6: 220 | BF6: 240 | BG6: 250 | BH6: 260 | BI6: 270 | BJ6: 280
B7: NATIONAL | C7: 70 | D7: 75 | E7: 85 | F7: 90 | G7: 95 | H7: 105 | I7: 115 | J7: 80 | K7: 85 | L7: 95 | M7: 90 | N7: 110 | O7: 120 | P7: 130 | Q7: 95 | R7: 105 | S7: 115 | T7: 125 | U7: 135 | V7: 145 | W7: 150 | X7: 110 | Y7: 120 | Z7: 130 | AA7: 140 | AB7: 150 | AC7: 160 | AD7: 170 | AE7: 110 | AF7: 130 | AG7: 150 | AH7: 170 | AI7: 185 | AJ7: 200 | AK7: 210 | AL7: 220 | AM7: 120 | AN7: 145 | AO7: 170 | AP7: 190 | AQ7: 200 | AR7: 220 | AS7: 225 | AT7: 235 | AU7: 170 | AV7: 190 | AW7: 220 | AX7: 240 | AY7: 250 | AZ7: 260 | BA7: 270 | BB7: 280 | BC7: 190 | BD7: 210 | BE7: 240 | BF7: 265 | BG7: 280 | BH7: 290 | BI7: 300 | BJ7: 310
B8: INTERNATIONAL B | C8: 80 | D8: 85 | E8: 95 | F8: 100 | G8: 110 | H8: 120 | I8: 130 | J8: 90 | K8: 95 | L8: 105 | M8: 100 | N8: 125 | O8: 135 | P8: 145 | Q8: 110 | R8: 120 | S8: 130 | T8: 140 | U8: 150 | V8: 160 | W8: 170 | X8: 125 | Y8: 140 | Z8: 150 | AA8: 160 | AB8: 170 | AC8: 180 | AD8: 190 | AE8: 120 | AF8: 145 | AG8: 170 | AH8: 190 | AI8: 200 | AJ8: 220 | AK8: 225 | AL8: 235 | AM8: 135 | AN8: 170 | AO8: 190 | AP8: 210 | AQ8: 220 | AR8: 240 | AS8: 250 | AT8: 260 | AU8: 190 | AV8: 210 | AW8: 240 | AX8: 260 | AY8: 280 | AZ8: 290 | BA8: 300 | BB8: 310 | BC8: 210 | BD8: 230 | BE8: 260 | BF8: 285 | BG8: 300 | BH8: 310 | BI8: 325 | BJ8: 330
B9: INTERNATIONAL A | C9: 90 | D9: 95 | E9: 105 | F9: 115 | G9: 125 | H9: 135 | I9: 145 | J9: 100 | K9: 110 | L9: 120 | M9: 115 | N9: 140 | O9: 150 | P9: 160 | Q9: 125 | R9: 135 | S9: 150 | T9: 160 | U9: 170 | V9: 180 | W9: 190 | X9: 140 | Y9: 160 | Z9: 170 | AA9: 180 | AB9: 190 | AC9: 195 | AD9: 210 | AE9: 135 | AF9: 170 | AG9: 190 | AH9: 210 | AI9: 220 | AJ9: 240 | AK9: 250 | AL9: 260 | AM9: 150 | AN9: 190 | AO9: 210 | AP9: 230 | AQ9: 250 | AR9: 260 | AS9: 280 | AT9: 280 | AU9: 210 | AV9: 230 | AW9: 250 | AX9: 285 | AY9: 300 | AZ9: 310 | BA9: 325 | BB9: 330 | BC9: 225 | BD9: 255 | BE9: 275 | BF9: 305 | BG9: 325 | BH9: 330 | BI9: 345 | BJ9: 355
B10: OLYMPIQUE | C10: 1000 | D10: 1000 | E10: 1000 | F10: 1000 | G10: 1000 | H10: 1000 | I10: 1000 | J10: 1000 | K10: 1000 | L10: 1000 | M10: 1000 | N10: 1000 | O10: 1000 | P10: 1000 | Q10: 1000 | R10: 1000 | S10: 1000 | T10: 1000 | U10: 1000 | V10: 1000 | W10: 1000 | X10: 155 | Y10: 175 | Z10: 190 | AA10: 200 | AB10: 205 | AC10: 210 | AD10: 225 | AE10: 1000 | AF10: 1000 | AG10: 1000 | AH10: 1000 | AI10: 1000 | AJ10: 10000 | AK10: 1000 | AL10: 1000 | AM10: 1000 | AN10: 1000 | AO10: 1000 | AP10: 1000 | AQ10: 1000 | AR10: 10000 | AS10: 1000 | AT10: 1000 | AU10: 1000 | AV10: 1000 | AW10: 1000 | AX10: 10000 | AY10: 1000 | AZ10: 1000 | BA10: 1000 | BB10: 10000 | BC10: 240 | BD10: 270 | BE10: 290 | BF10: 320 | BG10: 345 | BH10: 355 | BI10: 365 | BJ10: 375
B11: MINIME | C11: CADET | D11: CADET | E11: JUNIOR | F11: SENIOR | H11: MINIME | I11: CADETTE | J11: CADETTE | K11: JUNIOR | L11: SENIOR
A12: 20.01 | B12: M40 | C12: C1 50 | D12: C2 50 | E12: J56 | F12: S56 | G12: 20.01 | H12: FM36 | I12: FC1 44 | J12: FC2 44 | K12: FJ48 | L12: FS48
A13: 34.01 | B13: M40 | C13: C1 50 | D13: C2 50 | E13: J56 | F13: S56 | G13: 30.01 | H13: FM36 | I13: FC1 44 | J13: FC2 45 | K13: FJ48 | L13: FS48
A14: 38.01 | B14: M40 | C14: C1 50 | D14: C2 50 | E14: J56 | F14: S56 | G14: 35.01 | H14: FM36 | I14: FC1 44 | J14: FC2 46 | K14: FJ48 | L14: FS48
A15: 40.01 | B15: M45 | C15: C1 50 | D15: C2 50 | E15: J56 | F15: S56 | G15: 36.01 | H15: FM40 | I15: FC1 44 | J15: FC2 47 | K15: FJ48 | L15: FS48
A16: 45.01 | B16: M50 | C16: C1 50 | D16: C2 50 | E16: J56 | F16: S56 | G16: 40.01 | H16: FM44 | I16: FC1 44 | J16: FC2 48 | K16: FJ48 | L16: FS48
A17: 50.01 | B17: M56 | C17: C1 56 | D17: C2 56 | E17: J56 | F17: S56 | G17: 44.01 | H17: FM48 | I17: FC1 48 | J17: FC2 48 | K17: FJ48 | L17: FS48
A18: 52.05 | B18: M56 | C18: C1 56 | D18: C2 56 | E18: J56 | F18: S56 | G18: 48.01 | H18: FM53 | I18: FC1 53 | J18: FC2 53 | K18: FJ53 | L18: FS53
A19: 56.01 | B19: M62 | C19: C1 62 | D19: C2 62 | E19: J62 | F19: S62 | G19: 53.01 | H19: FM58 | I19: FC1 58 | J19: FC2 58 | K19: FJ58 | L19: FS58
A20: 62.01 | B20: M69 | C20: C1 69 | D20: C2 69 | E20: J69 | F20: S69 | G20: 58.01 | H20: FM+58 | I20: FC1 63 | J20: FC2 63 | K20: FJ63 | L20: FS63
A21: 69.01 | B21: M77 | C21: C1 77 | D21: C2 77 | E21: J77 | F21: S77 | G21: 63.01 | H21: FM+58 | I21: FC1 69 | J21: FC2 69 | K21: FJ69 | L21: FS69
A22: 77.01 | B22: M+77 | C22: C1 85 | D22: C2 85 | E22: J85 | F22: S85 | G22: 69.01 | H22: FM+58 | I22: FC1 +69 | J22: FC2 +69 | K22: FJ75 | L22: FS75
A23: 85.01 | B23: M+77 | C23: C1 94 | D23: C2 94 | E23: J94 | F23: S94 | G23: 75.01 | H23: FM+58 | I23: FC1 +69 | J23: FC2 +69 | K23: FJ+75 | L23: FS+75
A24: 94.01 | B24: M+77 | C24: C1 +94 | D24: C2 +94 | E24: J105 | F24: S105 | G24: 110 | H24: FM+58 | I24: FC1 +69 | J24: FC2 +69 | K24: FJ+75 | L24: FS+75
A25: 105.01 | B25: M+77 | C25: C1 +94 | D25: C2 +94 | E25: J+105 | F25: S+105 | G25: 140 | H25: FM+58 | I25: FC1 +69 | J25: FC2 +69 | K25: FJ+75 | L25: FS+75
A26: 110 | B26: M+77 | C26: C1 +94 | D26: C2 +94 | E26: J+105 | F26: S+105
A27: 120 | B27: M+77 | C27: C1 +94 | D27: C2 +94 | E27: J+105 | F27: S+105
A28: 130 | B28: M+77 | C28: C1 +94 | D28: C2 +94 | E28: J+105 | F28: S+105
A29: 140 | B29: M+77 | C29: C1 +94 | D29: C2 +94 | E29: J+105 | F29: S+105
